Workbook

Sheet About this Report
B3: Environmental, Social and Governance (ESG) Performance Trend Data
B5: Date Updated: | C5: 2021-04-22 | D5: (except for GHG Emissions and Energy Consumption file tabs, which were updated September 30, 2021)
B7: Freeport-McMoRan (FCX) is committed to communicating on our ESG performance regularly and transparently. We have been reporting on our sustainability performance since 2001. The data provided herein reflect FCX's historical performance for the past five years on key ESG topics. These data are intended to be a companion to our 2020 Annual Report on Sustainability and 2020 Climate Report, available on our website at fcx.com/sustainability. This report focuses primarily on the most significant entities that FCX consolidates, including its 48.76 percent-owned subsidiary PT Freeport Indonesia, and the following wholly-owned subsidiaries: Freeport Minerals Corporation and Atlantic Copper, S.L.U. (Atlantic Copper), for the period January 1, 2020 to December 31, 2020, unless otherwise indicated. Data is as of December 31, 2020, unless otherwise noted. In general, and unless otherwise noted, these data do not include assets divested prior to 2020, such as our Tenke Fungurume mine or oil and gas operations (FM O&G), non-managed joint ventures, exploration activities and projects and non-operating and discontinued sites. However, historical data related to our workforce, Principles of Business Conduct training, human rights, cash payments to governments and direct economic contributions includes FM O&G. As a result of methodology changes, corrections, or ongoing improvements to our data collection processes and quality, prior year data may be restated in future years. Non-financial data contained in this report have not been prepared in conformity with generally accepted accounting principles (GAAP) in the United States and, with the exception of the GHG Scope 1, 2, and 3 emissions data which has been third-party verified in accordance with ISO 14064 (Specifications 1 and 3) to a reasonable level of assurance, data have not been audited. Data herein have been assured in accordance with the International Standard on Assurance ISEA3000 (revised). Historical results are not necessarily indicative of future performance. All financial figures are quoted in U.S. dollars, unless otherwise noted. Reported amounts are approximate and due to rounding, some figures and percentages may not add up to the total figure or 100%. Data presented cover our performance for the years ending on December 31, which corresponds to our fiscal year. Additional information about FCX is available on our website, fcx.com. For details on our financial performance and governance structure, please refer to our Annual Report on Form 10-K for the year ended December 31, 2020, filed with the SEC, and available on our website at investors.fcx.com/investors/financial-information/annual-reports-and-proxy.

Sheet Index
B1: FCX - ESG PERFORMANCE TREND DATA - INDEX
B5: LINK TO TOPIC
B6: =HYPERLINK("#'"&G6&"'!A1","About this Report") -> About this Report | F6: 1 | G6: =INDEX(SheetNames,F6) -> About this Report
B7: =HYPERLINK("#'"&G7&"'!A1","References") -> References | F7: 3 | G7: =INDEX(SheetNames,F7) -> References
B8: Environmental
B9: =HYPERLINK("#'"&G9&"'!A1",G9) -> GHG Emissions | F9: =F7+1 -> 4 | G9: =INDEX(SheetNames,F9) -> GHG Emissions
B10: =HYPERLINK("#'"&G10&"'!A1",G10) -> GHG Emissions - 2030 Targets | F10: =F9+1 -> 5 | G10: GHG Emissions - 2030 Targets
B11: =HYPERLINK("#'"&G11&"'!A1",G11) -> Energy Consumption - by site | F11: =F10+1 -> 6 | G11: Energy Consumption - by site
B12: =HYPERLINK("#'"&G12&"'!A1",G12) -> 2020 Energy Consumption - Type | F12: 7 | G12: 2020 Energy Consumption - Type
B13: =HYPERLINK("#'"&G13&"'!A1",G13) -> 2020 Indirect Energy - Source | F13: 8 | G13: 2020 Indirect Energy - Source
B14: 2020 Direct Energy - Source | F14: 9 | G14: 2020 Direct Energy - Source
B15: 2020 Energy Use - Type | F15: 10 | G15: 2020 Energy Use - Type
B16: Air Emissions | F16: 11 | G16: Air Emissions
B17: Environmental Events | F17: 12 | G17: Environmental Events
B18: Water | F18: 13 | G18: Water
B19: Land | F19: 14 | G19: Land
B20: =HYPERLINK("#'"&G20&"'!A1",G20) -> Tailings Impoundments | F20: 15 | G20: Tailings Impoundments
B21: Mining.Mineral Processing Waste | F21: 16 | G21: Mining.Mineral Processing Waste
B22: Social
B23: =HYPERLINK("#'"&G23&"'!A1","Health & Safety") -> Health & Safety | F23: =F21+1 -> 17 | G23: =INDEX(SheetNames,F23) -> Health & Safety
B24: =HYPERLINK("#'"&G24&"'!A1","Workforce") -> Workforce | F24: =F23+1 -> 18 | G24: =INDEX(SheetNames,F24) -> Workforce
B25: =HYPERLINK("#'"&G25&"'!A1","Communities") -> Communities | F25: =F24+1 -> 19 | G25: =INDEX(SheetNames,F25) -> Communities
B26: =HYPERLINK("#'"&G26&"'!A1","Human Rights") -> Human Rights | F26: =F25+1 -> 20 | G26: =INDEX(SheetNames,F26) -> Human Rights
B27: Governance
B28: =HYPERLINK("#'"&G28&"'!A1","Business Ethics") -> Business Ethics | F28: =F26+1 -> 21 | G28: Business Ethics
B29: =HYPERLINK("#'"&G29&"'!A1","Economic Value Contribution") -> Economic Value Contribution | F29: =F28+1 -> 22 | G29: Economic Value Contribution
B30: Frameworks
B31: =HYPERLINK("#'"&G31&"'!A1","SASB") -> SASB | F31: =F29+1 -> 23 | G31: =INDEX(SheetNames,F31) -> SASB
B32: =HYPERLINK("#'"&G32&"'!A1","GRI Index; SDGs") -> GRI Index; SDGs | F32: =F31+1 -> 24 | G32: =INDEX(SheetNames,F32) -> GRI Index; SDGs
B33: =HYPERLINK("#'"&G33&"'!A1","ICMM") -> ICMM | F33: =F32+1 -> 25 | G33: =INDEX(SheetNames,F33) -> ICMM

Sheet References
B1: FCX - ESG PERFORMANCE TREND DATA - REFERENCES
B4: Below is a list of documents and webpages mentioned in this databook.
B5: DOCUMENT NAME | C5: LINK TO DOCUMENT
B6: Annual Report on Sustainability | C6: 2020 Annual Report on Sustainability
B7: Form 10-K | C7: 2020 Form 10-K
B8: About Us page on fcx.com | C8: About Us
B9: Proxy Statement | C9: 2021 Proxy Statement
B10: Corporate Governance Guidelines | C10: Corporate Governance Guidelines
B11: Corporate Responsibility Committee Charter | C11: Corporate Responsibility Committee Charter
B12: Principles of Business Conduct (PBC) | C12: Principles of Business Conduct
B13: Supplier Code of Conduct | C13: Supplier Code of Conduct
B14: Global Supply Chain page on fcx.com | C14: Global Supply Chain
B15: Commodity Management page on fcx.com | C15: Commodity Management
B16: Social Performance Policy | C16: Social Performance Policy
B17: Environmental Policy | C17: Environmental Policy
B18: Human Rights Policy | C18: Human Rights Policy
B19: Responsible Sourcing of Minerals Policy | C19: Responsible Sourcing of Minerals Policy
B20: Stakeholder Engagement page on fcx.com | C20: Stakeholder Engagement
B21: Voluntary Memberships & Commitments page on fcx.com | C21: Voluntary Memberships & Commitments
B22: Economic Value Contributed page on fcx.com | C22: Economic Value Contributed
B23: People page on fcx.com | C23: People
B24: Health & Safety page on fcx.com | C24: Health & Safety
B25: Labor Relations page on fcx.com | C25: Labor Relations
B26: Indigenous Peoples page on fcx.com | C26: Indigenous Peoples
B27: Land Use and Customary Rights page on fcx.com | C27: Land Use and Customary Rights
B28: Human Rights page on fcx.com | C28: Human Rights
B29: OECD Step 5 Due Diligence Report | C29: OECD Step 5 Due Diligence Report
B30: UK Modern Slavery Act Statement | C30: UK Modern Slavery Act Statement
B31: Voluntary Principles (VPs) Report | C31: Voluntary Principles on Security and Human Rights, Annual Report to the Plenary
B32: Communities page on fcx.com | C32: Communities
B33: Community Engagement & Social Investments page on fcx.com | C33: Community Engagement & Social Investments
B34: Assessing & Managing Impacts page on fcx.com | C34: Assessing & Managing Impacts
B35: Public Health page on fcx.com | C35: Public Health
B36: FMJobs page on fcx.com | C36: FMJobs
B37: Environment page on fcx.com | C37: Environment
B38: 2020 Climate Report | C38: 2020 Climate Report
B39: 2019 Climate Report | C39: 2019 Climate Report
B40: Water Report | C40: 2019 Water Report
B41: Tailings Management page on fcx.com | C41: Tailings Management
B42: Tailings Management and Stewardship | C42: Tailings Management and Stewardship Summary
B43: Tailings Management & Stewardship page on fcx.com | C43: Tailings Management & Stewardship
B44: Overview of Tailings Management and Stewardship Program | C44: Overview of Tailings Management and Stewardship Program
B45: Biodiversity page on fcx.com | C45: Biodiversity
B46: External Assurance page on fcx.com | C46: External Assurance
B47: Sustainability Reports and Documents Archive on fcx.com | C47: Sustainability Reports and Documents Archive
B48: ESG Performance Data | C48: ESG Performance Data

Sheet GHG Emissions
B1: FCX - ESG PERFORMANCE TREND DATA
B2: ENVIRONMENT
C3: 2016 | D3: 2017 | E3: 2018 | F3: 2019 | G3: 2020
B5: GHG Emissions
B6: Scope 1 (CO2e metric tons)
B7: FMC Mining1
B8: Bagdad | C8: 131101.4558 | D8: 131304.7121 | E8: 148112.3342 | F8: 160559.3594 | G8: 162715.2772
B9: Cerro Verde | C9: 465540.3278 | D9: 492084.7737 | E9: 578103.4269 | F9: 638972.1618 | G9: 564127.3389
B10: Chino / Cobre | C10: 173879.3887 | D10: 159014.2262 | E10: 167046.8931 | F10: 148576.0101 | G10: 53110.82537
B11: Climax | C11: 41365.86044 | D11: 37165.34932 | E11: 41949.70969 | F11: 51414.35551 | G11: 34558.29011
B12: El Abra | C12: 107513.2285 | D12: 90178.43025 | E12: 133702.954 | F12: 141452.3374 | G12: 80540
B13: Henderson | C13: 18824.70812 | D13: 17670.49774 | E13: 18860.25719 | F13: 19965.71811 | G13: 17232
B14: Morenci | C14: 521925.4986 | D14: 533444.178 | E14: 615255.7409 | F14: 677159.4976 | G14: 627797.1249
B15: Safford / Lone Star | C15: 168274.6462 | D15: 145393.8504 | E15: 177236.3775 | F15: 217855.4219 | G15: 225196.5415
B16: Sierrita | C16: 107318.455 | D16: 123530.2584 | E16: 133626.8382 | F16: 151817.507 | G16: 119190.2418
B17: Tyrone | C17: 36564.81559 | D17: 33621.02262 | E17: 35825.67247 | F17: 37226.99398 | G17: 41910.10735
B18: Total FMC Mining | C18: =SUM(C8:C17) -> 1772308.385 | D18: =SUM(D8:D17) -> 1763407.299 | E18: =SUM(E8:E17) -> 2049720.204 | F18: =SUM(F8:F17) -> 2244999.363 | G18: =SUM(G8:G17) -> 1926377.747
B20: Downstream Processing2
B21: Atlantic Copper Smelter & Refinery | C21: 56040.47441 | D21: 55128.72437 | E21: 54007.82318 | F21: 55253.54821 | G21: 55745.02405
B22: Bayway Rod & Wire | C22: 1057.909045 | D22: 922.4221656 | E22: 1115.762969 | F22: 916.129875 | G22: -
B23: Ft. Madison Moly Special Products | C23: 17035.79504 | D23: 17344.10987 | E23: 14110.68227 | F23: 16708.94167 | G23: 17106.68831
B24: Kokkola Cobalt Refinery | C24: 5194.936087 | D24: 5286.953319 | E24: 4692.605704 | F24: 4277.105365 | G24: 3184.157191
B25: Miami Smelter & Rod | C25: 86767.72058 | D25: 83695.48001 | E25: 99751.90118 | F25: 93839.6963 | G25: 98602.18932
B26: Norwich Rod | C26: 18145.13712 | D26: 18511.27748 | E26: 18463.44557 | F26: 17735.43863 | G26: -
B27: Rotterdam | C27: 5928.291982 | D27: 7194.212076 | E27: 6925.207712 | F27: 8404.189378 | G27: 8238.179735
B28: Stowmarket | C28: 86.41443578 | D28: 136.0963503 | E28: 113.4024769 | F28: 119.2918284 | G28: 88.28203716
B29: El Paso Refinery & Rod | C29: 55584.91075 | D29: 56170.07766 | E29: 60472.64524 | F29: 71105.39761 | G29: 85612.88579
B30: Total Downstream Processing | C30: =SUM(C21:C29) -> 245841.5895 | D30: =SUM(D21:D29) -> 244389.3533 | E30: =SUM(E21:E29) -> 259653.4763 | F30: =SUM(F21:F29) -> 268359.7389 | G30: =SUM(G21:G29) -> 268577.4064
B32: Total PT-FI (Grasberg)3 | C32: 2775114 | D32: 2257149.193 | E32: 2651587.29 | F32: 2212265.31 | G32: 2034938.728
B34: Scope 1 Total - FCX Global | C34: =C18+C30+C32 -> 4793263.974 | D34: =D18+D30+D32 -> 4264945.845 | E34: =E18+E30+E32 -> 4960960.97 | F34: =F18+F30+F32 -> 4725624.412 | G34: =G18+G30+G32 -> 4229893.881
B36: Scope 24 (CO2e metric tons)
B37: FMC Mining1
B38: Bagdad | C38: 237601.8589 | D38: 238380.2321 | E38: 254016 | F38: 231111.44 | G38: 239608
B39: Cerro Verde | C39: 728463.9725 | D39: 605993.032 | E39: 264777.6115 | F39: 275538.5815 | G39: 231339
B40: Chino / Cobre | C40: 415231 | D40: 364726 | E40: 228615.0398 | F40: 226323.0659 | G40: 100720
B41: Climax | C41: 87236 | D41: 107602.501 | E41: 98908.59132 | F41: 96278.13657 | G41: 66230.51838
B42: El Abra | C42: 463155.803 | D42: 406976.77 | E42: 259702.8662 | F42: 238719.936 | G42: 224033.16
B43: Henderson | C43: 113942 | D43: 115481.8788 | E43: 105672.1102 | F43: 110116.4975 | G43: 103584.4054
B44: Morenci | C44: 1228179 | D44: 1023518.089 | E44: 985532.5327 | F44: 970178.0638 | G44: 949081
B45: Safford / Lone Star | C45: 161246 | D45: 99909.56928 | E45: 88718.25356 | F45: 98252.26528 | G45: 138629
B46: Sierrita | C46: 235800 | D46: 233126.7738 | E46: 389041.3056 | F46: 352222.0978 | G46: 408617
B47: Tyrone | C47: 163945 | D47: 154103.4795 | E47: 100009.2347 | F47: 106392.0225 | G47: 80071.02589
B48: Total FMC Mining | C48: =SUM(C38:C47) -> 3834800.634 | D48: =SUM(D38:D47) -> 3349818.325 | E48: =SUM(E38:E47) -> 2774993.546 | F48: =SUM(F38:F47) -> 2705132.107 | G48: =SUM(G38:G47) -> 2541913.11
B50: Downstream Processing2
B51: Atlantic Copper Smelter & Refinery | C51: 93064.986 | D51: 81987 | E51: 86275.75 | F51: 69957.75 | G51: 95748
B52: Bayway Rod & Wire | C52: 788 | D52: 767.8392273 | E52: 764.3567551 | F52: 772.9644773 | G52: -
B53: Ft. Madison Moly Special Products | C53: 21926 | D53: 19837.13797 | E53: 21088.33227 | F53: 22136.27382 | G53: 15698
B54: Kokkola Cobalt Refinery | C54: 22111.495 | D54: 22350.18625 | E54: 21840.28245 | F54: 22513.05 | G54: 6674.78
B55: Miami Smelter & Rod | C55: 185073 | D55: 175124.083 | E55: 235059.0543 | F55: 204127.7568 | G55: 207312
B56: Norwich Rod | C56: 5497 | D56: 5379.810578 | E56: 5448.726572 | F56: 4906.919591 | G56: -
B57: Rotterdam5 | C57: 0 | D57: 0 | E57: 0 | F57: 0 | G57: 0
B58: Stowmarket | C58: 658.6439712 | D58: 740.5616628 | E58: 507.5473407 | F58: 447.2506 | G58: 286.29592
B59: El Paso Refinery & Rod | C59: 37141 | D59: 35111.66746 | E59: 18843.30151 | F59: 13077.918 | G59: 18292.66286
B60: Total Downstream Processing | C60: =SUM(C51:C59) -> 366260.125 | D60: =SUM(D51:D59) -> 341298.2861 | E60: =SUM(E51:E59) -> 389827.3512 | F60: =SUM(F51:F59) -> 337939.8833 | G60: =SUM(G51:G59) -> 344011.7388
B62: Total PT-FI (Grasberg) | C62: 0 | D62: 0 | E62: 0 | F62: 0 | G62: 0
B64: Scope 2 Total - FCX Global | C64: =C48+C60+C62 -> 4201060.759 | D64: =D48+D60+D62 -> 3691116.611 | E64: =E48+E60+E62 -> 3164820.897 | F64: =F48+F60+F62 -> 3043071.99 | G64: =G48+G60+G62 -> 2885924.848
B66: Scope 1 + 24 (CO2e metric tons)
B67: FMC Mining1 | C67: =+C48+C18 -> 5607109.019 | D67: =+D48+D18 -> 5113225.624 | E67: =+E48+E18 -> 4824713.75 | F67: =+F48+F18 -> 4950131.47 | G67: =+G48+G18 -> 4468290.857
B68: Downstream Processing2 | C68: =C30+C60 -> 612101.7144 | D68: =D30+D60 -> 585687.6394 | E68: =E30+E60 -> 649480.8275 | F68: =F30+F60 -> 606299.6221 | G68: =G30+G60 -> 612589.1452
B69: PT-FI (Grasberg)3 | C69: =C32+C62 -> 2775114 | D69: =D32+D62 -> 2257149.193 | E69: =E32+E62 -> 2651587.29 | F69: =F32+F62 -> 2212265.31 | G69: =G32+G62 -> 2034938.728
B70: Scope 1 + 2 Total - FCX Global | C70: =+C67+C68+C69 -> 8994324.734 | D70: =+D67+D68+D69 -> 7956062.456 | E70: =+E67+E68+E69 -> 8125781.867 | F70: =+F67+F68+F69 -> 7768696.402 | G70: =+G67+G68+G69 -> 7115818.73
B72: Scope 36 (CO2e metric tons)
B73: Scope 3 Total - FCX Global | C73: 618819 | D73: 706214 | E73: 750332 | F73: 692336 | G73: 1729251
B75: 1. FMC Mining includes Bagdad, Cerro Verde, Chino (including Cobre), Climax, El Abra, Henderson, Morenci, Safford (including Lone Star), Sierrita and Tyrone.
B76: 2. Downstream Processing includes Atlantic Copper Smelter & Refinery, Bayway Rod & Wire, Ft. Madison Moly Special Products, Kokkola Cobalt Refinery, Miami Smelter & Rod, Norwich Rod, Rotterdam, Stowmarket and El Paso Refinery & Rod. In 2020, our Bayway Rod & Wire and Norwich Rod facilities were closed and decommissioned and therefore data has not been included in the table for these entities for 2020.
B77: 3. During the 2020 GHG verification process, an opportunity was identified to improve PT-FI Scope 1 emissions calculations by switching to actual heating value for coal. The calculations have been restated accordingly back to 2016.
B78: 4. 2015-2017 Scope 2 emissions were calculated using a location-based method; 2018-2020 Scope 2 emissions were calculated using a market-based method with the exception of Bayway Rod & Wire, Norwich Rod, El Abra, Ft. Madison, Kokkola and Stowmarket which are calculated using location-based grid factors and amount to less than 9% of our total Scope 2 emissions.
B79: 5. At our Rotterdam operation we purchase renewable energy certificates for all electricity.
B80: 6. In 2021, we expanded our Scope 3 emissions calculations to include additional categories in line with the WRI/WBCSD GHG Protocol. As a result, our 2020 Scope 3 emissions figures here are higher than the Scope 3 emissions reported in our 2020 Annual Report on Sustainability, with the figures in this report being the most current. Our Scope 3 emissions calculation effort is ongoing with the aim of identifying and reporting across all relevant Scope 3 emissions sources in 2022.
B81: Note: GHG emissions data have been prepared in accordance with the WRI/WBCSD GHG Protocol. FCX reports carbon emissions on 100% operational basis per the WRI/WBCSD GHG Protocol. However, FCX reports certain financial information, such as consolidated revenue, net of Morenci’s undivided joint venture partners’ interest. FCX owns a 72% undivided interest in Morenci. FCX's GHG emissions verification statement is available at fcx.com/sustainability.

Sheet GHG Emissions - 2030 Targets
B1: FCX - ESG PERFORMANCE TREND DATA
B2: ENVIRONMENT
C3: 2016 | D3: 2017 | E3: 2018 | F3: 2019 | G3: 2020
B5: 2030 GHG Emissions Intensity Reduction Targets1
B6: (CO2e metric tons / metric tons cu)
B7: Freeport Americas Copper2 Intensity Target for 2030 | C7: N/A | D7: N/A | E7: 3.17 | F7: 3.17 | G7: 3.17
B8: Freeport Americas Copper2 Intensity | C8: 3.67 | D8: 3.73 | E8: 3.72 | F8: 3.7 | G8: 3.81
B9: PT-FI (Grasberg)3 Intensity Target for 2030 | C9: N/A | D9: N/A | E9: 3.34 | F9: 3.34 | G9: 3.34
B10: PT-FI (Grasberg)3 Intensity | C10: 5.7 | D10: 4.93 | E10: 4.76 | F10: 7.73 | G10: 5.4
B12: 1. Intensity targets include total (Scope 1 and Scope 2) emissions and do not include by-products in the denominator. Baseline and target are calculated (total emissions / payable copper) and therefore may differ due to rounding error.
B13: 2. Freeport Americas Copper (for target) includes Bagdad, Cerro Verde, Chino (including Cobre), El Abra, Morenci, Safford (including Lone Star), Sierrita and Tyrone mines as well as the Miami Smelter and El Paso Refinery. The Freeport Americas Copper intensity target includes all payable copper forms up to cathode (which includes concentrate, anode, and cathode) but excludes rod and wire.
B14: 3. Our PT-FI intensity reduction target is based on payable copper produced in concentrate. PT-FI concentrate is currently smelted and refined by PTS and third-party smelters / refineries, which are currently accounted for in our Scope 3 emissions estimates (not included in the target). Upon completion of the PTS expansion for which PT-FI will have majority ownership and the construction of the new greenfield smelter at Gresik, GHG emissions for smelting and refining are expected to shift from Scope 3 to Scopes 1 and 2. We will adjust our target and baseline in line with the WRI/WBCSD GHG Protocol at such time.

Sheet Energy Consumption - by site
B1: FCX - ESG PERFORMANCE TREND DATA
B2: ENVIRONMENT
C3: 2016 | D3: 2017 | E3: 2018 | F3: 2019 | G3: 2020
B5: Energy Consumption by Site
B6: Direct Energy (TJ)
B7: FMC Mining
B8: Bagdad | C8: 1673 | D8: 1667 | E8: 1873 | F8: 2031 | G8: 2077
B9: Cerro Verde | C9: 5784 | D9: 6123 | E9: 7193 | F9: 7946 | G9: 7093
B10: Chino / Cobre | C10: 2093 | D10: 1918 | E10: 2131 | F10: 1803 | G10: 706
B11: Climax | C11: 589 | D11: 530 | E11: 584 | F11: 694 | G11: 497
B12: El Abra | C12: 1321 | D12: 1132 | E12: 1676 | F12: 1767 | G12: 1031
B13: Henderson | C13: 355 | D13: 305 | E13: 319 | F13: 324 | G13: 325
B14: Morenci | C14: 6583 | D14: 6834 | E14: 7938 | F14: 8749 | G14: 8088
B15: Safford / Lone Star | C15: 704 | D15: 629 | E15: 1262 | F15: 1667 | G15: 2008
B16: Sierrita | C16: 1353 | D16: 1586 | E16: 1699 | F16: 1924 | G16: 1513
B17: Tyrone | C17: 452 | D17: 414 | E17: 443 | F17: 456 | G17: 515
B18: Total FMC Mining | C18: 20905 | D18: 21138 | E18: 25117 | F18: 27361 | G18: 23853
B20: Downstream Processing
B21: Atlantic Copper Smelter & Refinery | C21: 905 | D21: 881 | E21: 846 | F21: 874 | G21: 895
B22: Bayway Rod & Wire | C22: 21 | D22: 18 | E22: 22 | F22: 18 | G22: -
B23: Ft. Madison Moly Special Products | C23: 325 | D23: 332 | E23: 276 | F23: 325 | G23: 339
B24: Kokkola Cobalt Refinery | C24: 87 | D24: 88 | E24: 78 | F24: 71 | G24: 53
B25: Miami Smelter & Rod | C25: 1672 | D25: 1586 | E25: 1921 | F25: 1795 | G25: 1910
B26: Norwich Rod | C26: 360 | D26: 367 | E26: 366 | F26: 351 | G26: -
B27: Rotterdam | C27: 117 | D27: 143 | E27: 137 | F27: 164 | G27: 163
B28: Stowmarket | C28: 1 | D28: 1 | E28: 2 | F28: 2 | G28: 1
B29: El Paso Refinery & Rod | C29: 1101 | D29: 1112 | E29: 1197 | F29: 1408 | G29: 1694
B30: Total Downstream Processing | C30: 4588 | D30: 4529 | E30: 4844 | F30: 5009 | G30: 5056
B32: Total PT-FI (Grasberg) | C32: 32841 | D32: 27132 | E32: 31357 | F32: 26066 | G32: 24217
B34: Direct Energy Total - FCX Global | C34: 58334 | D34: 52799 | E34: 61318 | F34: 58436 | G34: 53127
B36: Indirect Energy (TJ)
B37: FMC Mining
B38: Bagdad | C38: 2011 | D38: 2017 | E38: 2072 | F38: 2080 | G38: 2088
B39: Cerro Verde | C39: 12253 | D39: 12179 | E39: 12731 | F39: 12868 | G39: 11005
B40: Chino / Cobre | C40: 2080 | D40: 1827 | E40: 1724 | F40: 1641 | G40: 886
B41: Climax | C41: 468 | D41: 577 | E41: 644 | F41: 674 | G41: 464
B42: El Abra | C42: 2175 | D42: 1895 | E42: 2233 | F42: 2119 | G42: 1988
B43: Henderson | C43: 611 | D43: 619 | E43: 689 | F43: 771 | G43: 726
B44: Morenci | C44: 10394 | D44: 8662 | E44: 8608 | F44: 8521 | G44: 8251
B45: Safford / Lone Star | C45: 1365 | D45: 846 | E45: 775 | F45: 863 | G45: 1203
B46: Sierrita | C46: 1996 | D46: 1973 | E46: 2067 | F46: 1996 | G46: 2315
B47: Tyrone | C47: 821 | D47: 772 | E47: 755 | F47: 771 | G47: 715
B48: Total FMC Mining | C48: 34173 | D48: 31369 | E48: 32297 | F48: 32305 | G48: 29642
B50: Downstream Processing
B51: Atlantic Copper Smelter & Refinery | C51: 1255 | D51: 1181 | E51: 1046 | F51: 1007 | G51: 1032
B52: Bayway Rod & Wire | C52: 11 | D52: 11 | E52: 12 | F52: 12 | G52: -
B53: Ft. Madison Moly Special Products | C53: 173 | D53: 157 | E53: 155 | F53: 163 | G53: 145
B54: Kokkola Cobalt Refinery | C54: 325 | D54: 328 | E54: 321 | F54: 331 | G54: 98
B55: Miami Smelter & Rod | C55: 1566 | D55: 1482 | E55: 1917 | F55: 1729 | G55: 1889
B56: Norwich Rod | C56: 87 | D56: 85 | E56: 85 | F56: 76 | G56: -
B57: Rotterdam | C57: 55 | D57: 60 | E57: 64 | F57: 61 | G57: 46
B58: Stowmarket | C58: 5 | D58: 6 | E58: 6 | F58: 6 | G58: 4
B59: El Paso Refinery & Rod | C59: 279 | D59: 264 | E59: 278 | F59: 191 | G59: 269
B60: Total Downstream Processing | C60: 3757 | D60: 3574 | E60: 3884 | F60: 3577 | G60: 3483
B62: Total PT-FI (Grasberg) | C62: 0 | D62: 0 | E62: 0 | F62: 0 | G62: 0
B64: Indirect Energy Total - FCX Global | C64: 37930 | D64: 34943 | E64: 36182 | F64: 35881 | G64: 33125
B66: Total Energy (TJ)
B67: FMC Mining | C67: 55078 | D67: 52507 | E67: 57414 | F67: 59666 | G67: 53495
B68: Downstream Processing | C68: 8345 | D68: 8103 | E68: 8729 | F68: 8586 | G68: 8540
B69: PT-FI (Grasberg) | C69: 32841 | D69: 27132 | E69: 31357 | F69: 26066 | G69: 24217
B70: Total - FCX Global | C70: 96264 | D70: 87741 | E70: 97500 | F70: 94317 | G70: 86252
B72: Note: In 2020, our Bayway Rod & Wire and Norwich Rod facilities were closed and decommissioned and therefore data has not been included in the table for these entities for 2020. Certain energy calculations have been restated back to 2016, including B20 biodiesel, and energy related to the divested Tenke Fungurume mine has been excluded.

Sheet 2020 Energy Consumption - Type
B1: FCX - ESG PERFORMANCE TREND DATA
B2: 2020 ENERGY CONSUMPTION BY TYPE | C2: Direct Energy | F2: Indirect Energy | I2: Total Energy | L2: % Renewable
B3: (TJ, except percentages) | C3: Renewable | D3: Nonrenewable | E3: Total | F3: Renewable | G3: Nonrenewable | H3: Total | I3: Renewable | J3: Nonrenewable | K3: Total
B4: FMC Mining
B5: Bagdad | C5: 96.80272097 | D5: 1980.548403 | E5: 2077.351124 | F5: 394.6789476 | G5: 1693.569452 | H5: 2088.2484 | I5: 491.4816686 | J5: 3674.117856 | K5: 4165.599524 | L5: 0.1179858183
B6: Cerro Verde | C6: 351.3094237 | D6: 6741.981421 | E6: 7093.290845 | F6: 6779.36065 | G6: 4226.09495 | H6: 11005.4556 | I6: 7130.670073 | J6: 10968.07637 | K6: 18098.74644 | L6: 0.393986959
B7: Chino / Cobre | C7: 0 | D7: 705.968674 | E7: 705.968674 | F7: 15.9556392 | G7: 870.4687608 | H7: 886.4244 | I7: 15.9556392 | J7: 1576.437435 | K7: 1592.393074 | L7: 0.01001991246
B8: Climax | C8: 0 | D8: 497.17046 | E8: 497.17046 | F8: 104.8494456 | G8: 359.0861544 | H8: 463.9356 | I8: 104.8494456 | J8: 856.2566144 | K8: 961.10606 | L8: 0.1090924821
B9: El Abra | C9: 32.5 | D9: 998.0332 | E9: 1030.5332 | F9: 391.72662 | G9: 1596.73338 | H9: 1988.46 | I9: 424.22662 | J9: 2594.76658 | K9: 3018.9932 | L9: 0.1405192367
B10: Henderson | C10: 9.9 | D10: 314.6290378 | E10: 324.5290378 | F10: 163.9843344 | G10: 561.6100656 | H10: 725.5944 | I10: 173.8843344 | J10: 876.2391034 | K10: 1050.123438 | L10: 0.1655846619
B11: Morenci | C11: 353.8974865 | D11: 7734.122493 | E11: 8088.01998 | F11: 668.3084172 | G11: 7582.412783 | H11: 8250.7212 | I11: 1022.205904 | J11: 15316.53528 | K11: 16338.74118 | L11: 0.06256332066
B12: Safford / Lone Star | C12: 0 | D12: 2007.782302 | E12: 2007.782302 | F12: 95.00942268 | G12: 1107.641497 | H12: 1202.65092 | I12: 95.00942268 | J12: 3115.423799 | K12: 3210.433222 | L12: 0.02959395699
B13: Sierrita | C13: 0 | D13: 1513.429106 | E13: 1513.429106 | F13: 300.972204 | G13: 2014.198596 | H13: 2315.1708 | I13: 300.972204 | J13: 3527.627702 | K13: 3828.599906 | L13: 0.07861155811
B14: Tyrone | C14: 0 | D14: 515.038069 | E14: 515.038069 | F14: 10.72548 | G14: 704.30652 | H14: 715.032 | I14: 10.72548 | J14: 1219.344589 | K14: 1230.070069 | L14: 0.008719405724
B15: Total FMC Mining | C15: 844.4096312 | D15: 23008.70317 | E15: 23853.1128 | F15: 8925.57116 | G15: 20716.12216 | H15: 29641.69332 | I15: 9769.980791 | J15: 43724.82533 | K15: 53494.80612 | L15: 0.1826341939
B17: Downstream Processing
B18: Atlantic Copper Smelter & Refinery | C18: 0 | D18: 894.7161564 | E18: 894.7161564 | F18: 144 | G18: 888 | H18: 1032.0192 | I18: 144 | J18: 1783 | K18: 1927 | L18: 0.08
B19: Ft. Madison Moly Special Products | C19: 0 | D19: 339.4523821 | E19: 339.4523821 | F19: 56.7769536 | G19: 88.4326464 | H19: 145.2096 | I19: 56.7769536 | J19: 427.8850285 | K19: 484.6619821 | L19: 0.117147529
B20: Kokkola Cobalt Refinery | C20: 0 | D20: 53.3388191 | E20: 53.3388191 | F20: 36.8774784 | G20: 61.2009216 | H20: 98.0784 | I20: 36.8774784 | J20: 114.5397407 | K20: 151.4172191 | L20: 0.2435487762
B21: Miami Smelter & Rod | C21: 0 | D21: 1910.491283 | E21: 1910.491283 | F21: 219.14604 | G21: 1670.04396 | H21: 1889.19 | I21: 219.14604 | J21: 3580.535243 | K21: 3799.681283 | L21: 0.05767484788
B22: Rotterdam | C22: 0 | D22: 162.803557 | E22: 162.803557 | F22: 45.58 | G22: 0 | H22: 45.5796 | I22: 45.58 | J22: 162.803557 | K22: 208.383557 | L22: 0.2187316895
B23: Stowmarket | C23: 0 | D23: 1.334048 | E23: 1.334048 | F23: 1.1007792 | G23: 3.3200208 | H23: 4.4208 | I23: 1.1007792 | J23: 4.6540688 | K23: 5.754848 | L23: 0.1912785881
B24: El Paso Refinery & Rod | C24: 0 | D24: 1694.278252 | E24: 1694.278252 | F24: 0 | G24: 268.8516 | H24: 268.8516 | I24: 0 | J24: 1963.129852 | K24: 1963.129852 | L24: 0
B25: Total Downstream Processing | C25: 0 | D25: 5056.414498 | E25: 5056.414498 | F25: 503.4812512 | G25: 2979.849149 | H25: 3483.3492 | I25: 503.4812512 | J25: 8036.54749 | K25: 8540.028741 | L25: 0.05895545161
B27: Total PT-FI (Grasberg) | C27: 69.18 | D27: 24148.1292 | E27: 24217.3092 | F27: 0 | G27: 0 | H27: 3.6e-07 | I27: 69.18 | J27: 24148.1292 | K27: 24217.3092 | L27: 0.00285663446
B29: Total - FCX Global | C29: 913.5896312 | D29: 52213.24686 | E29: 53126.8365 | F29: 9429.052411 | G29: 23695.97131 | H29: 33125.04252 | I29: 10342.64204 | J29: 75909.50202 | K29: 86252.14406 | L29: 0.1199117095
B31: Note: In 2020, our Bayway Rod & Wire and Norwich Rod facilities were closed and decommissioned and therefore data has not been included in the table for these entities for 2020.

Sheet 2020 Indirect Energy - Source
B1: FCX - ESG PERFORMANCE TREND DATA
B2: 2020 INDIRECT ENERGY CONSUMED BY SOURCE
B3: Energy by Source (%) | C3: Geothermal | D3: Solar | E3: Wind | F3: Nuclear | G3: Hydro | H3: Biomass | I3: Other Fossil | J3: Gas | K3: Oil | L3: Coal / Coke | M3: Other
B4: FMC Mining
B5: Bagdad | C5: 0.032 | D5: 0.041 | E5: 0.017 | F5: 0.176 | G5: 0.095 | H5: 0.004 | I5: 0 | J5: 0.385 | K5: 0 | L5: 0.25 | M5: 0
B6: Cerro Verde | C6: 0 | D6: 0.015 | E6: 0.035 | F6: 0 | G6: 0.561 | H6: 0.005 | I6: 0 | J6: 0.382 | K6: 0.002 | L6: 0 | M6: 0
B7: Chino / Cobre | C7: 0.005 | D7: 0.006 | E7: 0.002 | F7: 0.026 | G7: 0.005 | H7: 0 | I7: 0 | J7: 0.919 | K7: 0 | L7: 0.037 | M7: 0
B8: Climax | C8: 0 | D8: 0.019 | E8: 0.176 | F8: 0 | G8: 0.028 | H8: 0.003 | I8: 0 | J8: 0.296 | K8: 0 | L8: 0.476 | M8: 0.002
B9: El Abra | C9: 0 | D9: 0 | E9: 0.021 | F9: 0 | G9: 0.176 | H9: 0 | I9: 0.016 | J9: 0.259 | K9: 0.052 | L9: 0.441 | M9: 0.035
B10: Henderson | C10: 0 | D10: 0.019 | E10: 0.176 | F10: 0 | G10: 0.028 | H10: 0.003 | I10: 0 | J10: 0.296 | K10: 0 | L10: 0.476 | M10: 0.002
B11: Morenci | C11: 0.02 | D11: 0.026 | E11: 0.013 | F11: 0.111 | G11: 0.02 | H11: 0.002 | I11: 0 | J11: 0.651 | K11: 0 | L11: 0.157 | M11: 0
B12: Safford / Lone Star | C12: 0.02 | D12: 0.026 | E12: 0.011 | F12: 0.111 | G12: 0.02 | H12: 0.002 | I12: 0 | J12: 0.652 | K12: 0 | L12: 0.158 | M12: 0
B13: Sierrita | C13: 0 | D13: 0.07 | E13: 0.06 | F13: 0 | G13: 0 | H13: 0 | I13: 0 | J13: 0.3 | K13: 0 | L13: 0.55 | M13: 0.02
B14: Tyrone | C14: 0.004 | D14: 0.005 | E14: 0.002 | F14: 0.021 | G14: 0.004 | H14: 0 | I14: 0 | J14: 0.934 | K14: 0 | L14: 0.03 | M14: 0
B17: Downstream Processing
B18: Atlantic Copper Smelter & Refinery | C18: 0 | D18: 0.01 | E18: 0.09 | F18: 0.36 | G18: 0.04 | H18: 0 | I18: 0.115 | J18: 0.283 | K18: 0.027 | L18: 0.032 | M18: 0.044
B19: Ft. Madison Moly Special Products | C19: 0 | D19: 0 | E19: 0.369 | F19: 0.086 | G19: 0.017 | H19: 0.005 | I19: 0 | J19: 0.054 | K19: 0.005 | L19: 0.463 | M19: 0.001
B20: Kokkola Cobalt Refinery | C20: 0 | D20: 0.05 | E20: 0.188 | F20: 0.206 | G20: 0.138 | H20: 0.013 | I20: 0 | J20: 0.169 | K20: 0.051 | L20: 0.161 | M20: 0.024
B21: Miami Smelter & Rod | C21: 0 | D21: 0.046 | E21: 0.005 | F21: 0.279 | G21: 0.063 | H21: 0.002 | I21: 0 | J21: 0.33 | K21: 0 | L21: 0.275 | M21: 0
B22: Rotterdam1 | C22: 0 | D22: 0 | E22: 0 | F22: 0 | G22: 0 | H22: 0 | I22: 0 | J22: 0 | K22: 0 | L22: 0 | M22: 1
B23: Stowmarket | C23: 0.049 | D23: 0.049 | E23: 0.051 | F23: 0.21 | G23: 0.051 | H23: 0.049 | I23: 0.011 | J23: 0.42 | K23: 0.01 | L23: 0.09 | M23: 0.01
B24: El Paso Refinery & Rod | C24: 0 | D24: 0 | E24: 0 | F24: 0 | G24: 0 | H24: 0 | I24: 0 | J24: 0.99 | K24: 0.01 | L24: 0 | M24: 0
B27: PT-FI (Grasberg) | C27: 0 | D27: 0 | E27: 0 | F27: 0 | G27: 0 | H27: 0 | I27: 0 | J27: 0 | K27: 0 | L27: 0 | M27: 0
B29: 1. At our Rotterdam operation we purchase renewable energy certificates for all electricity.
B30: Note: In 2020, our Bayway Rod & Wire and Norwich Rod facilities were closed and decommissioned and therefore data has not been included in the table for these entities for 2020.

Sheet 2020 Direct Energy - Source
B1: FCX - ESG PERFORMANCE TREND DATA
B2: 2020 DIRECT ENERGY CONSUMED BY SOURCE
B3: Energy by Source (TJ) | C3: Coal / Coke | D3: Diesel | E3: B5 Biodiesel | F3: B20 Biodiesel | G3: B30 Biodiesel | H3: Gasoline | I3: Natural Gas | J3: Propane / LPG | K3: Aviation Fuel | L3: Used Oil | M3: Other
B4: FMC Mining
B5: Bagdad | C5: 0 | D5: 0 | E5: 1936.1 | F5: 0 | G5: 0 | H5: 31 | I5: 109.2 | J5: 1 | K5: 0 | L5: 0 | M5: 0
B6: Cerro Verde | C6: 0 | D6: 32.3 | E6: 7026.2 | F6: 0 | G6: 0 | H6: 34.8 | I6: 0 | J6: 0 | K6: 0 | L6: 0 | M6: 0
B7: Chino / Cobre | C7: 0 | D7: 534.1 | E7: 0 | F7: 0 | G7: 0 | H7: 20.9 | I7: 147.4 | J7: 3.6 | K7: 0 | L7: 0 | M7: 0
B8: Climax | C8: 0 | D8: 295.2 | E8: 0 | F8: 0 | G8: 0 | H8: 9.2 | I8: 191.7 | J8: 1 | K8: 0 | L8: 0 | M8: 0
B9: El Abra1 | C9: 0 | D9: 988.3 | E9: 0 | F9: 0 | G9: 0 | H9: 4.8 | I9: 0 | J9: 5 | K9: 0 | L9: 0 | M9: 33
B10: Henderson | C10: 0 | D10: 12.6 | E10: 0 | F10: 0 | G10: 33 | H10: 4.1 | I10: 272.9 | J10: 1.9 | K10: 0 | L10: 0 | M10: 0
B11: Morenci | C11: 0 | D11: 190.5 | E11: 7077.9 | F11: 0 | G11: 0 | H11: 137.6 | I11: 680.5 | J11: 1.5 | K11: 0 | L11: 0 | M11: 0
B12: Safford / Lone Star | C12: 0 | D12: 1917.9 | E12: 0 | F12: 0 | G12: 0 | H12: 51.3 | I12: 0 | J12: 38.6 | K12: 0 | L12: 0 | M12: 0
B13: Sierrita | C13: 0 | D13: 1330.6 | E13: 0 | F13: 0 | G13: 0 | H13: 33.8 | I13: 143.6 | J13: 5.4 | K13: 0 | L13: 0 | M13: 0
B14: Tyrone | C14: 0 | D14: 475.4 | E14: 0 | F14: 0 | G14: 0 | H14: 15.3 | I14: 22.2 | J14: 2.2 | K14: 0 | L14: 0 | M14: 0
B15: Total FMC Mining | C15: 0 | D15: 5776.9 | E15: 16040.2 | F15: 0 | G15: 33 | H15: 342.7 | I15: 1567.5 | J15: 60.3 | K15: 0 | L15: 0 | M15: 33
B17: Downstream Processing
B18: Atlantic Copper Smelter & Refinery | C18: 79.9 | D18: 192.9 | E18: 0 | F18: 0 | G18: 0 | H18: 0 | I18: 622 | J18: 0 | K18: 0 | L18: 0 | M18: 0
B19: Ft. Madison Moly Special Products | C19: 0 | D19: 0.2 | E19: 0 | F19: 0 | G19: 0 | H19: 0.1 | I19: 337.7 | J19: 1.5 | K19: 0 | L19: 0 | M19: 0
B20: Kokkola Cobalt Refinery | C20: 0 | D20: 0.5 | E20: 0 | F20: 0 | G20: 0 | H20: 0 | I20: 0 | J20: 52.9 | K20: 0 | L20: 0 | M20: 0
B21: Miami Smelter & Rod | C21: 0 | D21: 58 | E21: 0 | F21: 0 | G21: 0 | H21: 12.6 | I21: 1837.5 | J21: 2.4 | K21: 0 | L21: 0 | M21: 0
B22: Rotterdam | C22: 0 | D22: 0.7 | E22: 0 | F22: 0 | G22: 0 | H22: 0 | I22: 162.1 | J22: 0 | K22: 0 | L22: 0 | M22: 0
B23: Stowmarket | C23: 0 | D23: 0.7 | E23: 0 | F23: 0 | G23: 0 | H23: 0 | I23: 0.7 | J23: 0 | K23: 0 | L23: 0 | M23: 0
B24: El Paso Refinery & Rod | C24: 0 | D24: 3.5 | E24: 0 | F24: 0 | G24: 0 | H24: 0.4 | I24: 1681.7 | J24: 8.8 | K24: 0 | L24: 0 | M24: 0
B25: Total Downstream Processing | C25: 79.9 | D25: 256.4 | E25: 0 | F25: 0 | G25: 0 | H25: 13.1 | I25: 4641.6 | J25: 65.4 | K25: 0 | L25: 0 | M25: 0
B27: PT-FI (Grasberg) | C27: 16495.6 | D27: 7089.8 | E27: 0 | F27: 22.5 | G27: 215.6 | H27: 23.9 | I27: 0 | J27: 0 | K27: 208 | L27: 162 | M27: 0
B29: Total - FCX Global | C29: 16575.4 | D29: 13123.1 | E29: 16040.2 | F29: 22.5 | G29: 248.6 | H29: 379.7 | I29: 6209.2 | J29: 125.8 | K29: 208 | L29: 162 | M29: 33
B31: 1. El Abra has a regenerative downhill conveyor system that is 20km in length that generates electricity for use on site as it transports material for processing.
B32: Note: In 2020, our Bayway Rod & Wire and Norwich Rod facilities were closed and decommissioned and therefore data has not been included in the table for these entities for 2020.

Sheet 2020 Energy Use - Type
B1: FCX - ESG PERFORMANCE TREND DATA
B2: 2020 TOTAL ENERGY USE BY TYPE | C2: FMC Mining1 | E2: Downstream Processing2 | G2: PT-FI (Grasberg)3 | I2: FCX GLOBAL
B3: (PJ, except percentages) | C3: Energy Consumed | D3: Percent of Total | E3: Energy Consumed | F3: Percent of Total | G3: Energy Consumed | H3: Percent of Total | I3: Energy Consumed | J3: Percent of Total
B4: Scope 1
B5: Liquid Hydrocarbons | C5: 22.19237542 | D5: =C5/C11 -> 0.4151061841 | E5: 0.2694757739 | F5: =E5/E11 -> 0.03155541341 | G5: 7.721742227 | H5: =G5/G11 -> 0.3188521961 | I5: =C5+E5+G5 -> 30.18359343 | J5: =I5/I11 -> 0.3500805434
B6: Coal | C6: 0 | D6: =C6/C11 -> 0 | E6: 0 | F6: =E6/E11 -> 0 | G6: 16.49556699 | H6: =G6/G11 -> 0.6811478039 | I6: =C6+E6+G6 -> 16.49556699 | J6: =I6/I11 -> 0.1913217215
B7: Gaseous Hydrocarbons | C7: 1.627855642 | D7: =C7/C11 -> 0.03044887854 | E7: 4.707088225 | F7: =E7/E11 -> 0.5511965426 | G7: 0 | H7: =G7/G11 -> 0 | I7: =C7+E7+G7 -> 6.334943867 | J7: =I7/I11 -> 0.07347503526
B8: Other4 | C8: 0 | D8: =C8/C11 -> 0 | E8: 0.0798504987 | F8: =E8/E11 -> 0.009350434219 | G8: 0 | H8: =G8/G11 -> 0 | I8: =C8+E8+G8 -> 0.0798504987 | J8: =I8/I11 -> 0.0009261357845
B9: Scope 25
B10: Purchased electricity | C10: 29.64169332 | D10: =C10/C11 -> 0.5544449374 | E10: 3.4833492 | F10: =E10/E11 -> 0.4078976097 | G10: 0 | H10: =G10/G11 -> 0 | I10: =C10+E10 -> 33.12504252 | J10: =I10/I11 -> 0.3841965641
B11: Total Energy Use | C11: 53.46192439 | D11: =D10+D8+D7+D6+D5 -> 1 | E11: 8.539763698 | F11: =F10+F8+F7+F6+F5 -> 1 | G11: 24.21730922 | H11: =H10+H8+H7+H6+H5 -> 1 | I11: =I10+I8+I7+I6+I5 -> 86.2189973 | J11: =J10+J8+J7+J6+J5 -> 1
B13: 1. FMC Mining includes Bagdad, Cerro Verde, Chino (including Cobre), Climax, El Abra, Henderson, Morenci, Safford (including Lone Star), Sierrita and Tyrone.
B14: 2. Downstream Processing includes Atlantic Copper Smelter & Refinery, Bayway Rod & Wire, Ft. Madison Moly Special Products, Kokkola Cobalt Refinery, Miami Smelter & Rod, Norwich Rod, Rotterdam, Stowmarket and El Paso Refinery & Rod. In 2020, our Bayway Rod & Wire and Norwich Rod facilities were closed and decommissioned and therefore data has not been included in the table for these entities for 2020.
B16: 3. During the 2020 GHG verification process, an opportunity was identified to improve PT-FI Scope 1 emissions calculations by switching to actual heating value for coal. The calculations have been restated accordingly back to 2016.
B17: 4. El Abra has a regenerative downhill conveyor system that is 20km in length that generates electricity for use on site as it transports material for processing. Energy associated with the regenerative conveyor belt does not represent additive Scope 1 or 2 consumption and therefore is not included here or on page 89 of our 2020 Annual Report on Sustainability.
B18: 5. 2015-2017 Scope 2 emissions were calculated using a location-based method; 2018-2020 Scope 2 emissions were calculated using a market-based method with the exception of Bayway Rod & Wire, Norwich Rod, El Abra, Ft. Madison, Kokkola and Stowmarket which are calculated using location-based grid factors and amount to less than 9% of our total Scope 2 emissions.
B19: Note: GHG emissions data have been prepared in accordance with the WRI/WBCSD GHG Protocol. FCX reports carbon emissions on 100% operational basis per the WRI/WBCSD GHG Protocol. However, FCX reports certain financial information, such as consolidated revenue, net of Morenci’s undivided joint venture partners’ interest. FCX owns a 72% undivided interest in Morenci. FCX's GHG emissions verification statement is available at fcx.com/sustainability.

Sheet Air Emissions
B1: FCX - ESG PERFORMANCE TREND DATA
B2: ENVIRONMENT
C3: 2016 | D3: 2017 | E3: 2018 | F3: 2019 | G3: 2020
B4: Air Emissions (thousand metric tons)
B5: CO, carbon monoxide | C5: 119.4 | D5: 102.8 | E5: 109.7 | F5: 117.6 | G5: 98.184
B6: NOX (excluding N2O), oxides of nitrogen | C6: 42.1 | D6: 39.09583 | E6: 41.5272 | F6: 47.88399 | G6: 39.88446
B7: SOX, oxides of sulfur | C7: 12.5 | D7: 11.11043 | E7: 12.24521 | F7: 7.16914 | G7: 7.27452
B8: PM10, particulate matter | C8: 25.1 | D8: 15.3484 | E8: 17.25662 | F8: 14.19757 | G8: 13.08317
B9: Hg, mercury | C9: 0.00014 | D9: 0.00021 | E9: 6e-05 | F9: 0.0001 | G9: 6e-05
B10: Pb, lead | C10: 0.02987 | D10: 0.02506 | E10: 0.02779 | F10: 0.02006 | G10: 0.01962
B11: VOCs, non-methane volatile organic compounds | C11: 10.2 | D11: 8.8 | E11: 9.4 | F11: 10.13219 | G11: 8.32688
B12: Ozone Depleting Substances, CFC-11 equivalent | C12: 6e-05 | D12: 0.00012 | E12: 8e-05 | F12: 2e-05 | G12: 2e-05

Sheet Environmental Events
B1: FCX - ESG PERFORMANCE TREND DATA
B2: ENVIRONMENT
C3: 2016 | D3: 2017 | E3: 2018 | F3: 2019 | G3: 2020
B4: Environmental Events
B5: Reportable spills or releases of hazardous or toxic chemicals1,2 | C5: 33 | D5: 25 | E5: 17 | F5: 33 | G5: 19
B6: NOVs related to permit exceedances, spills, releases or other compliance matters3 | C6: 5 | D6: 5 | E6: 10 | F6: 5 | G6: 7
B7: # of Significant Environmental Events (as defined on the Risk Register) | C7: 0 | D7: 0 | E7: 1 | F7: 0 | G7: 0
B8: Cumulative environmental penalties ($ thousands)4 | C8: 0 | D8: 317 | E8: 0 | F8: 125 | G8: 67.1
B10: 1. Reportable spills excludes spills at PT-FI associated with pipeline sabotage. Due to increased security efforts, the number of sabotage-related spills reported at PT-FI decreased from 68 in 2018, to 16 in 2019, to 8 in 2020.
B11: 2. 2020 reportable spills included four releases of 75 kg (or less) of NH3 or SO2 at our Rotterdam molybdenum plant associated with malfunctions of the catalytic oxidizer, down from 14 such events in 2019.
B12: 3. NOV is Notice of Violation. As NOVs are rescinded based on the legal appeals process, prior year data are updated.
B13: 4. 2017 penalties paid were from NOVs at Cerro Verde in 2006 and 2008. 2019 penalties paid were from NOVs at Sierrita for dust events in 2018 ($30,000) and a NOV at Cerro Verde in 2007 ($94,682). In addition, we agreed to fund a $200,000 Supplemental Environmental Project associated with the Sierrita dust events. The Cerro Verde fine was paid in 2019 from a regulatory inspection conducted in 2007 due to an extended legal appeal process. 2020 penalties paid were principally from a Sierrita dust event ($55,000) and the failure to obtain a CO2 permit at Rotterdam ($12,000).

Sheet Water
B1: FCX - ESG PERFORMANCE TREND DATA
B2: ENVIRONMENT
C3: 2016 | D3: 2017 | E3: 2018 | F3: 2019 | G3: 2020
B4: Water Utilization (thousand cubic meters)
B5: Groundwater | C5: 100922.824 | D5: 94316.051 | E5: 111722.6159 | F5: 99323.44165 | G5: 96749.452
B6: Surface water | C6: 121826.689 | D6: 110042.645 | E6: 68177.04389 | F6: 60475.318 | G6: 49787.893
B7: Sea water | C7: 0 | D7: 0 | E7: 46843.61539 | F7: 48578.18 | G7: 49217.925
B8: Stormwater | C8: 49032.0612 | D8: 43863.977 | E8: 52750.21512 | F8: 57153.05102 | G8: 41982.818
B9: Third-party Sources | C9: 30682.0051 | D9: 26814.467 | E9: 31126.65666 | F9: 37033.731 | G9: 23560.609
B10: Total New Water Withdrawn1 | C10: 302463.5793 | D10: 275037.14 | E10: 310620.1469 | F10: 302563.7217 | G10: 261298.697
B11: Total Water Recycled / Reused | C11: 1399835.094 | D11: 1285205.687 | E11: 1377971.277 | F11: 1408513.265 | G11: 1231053.229
B12: Total Utilized Water (Withdrawn + Recycled / Reused) | C12: 1702298.673 | D12: 1560242.827 | E12: 1688591.424 | F12: 1711076.987 | G12: 1492351.926
B13: Water Recycle / Reuse Rate2 | C13: 0.8223204987 | D13: 0.8237215802 | E13: 0.8160477766 | F13: 0.8231735194 | G13: 0.8249081249
B14: Total Water Discharged3 | C14: N/A | D14: N/A | E14: 106182.5232 | F14: 95884.564 | G14: 101962.798
B15: Water Use Efficiency4 (%) | C15: N/A | D15: N/A | E15: 0.8708060707 | F15: 0.8720405354 | G15: 0.8854019384
B17: 1. New water withdrawal includes new water that is received or extracted by operation and used for the first time. New water withdrawals include high quality freshwater and lower quality water and are categorized by type: groundwater, surface water, stormwater, sea water or third-party water. Water withdrawals exclude water diverted away from operational areas without use.
B18: 2. Water recycle/reuse rate = (total water recycled + reused) / total water utilized.
B19: 3. Water discharged is water removed from an operation and returned to the environment or a third-party after meeting all required treatment and discharge standards. In 2018, we began calculating water discharged and water use efficiency rate.
B20: 4. Water use efficiency rate = total water recycled + reused / (total water utilization – discharged water).
B22: 2020 Water Quality (thousand cubic meters) | C22: High Quality1 | D22: Low Quality1 | E22: Total
B23: Water Withdrawals
B24: Groundwater | C24: 83662.172 | D24: 13087.28 | E24: 96749.452
B25: Surface Water | C25: 49787.893 | D25: 0 | E25: 49787.893
B26: Sea Water | C26: 0 | D26: 49217.925 | E26: 49217.925
B27: Stormwater | C27: 37882.606 | D27: 4100.212 | E27: 41982.818
B28: Third-party Sources | C28: 21350.513 | D28: 2210.096 | E28: 23560.609
B29: Total New Water Withdrawn2 | C29: 192683.184 | D29: 68615.513 | E29: 261298.697
B31: Water Discharged Off-site3
B32: To Surface | C32: 10144.316 | D32: 2392.551 | E32: 12536.867
B33: To Sea, Ocean, or Estuary | C33: 18011.043 | D33: 70,421 4 | E33: 88432.185
B34: To Third-party | C34: 0 | D34: 993.746 | E34: 993.746
B35: Total Water Discharged Off-site | C35: 28155.359 | D35: 73807.439 | E35: 101962.798
B37: Change in Water Storage Volume | E37: -7416.304
B38: Total Water Consumption5 | C38: 100135.8402 | D38: 66616.3622 | E38: 166752.2024
B40: Total Water Recycled / Reused | E40: 1231053.229
B41: Total Utilized Water (Withdrawan + Recycled / Reused) | E41: =E29+E40 -> 1492351.926
B42: Water Recycle / Reuse Rate6 | E42: =E40/E41 -> 0.8249081249
B43: Water Use Efficiency Rate7 | E43: 0.89
B46: 1. Per ICMM guidance, we differentiate the quality of water withdrawn and discharged into high quality and low quality. ICMM high quality is equivalent to freshwater as defined by SASB. See table below for more information.
B47: 2. New water withdrawal includes new water that is received or extracted by operation and used for the first time. This includes high quality freshwater and lower quality water and are categorized by type: groundwater, surface water, stormwater, sea water or third-party water. Water withdrawals exclude water diverted away from operational areas without use.
B48: 3. Approximately 49% of water quantities discharged were associated with our Atlantic Copper Smelter where estuarine water is used for cooling and then returned to its source, 38% associated with PT-FI’s controlled riverine tailings management system and the remaining 13% is associated with our Climax and Henderson mines in Colorado.
B49: 4. Per ICMM guidelines, this quantity of discharged water is categorized as low quality due primarily to (a) the estuarine source water used at Atlantic Copper, which is already low quality due to salinity, and (b) the discharged water associated with the function of PT-FI’s controlled riverine Tailings system, which contains alkaline pH.
B50: 5. Water consumption = Total water withdrawn - discharged water - change in water storage volume.
B51: 6. Water recycle / reuse rate = total water reused + recycled / total water utilized.
B52: 7. Water use efficiency rate = total water reused + recycled / (total water utilization – discharged water).
B54: ICMM WATER QUALITY CATEGORIES | C54: MCA WATER ACCOUNTING FRAMEWORK (WAF) QUALITY CATEGORIES
B55: High Quality (Freshwater1) | C55: Category 1 High-quality water that may require minimal and inexpensive treatment to raise quality to appropriate drinking water standard (e.g., near potable water quality).
C56: Category 2 Medium-quality water that would require a moderate level of treatment to meet appropriate drinking water standard (e.g., agricultural use).
B57: Low Quality | C57: Category 3 Low-quality water that would require significant treatment to raise quality to appropriate drinking water standards (e.g., industrial and wastewater).
B58: 1. High quality water, as defined by ICMM, is equivalent to Fresh Water as defined by SASB.
B62: WATER SUPPLY RISKS
B63: OPERATION | C63: CLIMATE CONDITIONS1 | D63: WATER SOURCES2 | E63: WATER SUPPLY RISKS
E64: WATER STRESS3 | F64: EXCESS WATER | G64: ACCESS CHALLENGES4
B65: Bagdad | C65: Arid; Semi-desert | D65: Groundwater | E65: Low-Med
B66: Arizona | D66: Surface water
D67: Stormwater
D68: Third-party5
B69: Cerro Verde | C69: Arid; Desert | D69: Groundwater | E69: High | G69: X
B70: Arequipa, Peru | D70: Surface water
D71: Stormwater
D72: Third-party5
B73: Chino | C73: Arid; Semi-desert | D73: Groundwater | E73: Low-Med
B74: New Mexico | D74: Stormwater
D75: Third-party5
B77: Climax | C77: Snow; Fully humid | D77: Groundwater | E77: Low-Med | F77: X
B78: Colorado | D78: Surface water
D79: Stormwater
B81: El Abra | C81: Arid; Desert | D81: Groundwater | E81: Extremely High | G81: X
B82: Calama, Chile | D82: Stormwater
B85: Henderson | C85: Snow; Fully humid | D85: Groundwater | E85: Med-High | F85: X
B86: Colorado | D86: Surface water
D87: Stormwater
B89: Miami | C89: Arid; Semi-desert | D89: Groundwater | E89: Med-High | F89: X | G89: X
B90: Arizona | D90: Surface water
D91: Stormwater
D92: Third-party5
B93: Morenci | C93: Arid; Semi-desert | D93: Groundwater | E93: Med-High | G93: X
B94: Arizona | D94: Surface water
D95: Stormwater
D96: Third-party5
B97: PT-FI | C97: Tropical; Fully humid | D97: Groundwater | E97: Low | F97: X
B98: Papua, Indonesia | D98: Surface water
D99: Stormwater
B101: Safford | C101: Arid; Semi-desert | D101: Groundwater | E101: Med-High | G101: X
B102: Arizona | D102: Stormwater
B105: Sierrita | C105: Arid; Semi-desert | D105: Groundwater | E105: Med-High | G105: X
B106: Arizona | D106: Stormwater
B109: Tyrone | C109: Arid; Semi-desert | D109: Groundwater | E109: Low-Med
B110: New Mexico | D110: Stormwater
D111: Stormwater
B114: 1. Climate conditions based on the Köppen-Geiger climate classification terminology.
B115: 2. Water sources can include groundwater, surface water, stormwater, sea water, or third-party sources (including effluent).
B116: 3. Baseline water stress ratings are defined by a combination of the World Resources Institute’s (WRI) Aqueduct tool and its associated descriptors for baseline water stress, as well as our own qualitative assessments and local knowledge of the site-specific circumstances of withdrawal at each operation. For a more in-depth discussion, see our 2019 Water Report.
B117: 4. Access challenges can include legal challenges or potential changes in law or regulations that could impact our access to certain water supplies.
B118: 5. Third-party water sources are primarily sourced from wastewater effluent.

Sheet Land
B1: FCX - ESG PERFORMANCE TREND DATA
B2: ENVIRONMENT
C3: 2016 | D3: 2017 | E3: 2018 | F3: 2019 | G3: 2020
B4: Land (in hectares)
B5: New land disturbed during the year | C5: 540 | D5: 761 | E5: 971 | F5: 1465.14 | G5: 586.559
B6: Land rehabilitated during the year | C6: 101 | D6: 65 | E6: 84 | F6: 80 | G6: 89.62
B7: Total land disturbed to be rehabilitated | C7: 58286 | D7: 58982 | E7: 59870 | F7: 61255 | G7: 61862.4333

Sheet Tailings Impoundments
B1: FCX - ESG PERFORMANCE TREND DATA
B2: ENVIRONMENT
C3: 2016 | D3: 2017 | E3: 2018 | F3: 2019 | G3: 2020
B4: Number of Tailings Impoundments1,2
B5: Total Active | C5: 18 | D5: 19 | E5: 19 | F5: 18 | G5: 17
B6: Total Closed / Inactive | C6: 52 | D6: 56 | E6: 55 | F6: 58 | G6: 56
B7: Total Tailings Impoundments | C7: =+C6+C5 -> 70 | D7: =+D6+D5 -> 75 | E7: =+E6+E5 -> 74 | F7: =+F6+F5 -> 76 | G7: =+G6+G5 -> 73
B9: 1. Tailings impoundment counts include non-operating sites and are reviewed at least annually and updated according to construction of new facilities, changes in operating conditions, closure, business transactions, and legal reviews. FCX provides a full disclosure of tailings facilities, location, status, construction type and hazard categorization available at fcx.com/sites/fcx/files/documents/sustainability/supporting_data.pdf.
B10: 2. In 2020, facilities at Dante, a discontinued operation, were determined to not contain tailings material. One Tailings Storage Facility (TSF) at Morenci was fully integrated into another TSF. Another Morenci TSF’s status changed to inactive.

Sheet Mining.Mineral Processing Waste
B1: FCX - ESG PERFORMANCE TREND DATA
B2: ENVIRONMENT
C3: 2016 | D3: 2017 | E3: 2018 | F3: 2019 | G3: 2020
B4: Mining & Mineral Processing Waste (million metric tons)
B5: Tailings | C5: 304 | D5: 298 | E5: 324 | F5: 309 | G5: 259
B6: Overburden and Waste Rock | C6: 191 | D6: 154 | E6: 371 | F6: 445 | G6: 349
B7: Slags1 | C7: 0.57 | D7: 0.5057 | E7: 0.5873 | F7: 0.532 | G7: 0.6295
B8: Non-Mining Waste & Recyclable Material1
B9: Non-Hazardous (thousand metric tons)
B10: Recycled | C10: 57.975227 | D10: 64.2441184 | E10: 74.58588 | F10: 92.08583924 | G10: 61.307735
B11: Disposed - Landfill | C11: 58.7 | D11: 55.9 | E11: 58.9 | F11: 77.7 | G11: 52.7
B12: Disposed - Other | C12: 4.3 | D12: 2.8 | E12: 4.3 | F12: 4 | G12: 16.1
B13: Disposed On-site | C13: 55 | D13: 44.6 | E13: 41.9 | F13: 61.4 | G13: 25
B14: Total Non-Hazardous Waste and Recyclable Material | C14: =C10+C11+C12+C13 -> 175.975227 | D14: =D10+D11+D12+D13 -> 167.5441184 | E14: =E10+E11+E12+E13 -> 179.68588 | F14: =F10+F11+F12+F13 -> 235.1858392 | G14: =G10+G11+G12+G13 -> 155.107735
B15: Hazardous (thousand metric tons)
B16: Recycled | C16: 37.158117 | D16: 27.809763 | E16: 48.083181 | F16: 51.412274 | G16: 52.6756848
B17: Disposed - Landfill | C17: 35.4 | D17: 28.9 | E17: 27.3 | F17: 26.6 | G17: 4
B18: Stored On-site | C18: 0.4 | D18: 0.2 | E18: 0 | F18: 0 | G18: 0
B19: Treated | C19: 27.5 | D19: 20.2 | E19: 22.6 | F19: 25.7 | G19: 17.5
B20: Total Hazardous Waste and Recyclable Material | C20: =C16+C17+C18+C19 -> 100.458117 | D20: =D16+D17+D18+D19 -> 77.109763 | E20: =E16+E17+E18+E19 -> 97.983181 | F20: =F16+F17+F18+F19 -> 103.712274 | G20: =G16+G17+G18+G19 -> 74.1756848
B22: Total Non-Mining Waste Generated | C22: =C20+C14 -> 276.433344 | D22: =D20+D14 -> 244.6538814 | E22: =E20+E14 -> 277.669061 | F22: =F20+F14 -> 338.8981132 | G22: =G20+G14 -> 229.2834198
B23: % Recycled | C23: =(C10+C16)/C22 -> 0.3441456903 | D23: =(D10+D16)/D22 -> 0.3762616839 | E23: =(E10+E16)/E22 -> 0.4417815242 | F23: =(F10+F16)/F22 -> 0.4234255301 | G23: =(G10+G16)/G22 -> 0.4971289241
B25: 1. Certain waste streams (sludges and residues) that were previously reported as mining and mineral processing wastes have been reclassified and reported under the appropriate non-mining hazardous or non-hazardous category. Used oil is incorporated in respective recycled waste categories.

Sheet Health & Safety
B1: FCX - ESG PERFORMANCE TREND DATA
B2: SOCIAL
C3: 2016 | D3: 2017 | E3: 2018 | F3: 2019 | G3: 2020
B4: Health & Safety Performance1
B5: Total Number of Recordable Events | C5: 459 | D5: 433 | E5: 466 | F5: 528 | G5: 418
B6: % High Risk2 | C6: 0.132 | D6: 0.228 | E6: 0.107 | F6: 0.107 | G6: 0.067
B8: Number of Workplace Fatalities
B9: Full-time Employees | C9: 5 | D9: 3 | E9: 1 | F9: 1 | G9: 2
B10: Contract Employees | C10: 1 | D10: 2 | E10: 0 | F10: 2 | G10: 3
B11: Total Workplace Fatalities | C11: 6 | D11: 5 | E11: 1 | F11: 3 | G11: 5
B13: Total Recordable Incident Rate (TRIR)3
B14: Full-time Employees | C14: 0.91 | D14: 0.92 | E14: 0.85 | F14: 0.85 | G14: 0.8
B15: Contract Employees | C15: 0.39 | D15: 0.47 | E15: 0.46 | F15: 0.57 | G15: 0.5
B16: Total Workforce | C16: 0.71 | D16: 0.75 | E16: 0.71 | F16: 0.74 | G16: 0.69
B18: Fatality Rate4
B19: Full-time Employees | C19: 0.012 | D19: 0.009 | E19: 0.002 | F19: 0.002 | G19: 0.005
B20: Contract Employees | C20: 0.004 | D20: 0.009 | E20: 0 | F20: 0.007 | G20: 0.014
B21: Total Workforce | C21: 0.009 | D21: 0.009 | E21: 0.002 | F21: 0.004 | G21: 0.008
B23: Near Miss Frequency Rate (NMFR)5
B24: Full-time Employees | C24: 3.81 | D24: 4.03 | E24: 2.95 | F24: 2.64 | G24: 1.96
B25: Contract Employees | C25: 0.8976886201 | D25: 1 | E25: 1.47 | F25: 1.21 | G25: 0.99
B26: Total Workforce | C26: 2.72 | D26: 2.84 | E26: 2.41 | F26: 2.08 | G26: 1.61
B28: Lost Time Injury Frequency Rate (LTIR)6
B29: Full-time Employees | C29: 0.46 | D29: 0.46 | E29: 0.4 | F29: 0.38 | G29: 0.32
B30: Contract Employees | C30: 0.15 | D30: 0.2 | E30: 0.21 | F30: 0.25 | G30: 0.2
B31: Total Workforce | C31: 0.35 | D31: 0.36 | E31: 0.33 | F31: 0.33 | G31: 0.28
B34: 1. All health and safety performance data includes employees and contractors, unless otherwise noted. All data performance rates are calculated per 200,000 hours worked, except where indicated.
B35: 2. Our Risk Register defines "high risk" events as incidents that have the potential to result in permanent disabilities or fatalities.
B36: 3. TRIR = [(Fatalities + Lost-time Incidents + Restricted-duty Incidents + Medical Treatment) x 200,000] / Total Hours Worked. TRIR is equivalent to MSHA All-Incidence Rate (AIR). TRIR presented here may differ from reported TRIR in FCX's Form 10-K filings because data have been adjusted to exclude disposed assets for comparison purposes.
B37: 4. Fatality Rate = (Number of Fatalities x 200,000) / Total Hours Worked.
B38: 5. NMFR = (Number of Near Miss Events x 200,000) / Total Hours Worked.
B39: 6. LTIR = (Number of Lost Time Injuries x 200,000) / Total Hours Worked.

Sheet Workforce
B1: FCX - ESG PERFORMANCE TREND DATA
B2: SOCIAL
C3: 2016 | D3: 2017 | E3: 2018 | F3: 2019 | G3: 2020
B4: Workforce
B5: Number of Employees | C5: 30000 | D5: 25200 | E5: 26800 | F5: 27500 | G5: 24500
B6: Number of Contractors | C6: 29100 | D6: 28000 | E6: 38800 | F6: 40600 | G6: 33800
B8: Employees Under Collective Labor Agreements (CLA)1
B9: Indonesia | C9: 0.776099803 | D9: 0.7124164415 | E9: 0.7060315671 | F9: 0.7305005821 | G9: 0.7303233679
B10: Europe/Other | C10: 0.6621621622 | D10: 0.7278664731 | E10: 0.718487395 | F10: 0.661341853 | G10: 0.6703483432
B11: South America | C11: 0.6722626376 | D11: 0.6575294934 | E11: 0.6529814272 | F11: 0.649529103 | G11: 0.6557231588
B12: North America | C12: 0 | D12: 0 | E12: 0 | F12: 0 | G12: 0
B13: Global Employees Under CLA | C13: 0.466553288 | D13: 0.3896021305 | E13: 0.374147886 | F13: 0.3676147996 | G13: 0.3777705346
B15: Employee Demographics2
B16: Employees by Age Group
B17: <30 Years | C17: 0.13 | D17: 0.12 | E17: 0.14 | F17: 0.14 | G17: 0.12
B18: 30-50 Years | C18: 0.68 | D18: 0.67 | E18: 0.65 | F18: 0.64 | G18: 0.66
B19: >50 Years | C19: 0.19 | D19: 0.21 | E19: 0.21 | F19: 0.22 | G19: 0.22
B21: Employees by Nationality
B22: Local Country National | C22: 0.99 | D22: 0.99 | E22: 0.99 | F22: 0.99 | G22: 0.99
B23: Expatriates/Third-Country Nationals | C23: 0.01 | D23: 0.01 | E23: 0.01 | F23: 0.01 | G23: 0.01
B25: North America Consolidated Demographic Info3
B26: White | C26: 0.5884751291 | D26: 0.5643546332 | E26: 0.5483870968 | F26: 0.5440357619 | G26: 0.533285612
B27: Hispanic/Latino | C27: 0.3484642566 | D27: 0.3725650828 | E27: 0.3789706969 | F27: 0.3827150812 | G27: 0.3950429492
B28: American Indian/Alaskan Native | C28: 0.02618465163 | D28: 0.03103950482 | E28: 0.03472051219 | F28: 0.03474237315 | G28: 0.03802791696
B29: Asian | C29: 0.0146779016 | D29: 0.01429091571 | E29: 0.01559550193 | F29: 0.0152929182 | G29: 0.01395848246
B30: Black or African American | C30: 0.01812086618 | D30: 0.01501911524 | E30: 0.01666256259 | F30: 0.01560661909 | G30: 0.01360057266
B31: Native Hawaiian or Other Pacific Islander | C31: 0.001359064963 | D31: 0.00109229929 | E31: 0.00180579496 | F31: 0.002352756647 | G31: 0.002505368647
B32: Two or more races | C32: 0.0009966476398 | D32: 0 | E32: 0 | F32: 0.003215434084 | G32: 0.003400143164
B33: Undisclosed | C33: 0.001721482287 | D33: 0.001638448935 | E33: 0.003857834688 | F33: 0.00203905576 | G33: 0.0001789549034
B35: PT-FI Demographic Info
B36: Indonesian Representation | C36: - | D36: - | E36: - | F36: 0.98 | G36: 0.98
B37: Indigenous Papuan Representation | C37: - | D37: - | E37: - | F37: 0.4 | G37: 0.4
B39: Women Employed by Location
B40: North America | C40: 0.17 | D40: 0.17 | E40: 0.18 | F40: 0.19 | G40: 0.18
B41: Chile | C41: 0.08 | D41: 0.09 | E41: 0.1 | F41: 0.12 | G41: 0.11
B42: Peru | C42: 0.06 | D42: 0.06 | E42: 0.07 | F42: 0.07 | G42: 0.06
B43: Indonesia | C43: 0.05 | D43: 0.06 | E43: 0.07 | F43: 0.07 | G43: 0.07
B44: Europe/Other | C44: 0.17 | D44: 0.17 | E44: 0.17 | F44: 0.17 | G44: 0.18
B45: Total Women in Workforce | C45: 0.1 | D45: 0.12 | E45: 0.13 | F45: 0.13 | G45: 0.13
B47: Women in Leadership Positions
B48: Board of Directors | C48: 0.25 | D48: 0.25 | E48: 0.4 | F48: 0.33 | G48: 0.33
B49: Executive Management | C49: 0.11 | D49: 0.08 | E49: 0.1 | F49: 0.11 | G49: 0.13
B50: Management | C50: 0.11 | D50: 0.11 | E50: 0.12 | F50: 0.12 | G50: 0.13
B51: Non-Management | C51: 0.1 | D51: 0.12 | E51: 0.13 | F51: 0.13 | G51: 0.13
B52: Total Women in Workforce | C52: 0.1 | D52: 0.12 | E52: 0.13 | F52: 0.13 | G52: 0.13
B54: % of New Hires - women | C54: 0.15 | D54: 0.22 | E54: 0.21 | F54: 0.21 | G54: 0.22
B56: Talent Attraction and Retention
B57: Employee Turnover by Age Group
B58: <30 Years | C58: 0.13 | D58: 0.23 | E58: 0.13 | F58: 0.16 | G58: 0.22
B59: 30-50 Years | C59: 0.06 | D59: 0.28 | E59: 0.05 | F59: 0.06 | G59: 0.09
B60: >50 Years | C60: 0.19 | D60: 0.31 | E60: 0.08 | F60: 0.11 | G60: 0.26
B62: Employee Turnover by Gender
B63: Men | C63: 0.09 | D63: 0.29 | E63: 0.06 | F63: 0.08 | G63: 0.14
B64: Women | C64: 0.17 | D64: 0.19 | E64: 0.09 | F64: 0.12 | G64: 0.22
B66: Employee Turnover by Region
B67: North America4 | C67: 0.18 | D67: 0.16 | E67: 0.1 | F67: 0.11 | G67: 0.2
B68: South America | C68: 0.05 | D68: 0.03 | E68: 0.05 | F68: 0.06 | G68: 0.15
B69: Indonesia | C69: 0.03 | D69: 0.55 | E69: 0.03 | F69: 0.04 | G69: 0.05
B70: Europe/Other | C70: 0.11 | D70: 0.06 | E70: 0.05 | F70: 0.25 | G70: 0.1
B71: Total Employee Turnover | C71: 0.1 | D71: 0.28 | E71: 0.07 | F71: 0.09 | G71: 0.15
B73: Voluntary Turnover Rate | C73: - | D73: - | E73: - | F73: - | G73: 0.09
B76: 1. In North America, our hourly employees continue to elect to work directly with company management rather than through union representation using our Guiding Principles contract, which adds value to the workforce and the company.
B77: 2. Data includes employees only and does not include contractors.
B78: 3. Our 2020 consolidated North America diversity metrics relate to employees only and are in line with the categories set forth by United States Equal Employment Opportunity Commission.
B79: 4. Higher turnover in 2020 is related to Voluntary Separation Packages offered to North America employees.

Sheet Communities
B1: FCX - ESG PERFORMANCE TREND DATA
B2: SOCIAL
C3: 2016 | D3: 2017 | E3: 2018 | F3: 2019 | G3: 2020
B4: Communities
B5: Community Investments ($ millions) | C5: 129.4 | D5: 153 | E5: 155 | F5: 100 | G5: 108
B6: Community Trust Funds | C6: 0.26 | D6: 0.3 | E6: 0.4 | F6: 0.29 | G6: 0.35
B7: Safety, Health & Environment | C7: 0.12 | D7: 0.19 | E7: 0.15 | F7: 0.21 | G7: 0.17
B8: Education & Training | C8: 0.16 | D8: 0.14 | E8: 0.12 | F8: 0.18 | G8: 0.12
B9: Economic Development & Infrastructure | C9: 0.19 | D9: 0.19 | E9: 0.15 | F9: 0.17 | G9: 0.15
B10: Other1 | C10: 0.13 | D10: 0.15 | E10: 0.15 | F10: 0.14 | G10: 0.17
B11: Administration | C11: 0.14 | D11: 0.03 | E11: 0.03 | F11: 0.01 | G11: 0.04
B13: Community Grievances2
B14: Community Grievances by Geography
B15: Chile | C15: 8 | D15: 33 | E15: 37 | F15: 29 | G15: 17
B16: Europe | C16: 0 | D16: 0 | E16: 5 | F16: 5 | G16: 1
B17: Indonesia | C17: 64 | D17: 64 | E17: 76 | F17: 60 | G17: 53
B18: Peru3 | C18: 8 | D18: 17 | E18: 15 | F18: 9 | G18: 10
B19: United States4 | C19: 30 | D19: 50 | E19: 106 | F19: 87 | G19: 59
B20: Total Community Grievances | C20: =+C19+C18+C17+C16+C15 -> 110 | D20: =+D19+D18+D17+D16+D15 -> 164 | E20: =+E19+E18+E17+E16+E15 -> 239 | F20: =+F19+F18+F17+F16+F15 -> 190 | G20: =+G19+G18+G17+G16+G15 -> 140
B22: Community Grievances by Type (%)
B23: Community Benefits | C23: 0.2818181818 | D23: 0.4085365854 | E23: 0.3389121339 | F23: 0.2473684211 | G23: 0.2714285714
B24: Employment | C24: 0 | D24: 0.01 | E24: 0.01673640167 | F24: 0.03 | G24: 0.04285714286
B25: Environment | C25: 0.08181818182 | D25: 0.06 | E25: 0.280334728 | F25: 0.2526315789 | G25: 0.22
B26: Health & Safety | C26: 0.04 | D26: 0.1 | E26: 0.1171548117 | F26: 0.12 | G26: 0.15
B27: Cultural Heritage | C27: 0.08181818182 | D27: 0.1219512195 | E27: 0.03347280335 | F27: 0.07894736842 | G27: 0.04285714286
B28: Land Rights | C28: 0.2181818182 | D28: 0.1402439024 | E28: 0.05020920502 | F28: 0.06315789474 | G28: 0.1
B29: Physical Damage | C29: 0.02 | D29: 0.04268292683 | E29: 0.03347280335 | F29: 0.09 | G29: 0.06
B30: Other5 | C30: 0.28 | D30: 0.1219512195 | E30: 0.129707113 | F30: 0.1157894737 | G30: 0.1214285714
B33: 1. Includes arts, culture, mitigation, stakeholder engagement and employee programs such as Matching Gifts and United Way.
B34: 2. Prior year grievances were updated to include neighbor complaints in the U.S. We began reporting grievances from minority-owned Indonesian smelter and from Europe in 2020 and 2018, respectively.
B36: 3. In 2016, 146 grievances that were received in relation to a waste water treatment facility at our Cerro Verde operation were excluded from the total as they were reported separately.
B37: 4. In 2018, approximately 630 grievances related to dust incidents at our Sierrita operation in Arizona were excluded from the total count as they were reported separately.
B38: 5. Other includes security, town site or housing and other grievances not listed above.

Sheet Human Rights
B1: FCX - ESG PERFORMANCE TREND DATA
B2: SOCIAL
C3: 2016 | D3: 2017 | E3: 2018 | F3: 2019 | G3: 2020
B4: Human Rights
B5: Gross Human Rights Violations1 | C5: 0 | D5: 0 | E5: 0 | F5: 0 | G5: 0
B7: 1. There is no uniform definition of gross human rights violations under international law; however, the United Nations Office of the High Commissioner report: The Corporate Responsibility to Respect Human Rights - An Interpretive Guide, provides guidance on identifying such types of violations.

Sheet Business Ethics
B1: FCX - ESG PERFORMANCE TREND DATA
B2: GOVERNANCE
C3: 2016 | D3: 2017 | E3: 2018 | F3: 2019 | G3: 2020
B4: Business Ethics
B5: Principles of Business Conduct Training1 Completion Rate | C5: 0.97 | D5: 1 | E5: 1 | F5: 1 | G5: 0.58
B6: Anti-Corruption Training1 Completion Rate | C6: 0.97 | D6: 0.98 | E6: 1 | F6: 1 | G6: 0.82
B7: FCX Compliance Line Reports | C7: 218 | D7: 235 | E7: 257 | F7: 285 | G7: 270
B9: 1. Because of operational challenges as a result of the COVID-19 pandemic, including the inability to provide in-person classroom training, our 2020 business ethics and anti-corruption training was voluntary for employees. Training will be mandatory in 2021.

Sheet Economic Value Contribution
B1: FCX - ESG PERFORMANCE TREND DATA
B2: GOVERNANCE
C3: 2016 | D3: 2017 | E3: 2018 | F3: 2019 | G3: 2020
B4: Economic Value Contributed ($ millions)
B5: Direct Economic Contributions1 | C5: =13414-726 -> 12688 | D5: 12158 | E5: 14663 | F5: 13556 | G5: 11374
B6: Cash Payments to Governments1,2 | C6: =1428-204 -> 1224 | D6: 1346 | E6: 2409 | F6: 1412 | G6: 1038
B7: Community Investments | C7: 129.4 | D7: 153 | E7: 155 | F7: 100 | G7: 108
B9: Procurement Spend Distribution ($ millions)
B10: Local | C10: 2451 | D10: 2549 | E10: 3201 | F10: 3552 | G10: 2923.494004
B11: National | C11: 3857 | D11: 4150 | E11: 5115 | F11: 5437 | G11: 4590.296177
B12: Outside Home Country | C12: 751 | D12: 7158 | E12: 1288 | F12: 1566 | G12: 1197.614666
B13: Total Procurement Spend Distribution | C13: 7059 | D13: =D10+D11+D12 -> 13857 | E13: =E10+E11+E12 -> 9604 | F13: 10555 | G13: 8711.404847
B14: % Local | C14: 35% | D14: 0.34 | E14: 0.33 | F14: 0.34 | G14: 0.3355938629
B15: % National | C15: 55% | D15: 0.56 | E15: 0.53 | F15: 0.51 | G15: 0.5269294973
B16: % Outside Home Country | C16: 10% | D16: 0.1 | E16: 0.14 | F16: 0.15 | G16: 0.1374766398
B18: Number of Local Suppliers | C18: 3,845 | D18: 3,794 | E18: 3727 | F18: 3649 | G18: 3379
B20: 1. For further information, please see our 2020 Annual Report on Sustainability and FCX’s 2020 Form 10-K.
B21: 2. Amounts presented do not reflect payments on assessment under dispute. Amounts presented reflect credits from prior years as applicable.

Sheet SASB
B1: SUSTAINABILITY ACCOUNTING STANDARDS BOARD (SASB) INDEX
B3: The Sustainability Accounting Standards Board (SASB) is an independent, nonprofit organization that sets standards to guide the disclosure of financially material, industry-specific sustainability information by companies to their investors. We disclose in alignment with SASB’s Metals & Mining Sustainability Accounting Standard (EM-MM; version 2018-10) as defined by Sustainable Industry Classification System® (SICS®) with information as of the year ended December 31, 2020. For further information on the topics covered, please see our 2020 Annual Report on Sustainability, 2020 Form 10-K and the documents and pages on fcx.com referenced below.
B4: Note: Reported amounts are approximate.
B5: TOPIC | C5: ACCOUNTING METRIC | D5: CATEGORY | E5: UNIT OF MEASURE | F5: CODE | G5: FCX RESPONSE | H5: REFERENCES
B6: Greenhouse Gas Emissions | C6: (1) Gross global Scope 1 emissions (2) Percentage covered under emissions-limiting regulations | D6: Quantitative | E6: Metric tons (t) CO2-e, Percentage (%) | F6: EM-MM-110a.1 | G6: (1) 4,229,894 metric tons of carbon dioxide equivalent (2) 1.5% | H6: (1) ESG Performance Trend Data: Climate
C7: Discussion of long-term and short-term strategy or plan to manage Scope 1 emissions, emissions reduction targets, and an analysis of performance against those targets | D7: Discussion and Analysis | E7: N/A | F7: EM-MM-110a.2 | G7: FCX is dedicated to supplying the world with responsibly produced copper, which includes operating in a way that manages and mitigates our greenhouse gas (GHG) emissions and other climate-related risks. In 2020, we published our inaugural climate report, formalized our climate strategy and established our first GHG emissions reduction target for the Americas, which includes both Scope 1 and Scope 2 emissions. In the short term, we are committed to working towards aligning our strategy and disclosures with the recommendations of the Taskforce on Climate-related Financial Disclosures (TCFD). By 2030, we aim to reduce our GHG emissions by 15% in the Americas (as compared to our 2018 baseline), or 3.1 metric tons of GHG emissions per metric ton of copper cathode produced. For more information on our commitments and progress, please see reference documents. We plan to publish an updated climate report later in 2021. | H7: (1) 2020 Annual Report on Sustainability: Climate (2) 2019 Climate Report
B8: Air Quality | C8: Air emissions of the following pollutants: (1) CO, (2) NOx (excluding N2O), (3) SOx, (4) particulate matter (PM10), (5) mercury (Hg), (6) lead (Pb), and (7) volatile organic compounds (VOCs) | D8: Quantitative | E8: Metric tons (t) | F8: EM-MM-120a.1 | G8: (1) 98.2 thousand metric tons of CO (2) 39.9 thousand metric tons of NOx (3) 7.3 thousand metric tons of SOx (4) 13.1 thousand metric tons of PM10 (5) Less than one metric ton of Hg (6) 20 metric tons of Pb (7) 8.3 thousand metric tons of VOCs | H8: (1) ESG Performance Trend Data: Air Emissions
B9: Energy Management | C9: (1) Total energy consumed, (2) percentage grid electricity, (3) percentage renewable | D9: Quantitative | E9: Gigajoules (GJ), Percentage (%) | F9: EM-MM-130a.1 | G9: (1) Total energy consumed: 86,219 TJ (2) Percentage grid electricity: 38% (3) Percentage renewable: 3.8%* *These data include renewable energy sources such as wind, solar and geothermal contracts for energy consumption, and a percentage associated with biofuels used onsite. Our Americas operations also receive power from hydro and biomass sources, which are not included in the SASB EM-MM standard definition of renewable energy, but are considered low-emission sources. | H9: (1) ESG Performance Trend Data: Climate
B10: Water Management | C10: (1) Total freshwater withdrawn (2) Total freshwater consumed, + percentage of each in regions with High or Extremely High Baseline Water Stress | D10: Quantitative | E10: Thousand cubic meters (m³), Percentage (%) | F10: EM-MM-140a.1 | G10: (1) Total freshwater withdrawn: 192,683 thousand cubic meters; 23% with High or Extremely High Baseline Water Stress (2) Total freshwater consumed: 100,136 thousand cubic meters; 39% with High or Extremely High Baseline Water Stress Freshwater totals above are defined by SASB and equivalent to high quality freshwater as defined by ICMM. For more comprehensive information on our water performance and the water stress classifications, please see reference documents. | H10: (1) ESG Performance Trend Data: Water
C11: Number of incidents of non-compliance associated with water quality permits, standards, and regulations | D11: Quantitative | E11: Number | F11: EM-MM-140a.2 | G11: No incidents of non-compliance associated with water quality permits, standards, and regulations occurred in 2020.
B12: Waste & Hazardous Materials Management | C12: (1) Total weight of tailings waste (2) Percentage recycled | D12: Quantitative | E12: Metric tons (t), Percentage (%) | F12: EM-MM-150a.1 | G12: (1) 259 million metric tons (2) 0.5% recycled | H12: (1) 2020 Form 10-K, Item 1A: Risk Factors: Operational Risks (2) ESG Performance Trend Data: Mining.Mineral Processing Waste
C13: (1) Total weight of mineral processing waste (2) Percentage recycled | D13: Quantitative | E13: Metric tons (t), Percentage (%) | F13: EM-MM-150a.2 | G13: (1) 229 thousand metric tons (2) 50% recycled | H13: (1) ESG Performance Trend Data: Mining.Mineral Processing Waste
C14: Number of tailings impoundments, broken down by MSHA hazard potential | D14: Quantitative | E14: Number | F14: EM-MM-150a.3 | G14: 25 Extreme 20 Very High 3 High 15 Significant 10 Low 73 Total For the purposes of our tailings dam classification disclosures, we use the dam classification system published in Canadian Dam Association (CDA) Dam Safety Guidelines (2013). | H14: (1) Overview of Tailings Management and Stewardship Program (2) Tailings Management and Stewardship Summary (3) ESG Performance Trend Data: Tailings Impoundments
B15: Biodiversity Impacts | C15: Description of environmental management policies and practices for active sites | D15: Discussion and Analysis | E15: N/A | F15: EM-MM-160a.1 | G15: FCX is committed to sound environmental practices at all of our operations. Our Environmental Policy serves as the framework for the protection of natural resources in the regions where we live and work. In addition to maintaining compliance with laws and regulations, we utilize risk management strategies based on valid data and sound science throughout the mining life cycle, and we plan and conduct our operations in a manner that optimizes the economic use of resources while minimizing the adverse environmental effects. All our mining and mineral processing operations and technology centers maintain Environmental Management Systems (EMS) certified to ISO 14001:2015. Our practices and policies apply to all active sites across the portfolio and address critical environmental aspects including biodiversity, water stewardship, waste and hazardous chemicals, air emissions, and natural resource conservation and recycling. The environmental management programs implemented at our sites are based upon corporate policies, regulatory compliance, and voluntary commitments to good international industrial practices and standards, and are verified through independent third-party assurance reviews. These programs are enabled through implementation of our Risk Register and project development sustainability review processes as well as project-specific environmental and social impact assessments (ESIA). | H15: (1) 2020 Annual Report on Sustainability: Environment (2) Sustainability > Environment page on fcx.com
C16: Percentage of mine sites where acid rock drainage is: (1) predicted to occur, (2) actively mitigated, and (3) under treatment or remediation | D16: Quantitative | E16: Percentage (%) | F16: EM-MM-160a.2 | G16: FCX implements robust programs to identify, mitigate and manage acid rock drainage (ARD) from waste rock and tailings. ARD is a geochemical process that releases sulfate, acid and/or metals into the environment when certain rock materials are exposed to water and oxygen. ARD forms either naturally or following human caused activities when metal sulfide minerals present in host rock are exposed to air and natural precipitation. The resulting acid that forms can dissolve metals from the surrounding rock and be a source of pollution to surface water or groundwater resources if not properly managed. The formation of ARD can be exacerbated by large earth moving activities, like mining or construction, particularly when these activities expose sulfide bearing minerals to additional air and water, which can accelerate the oxidation process. However, through implementation of targeted management practices, environmental impacts from ARD can be prevented or minimized. Our environmental policy requires that we review and account for environmental effects of each activity, throughout the mine life cycle. Based on material classifications and geochemical characterizations of our ore bodies, ARD is predicted to occur to some degree at nearly all of our operations and is actively mitigated in those locations throughout the mine life cycle utilizing best available control technologies. When potentially acid generating materials are identified in the planning phase, we implement strategies for prevention of ARD formation or management of ARD if it occurs. These strategies include, but are not limited to, designing storage facilities to prevent or minimize ARD formation, blending acid generating materials with materials with sufficient buffering capacity to eliminate the net acid generating potential during operations, installing engineering controls to manage stormwater that infiltrates or runs-off from these facilities, and monitoring controls systems over the mine life cycle including the closure and post-closure phases. Additionally, we consider site specific factors such as rock type, climate, and other geographic considerations in order to minimize operations risk and reduce post mining closure and reclamation liability. Finally, if the formation of ARD cannot be eliminated, FCX implements mitigation measures such as water management, water treatment, reclamation and, at our PT-FI operations, studies that include risk assessments to determine additional monitoring and mitigation efforts that may be effective. The objective of these controls is to limit or eliminate the exposure of sulfide minerals to the atmosphere, minimize the amount of water contacting mine materials, including waste rock or tailings, and ensure effective monitoring and maintenance systems are in place to minimize the potential ARD generation. Mitigation strategies at our mining operations are also subject to regulatory review, approval and oversight to ensure the effectiveness of the selected control measures.
C17: Percentage of (1) proved and (2) probable reserves in or near sites with protected conservation status or endangered species habitat | D17: Quantitative | E17: Percentage (%) | F17: EM-MM-160a.3 | G17: Protected Areas 0% of total 2P reserves are in protected areas 9.9% of total 2P reserves are near (within 5 kilometers of) protected areas (100% PT-FI and 100% Henderson) FCX's proven and probable (2P) reserves near protected areas are associated with our Henderson mine in Colorado and PT-FI operations in Indonesia. Both are underground operations and therefore have reduced potential to affect the protected areas. | H17: (1) 2020 Form 10-K, Items 1 and 2. Business and Properties: MINERAL RESERVES (2) 2020 Annual Report on Sustainability: Biodiversity (3) Sustainability > Environment page on fcx.com
G18: Endangered Species Habitat 0.3% of total 2P reserves are in endangered species habitat (1% Sierrita; <1% Cerro Verde) 70.8% of total 2P reserves are near (within 5 kilometers of) endangered species habitat (100% of PT-FI, Cerro Verde, Climax and Sierrita; 82% Morenci; 20% Chino) FCX's proven and probable (2P) reserves that are located near endangered species habitats do not affect those habitats. The endangered species habitats near Morenci, Chino, and Climax reserves are located on federal lands managed by the U.S. Forest Service; we do not conduct activities within the habitat. Cerro Verde’s reserves qualify due to an endangered bat species that is known to occur and forage in the general region of the operations and we actively seek to protect the species. PT-FI’s reserves qualify due to the district’s proximity to Lorentz National Park, however, we have not and will not conduct any mining or exploration activities in Lorentz National Park, which is a UNESCO World Heritage Site. As part of our ICMM commitment, we will not explore nor mine at any UNESCO World Heritage Sites. Furthermore, PT-FI mining operations have fully transitioned underground. Percentages reported above are based on ore tonnages. Refer to page 33 of FCX's 2020 10-K for average ore grades.
B19: Security, Human Rights & Rights of Indigenous Peoples | C19: Percentage of (1) proved and (2) probable reserves in or near areas of conflict | D19: Quantitative | E19: Percentage (%) | F19: EM-MM-210a.1 | G19: At the time of this report publication, FCX did not have operations located in "active areas of conflict" as defined by the latest available data from the 2019 Uppsala Conflict Data Program. At our PT-FI operations in Papua, Indonesia, there have been attacks on civilians by separatists and highly publicized conflicts between separatists and the Indonesia military and police, some of which have occurred in or near our project area. FCX is a founding member, guided by, and implements The Voluntary Principles on Security and Human Rights for our security and human rights programs, including interactions with host government police, military personnel and private security contractors. For more information on our approach to human rights and security, please see the relevant sections of our 2020 Annual Report on Sustainability and the human rights section of our website. | H19: (1) Voluntary Principles on Security and Human Rights, Annual Reports to the Plenary (2) 2020 Annual Report on Sustainability: Communities (3) 2020 Annual Report on Sustainability: Indigenous Peoples (4) 2020 Annual Report on Sustainability: Responsible Value Chains (5) 2020 Form 10-K, Items 1 and 2. Business and Properties: MINERAL RESERVES
C20: Percentage of (1) proved and (2) probable reserves in or near indigenous land | D20: Quantitative | E20: Percentage(%) | F20: EM-MM-210a.2 | G20: 9.6% of total proven and probable (2P) reserves are in or near (within 5 kilometers of) indigenous lands, representing PT-FI in Indonesia, which is located where Indigenous Peoples of Papua hold customary land rights. Indigenous lands for purposes of this calculation are defined by Article 33 of the United Nations Declaration on the Rights of Indigenous Peoples and the International Labor Organization Convention No. 169. While they do not meet the SASB threshold for inclusion, Indigenous Peoples in Chile and Native Americans in the United States either currently or have historically occupied lands in proximity to our operations, or have ancestral connections to these lands. We are committed to constructively engaging with all Indigenous Peoples to support shared value for all stakeholders. Percentages reported above are based on ore tonnages. Refer to page 33 of FCX's 2020 10-K for average ore grades. | H20: (1) 2020 Form 10-K, Items 1 and 2. Business and Properties: MINERAL RESERVES (2) 2020 Annual Report on Sustainability: Indigenous Peoples (3) Sustainability > People > Indigenous Peoples > Land Use & Customary Rights page on fcx.com (4) Sustainability > People > Indigenous Peoples page on fcx.com
C21: Discussion of engagement processes and due diligence practices with respect to human rights, indigenous rights, and operation in areas of conflict | D21: Discussion and Analysis | E21: N/A | F21: EM-MM-210a.3 | G21: For information on our engagement processes and due diligence practices with respect to human rights and indigenous rights, please refer to the Communities, Indigenous Peoples, Land Use & Customary Rights and Human Rights sections of our 2020 Annual Report on Sustainability and materials on fcx.com. PT-FI has engaged with Papua’s indigenous populations – the Amungme and Kamoro, as well as the five neighboring ethnic groups – Dani, Damal, Nduga, Mee and Moni (collectively known as the “seven suku”) – for decades through multiple formal agreements that promote capacity building through workforce skills training as well as health, education, economic development, public infrastructure development, and participatory monitoring and evaluation of PT-FI funded projects. In addition, we are continuously investing in our local communities in Papua by implementing programs to support capacity building through the development of their skills and employability. For information on the above-mentioned engagement processes and how PT-FI operates in this context, please see reference documents. | H21: (1) Voluntary Principles on Security and Human Rights, Annual Reports to the Plenary (2) 2020 Annual Report on Sustainability section People: Communities (3) 2020 Annual Report on Sustainability: Indigenous Peoples (4) 2020 Annual Report on Sustainability: Responsible Value Chains (5) 2019 OECD Step 5 Due Diligence Report
B22: Community Relations | C22: Discussion of process to manage risks and opportunities associated with community rights and interests | D22: Discussion and Analysis | E22: N/A | F22: EM-MM-210b.1 | G22: FCX is committed to responsibly manage our relationships with host communities and indigenous neighbors. Constructive dialogue is at the foundation of our relationships with host communities and stakeholders. Our engagements help to inform understanding of our actual, potential and perceived impacts. It also helps us build a localized understanding of what contributes to community welfare and long-term sustainability, and mutually identify relevant social investment and development priorities to support any gaps. Engagements also enable us to share information about our own operational activities, facilitate dialogue and ultimately build trust. While our community programs are tailored to the site-specific dynamics of the operation and host community, our overarching objectives in partnership with our local stakeholders are to: (1) build enduring trust, (2) minimize or mitigate any negative impacts from our operations, (3) maximize the positive benefits, (4) support our communities in building resiliency and well-being over the life of the mine, and (5) develop the skills and capacity to thrive beyond the mine. For more information on our approach to management of risks and opportunities associated with community rights and interests, please see reference documents. | H22: (1) 2020 Annual Report on Sustainability: Communities > Our Approach (2) Sustainability > People > Communities > Assessing & Managing Impacts page on fcx.com (3) Sustainability > People > Communities > Land Use and Customary Rights page on fcx.com (4) Sustainability > People > Communities > Public Health page on fcx.com
C23: Number and duration of non-technical delays | D23: Quantitative | E23: Number, Days | F23: EM-MM-210b.2 | G23: In mid-March 2020, the Peru government issued a Supreme Decree and declaration of a National Emergency in its efforts to contain the outbreak of COVID-19. To comply with government requirements, we temporarily transitioned our Cerro Verde mine to care and maintenance status and adjusted operations to prioritize critical activities. A plan for Cerro Verde to restore operations was approved by the Peru government in second-quarter 2020, and strict health protocols have been implemented. This plan has allowed Cerro Verde to run both concentrators at their aggregate average design capacity of 360,000 metric ton-per-day in the second half of 2020. In third-quarter 2020, we experienced a five-day labor-related work stoppage related to COVID-19 travel restrictions when a group of workers at PT-FI staged protests and a blockade restricting access to the main road to the mining operations area. We reached an amicable resolution with the group of workers while upholding our COVID-19 safety protocols. | H23: (1) 2020 Form 10-K, Items 1 and 2. Business and Properties: GENERAL: Mining Operations (2) 2020 Form 10-K, Items 1 and 2. Business and Properties: Human Capital: Workforce
B24: Labor Relations | C24: Percentage of active workforce covered under collective bargaining agreements, broken down by U.S. and foreign employees | D24: Quantitative | E24: Percentage (%) | F24: EM-MM-310a.1 | G24: Approximately 38% of our global full-time employees were covered by collective labor agreements at December 31, 2020, broken down as follows: 0% North America 73% Indonesia 66% South America 67% Europe/Other While our North American workforce is not represented by unions, our hourly employees elect to work directly with company management rather than through union representation using our Guiding Principles agreement, which outlines how we work together within the values of the company to achieve our collective goals. Please see references for more information on our approach to labor relations. | H24: (1) 2020 Form 10-K, Items 1 and 2. Business and Properties: Human Capital: Workforce (2) 2020 Form 10-K, Note 16: Business Segment Information: Labor Matters (3) ESG Performance Trend Data: Workforce (4) 2020 Annual Report on Sustainability: Workforce
C25: Number and duration of strikes and lockouts | D25: Quantitative | E25: Number, Days | F25: EM-MM-310a.2 | G25: There were no strikes or lockouts at any of our operations in 2020. | H25: (1) 2020 Form 10-K, Items 1 and 2. Business and Properties: Human Capital: Workforce (2) 2020 Annual Report on Sustainability: Workforce
B26: Workforce Health & Safety | C26: (1) MSHA all-incidence rate, (2) fatality rate, (3) near miss frequency rate (NMFR) and (4) average hours of health, safety, and emergency response training for (a) full-time employees and (b) contract employees | D26: Quantitative | E26: Rate | F26: EM-MM-320a.1 | G26: For full year 2020: (1)(a) MSHA all-incidence rate for full-time employees: 0.80 (1)(b) MSHA all-incidence rate contract employees: 0.50 (2)(a) fatality rate for full-time employees: 0.005 (2)(b) fatality rate for contract employees: 0.014 (3)(a) near miss frequency rate (NMFR) for full-time employees: 1.96 (3)(b) near miss frequency rate (NMFR) for contract employees: 0.99 (4) We do not currently disclose this information. | H26: (1) 2020 Form 10-K, Item 4: Mine Safety Disclosures (2) ESG Performance Trend Data: Health & Safety
B27: Business Ethics & Transparency | C27: Description of the management system for prevention of corruption and bribery throughout the value chain | D27: Discussion and Analysis | E27: N/A | F27: EM-MM-510a.1 | G27: FCX uses a combination of tools to help gather critical data on suppliers with regard to compliance, ESG and other related risks. In recognition of the potential legal and reputational liability that could result from actions of our business partners and contractors under the Foreign Corrupt Practices Act (FCPA) and other laws, the company implemented an online due diligence platform, the Freeport Compliance eXchange (FCeX). This survey-based software platform is designed to assess risk in areas of anti-corruption, international trade and human rights. FCeX has enhanced our ability to identify, assess and mitigate compliance risks. In 2020, we added a Responsible Sourcing section to the survey to gather information from each supplier on their ESG programs, including sustainability-related management systems and certifications, human rights, health and safety, and environmental commitments, among others. In 2020, we also initiated implementing a software system, called Ariba Supplier Risk Management, that will be integrated into our central purchasing system. The new software enhances our supplier risk assessment using data from external sources – including operations, regulatory (anti-corruption and human rights), environmental and financial – and will provide more in-depth risk-based assessments through targeted questionnaires and audits. We will track these assessments and resulting actions, engagement and approvals for ongoing supplier life cycle management. Annually, we perform company-wide program and risk assessments with assistance from our internal audit firm, Deloitte, to assess risk and plan for the following year’s audit strategy. Business controls resulting from periodic fraud risk assessments are tested and reviewed annually at our corporate offices as well as at PT-FI, Cerro Verde, El Abra and Atlantic Copper. | H27: (1) 2020 Annual Report on Sustainability: Responsible Value Chains
C28: Production in countries that have the 20 lowest rankings in Transparency International’s Corruption Perception Index | D28: Quantitative | E28: Metric tons (t) saleable | F28: EM-MM-510a.2 | G28: FCX has no production in the countries that have the 20 lowest rankings in Transparency International's Corruption Perception Index. | H28: (1) 2020 Form 10-K, Items 1 and 2. Business and Properties: GENERAL
B29: Activity Metric | C29: Production of (1) metal ores and (2) finished metal products | D29: Quantitative | E29: Metric tons (t) saleable | F29: EM-MM-000.A | G29: (1) Full year 2020 consolidated production from our mines: 3,206 million recoverable pounds or 1,454,217 metric tons of copper; 857 thousand recoverable ounces or 24 metric tons of gold; and 76 million recoverable pounds or 34,473 metric tons of molybdenum | H29: (1) 2020 Form 10-K, Items 1 and 2. Business and Properties: MINING PRODUCTION AND SALES DATA
C30: Total number of employees, percentage contractors | D30: Quantitative | E30: Number, Percentage (%) | F30: EM-MM-000.B | G30: Total workforce (employees and contractors) at year-end 2020 approximated 58,300, 58% of whom were contractors. | H30: (1) 2020 Form 10-K, Items 1 and 2. Business and Properties: HUMAN CAPITAL: Workforce

Sheet GRI Index; SDGs
B1: GRI CONTENT INDEX
B3: Freeport-McMoRan maintains a sustainability reporting prioritization assessment process to define topics and their level of priority to the company and its stakeholders for inclusion in its sustainability reporting. The process allows for: • A structured and objective approach for decision-making and planning around sustainability reporting • Selecting topics to include in annual sustainability reporting based on a documented measurement approach and evaluation of sustainability topics of importance to internal and external stakeholders • Monitoring trends in sustainability topics of importance to stakeholders over time • Adherence to the GRI Standards framework The prioritization process requires a cross-review of documents and systems that summarize stakeholder engagements, such as queries received from value chain members, as well as community and employee grievance reports, community engagement processes and reports, environmental and social impact assessment reports, employee surveys, and meetings with financial stakeholders, NGOs and industry groups. These reviews are used to prioritize the level of importance of reporting topics to key groups with whom we regularly engage as part of our business at the corporate and operational levels. To align prioritization of reporting topics from the perspective of importance to our business, we review the outputs of our operations’ Sustainable Development Risk Register process and consider the topics addressed in our corporate public reporting, including our filings with the U.S. Securities and Exchange Commission. In most instances, key sustainability topics prioritized by our business are also of high importance to stakeholders. On occasion, we have chosen to report on GRI Standards indicators that may not be of high importance to internal or external stakeholders because our reporting systems historically have captured the information, which is used by certain groups, such as sustainability analysts. We are reporting in accordance with the GRI Standards core option and the G4 Mining and Metals Sector Supplement. We have reported under GRI guidelines annually since 2005. A Sustainability Reporting Prioritization Assessment process that focuses on risks and opportunities, both to the business and to stakeholders, is used to delineate the reported topics and disclosures. Data presented in this section include the primary operations of Freeport-McMoRan’s mining subsidiaries: Freeport Minerals Company (FMC) and PT Freeport Indonesia (PTFI) for the period January 1, 2020 to December 31, 2020, unless otherwise stated. The table below provides an overview of the relevant GRI Standards for our most material topics and where to find information in our Annual Report on Sustainability, website or from other sources through our most material topics. This index also highlights alignment to the UN Sustainable Development Goals.
B5: SERIES | C5: MATERIAL TOPIC | D5: DISCLOSURE | E5: DISCLOSURE DESCRIPTION | F5: FCX RESPONSE | G5: UN SDGs
B6: GRI 102 GENERAL DISCLOSURES | C6: Universal: Organizational Profile | D6: 102-1 | E6: Name of the organization | F6: Freeport-McMoRan Inc.
B7: GRI 102 GENERAL DISCLOSURES | C7: Universal: Organizational Profile | D7: 102-2 | E7: Activities, brands, products, and services | F7: Freeport-McMoRan (FCX) is a leading international mining company with headquarters in Phoenix, Arizona. Our company was incorporated under the laws of the state of Delaware on November 10, 1987. We operate large, long-lived geographically diverse assets with significant proven and probable reserves of copper, gold and molybdenum. Our portfolio of assets includes the Grasberg minerals district in Indonesia, one of the world’s largest copper and gold deposits; and significant mining operations in the Americas, including the large-scale Morenci minerals district in North America and the Cerro Verde operation in South America. About Us on fcx.com Form 10-K: Part I General
B8: GRI 102 GENERAL DISCLOSURES | C8: Universal: Organizational Profile | D8: 102-3 | E8: Location of headquarters | F8: Phoenix, Arizona, USA About Us on fcx.com
B9: GRI 102 GENERAL DISCLOSURES | C9: Universal: Organizational Profile | D9: 102-4 | E9: Location of operations. Number of countries where the organization operates, and names of countries where either the organization has significant operations or that are specifically relevant to the sustainability topics covered in the report | F9: Our operating mines are located in Chile, Indonesia, Peru and the United States. For further information on our operations, please see: About Us on fcx.com Form 10-K: Part I, General Form 10-K: Part I, Mining Operations
B10: GRI 102 GENERAL DISCLOSURES | C10: Universal: Organizational Profile | D10: 102-5 | E10: Ownership and legal form | F10: Form 10-K: Part I, General
B11: GRI 102 GENERAL DISCLOSURES | C11: Universal: Organizational Profile | D11: 102-6 | E11: Markets served | F11: Form 10-K: Part I, Products and Sales | G11: SDG 8: Decent Work and Economic Growth
B12: GRI 102 GENERAL DISCLOSURES | C12: Universal: Organizational Profile | D12: 102-7 | E12: Scale of the organization | F12: Annual Report on Sustainability: People - Workforce Form 10-K: Part I, Mining Production and Sales Data Form 10-K: Part II, Revenues
B13: GRI 102 GENERAL DISCLOSURES | C13: Universal: Organizational Profile | D13: 102-8 | E13: Information on employees and other workers a. Total number of employees by employment contract, by gender b. Total number of employees by employment contract, by region c. Total number of employees by employment type, by gender d. Whether a significant portion of the organization's activities are performed by workers who are not employees. If applicable, a description of the nature and scale of work performed by workers who are not employees. e. Any significant variations in the numbers reported in Disclosures 102-8-a, 102-8-b, and 102-8-c. f. An explanation of how the data have been compiled, including any assumptions made | F13: Form 10-K: Items 1 and 2. Business and Properties: Human Capital: Workforce Annual Report on Sustainability: People - Workforce | G13: SDG 8: Decent Work and Economic Growth SDG 10: Reduced Inequalities
B14: GRI 102 GENERAL DISCLOSURES | C14: Universal: Organizational Profile | D14: 102-9 | E14: Supply chain | F14: Form 10-K: Part I, Sources and Availability of Energy, Natural Resources and Raw Materials Annual Report on Sustainability: Responsible Value Chains Global Supply Chain webpage on fcx.com Commodity Management webpage on fcx.com Economic Value Contributed > Local Suppliers webpage on fcx.com ESG Performance data
B15: GRI 102 GENERAL DISCLOSURES | C15: Universal: Organizational Profile | D15: 102-10 | E15: Significant changes to the organization and its supply chain | F15: Form 10-K: Part II, Management's Discussion and Analysis of Financial Condition and Results of Operations and Quantitative and Qualitative Disclosures About Market Risk Annual Report on Sustainability: Responsible Value Chains
B16: GRI 102 GENERAL DISCLOSURES | C16: Universal: Organizational Profile | D16: 102-11 | E16: Precautionary Principle or approach | F16: Freeport-McMoRan is a leading responsible copper producer. Our commitment to responsible copper production is visible in everything we do, driven by our core values of Safety, Respect, Integrity, Excellence and Commitment. Our values direct the decisions we make as a company and as individual employees. These values represent who we are and how we work – everyone, everywhere, every day. Our focus on responsible production is critical to establish and maintain acceptance from our local stakeholders through shared value creation and to meet society's responsible sourcing objectives necessary to supply the world with copper. Annual Report on Sustainability: Our Approach; The Risk Register; People; Environment
B17: GRI 102 GENERAL DISCLOSURES | C17: Universal: Organizational Profile | D17: 102-12 | E17: External initiatives | F17: Annual Report on Sustainability: Voluntary Memberships & Commitments; Performance Targets; Environment Voluntary Memberships & Commitments on fcx.com ESG Performance Data | G17: SDG 17: Partnerships for the Goals
B18: GRI 102 GENERAL DISCLOSURES | C18: Universal: Organizational Profile | D18: 102-13 | E18: Membership of associations | F18: Annual Report on Sustainability: Voluntary Memberships & Commitments Voluntary Memberships & Commitments on fcx.com | G18: SDG 17: Partnerships for the Goals
B19: GRI 102 GENERAL DISCLOSURES | C19: Universal: Strategy | D19: 102-14 | E19: Statement from the most senior decision-maker of the organization | F19: Annual Report on Sustainability: Letter to Stakeholders; Message from our Corporate Responsibility Committee Chair
B20: GRI 102 GENERAL DISCLOSURES | C20: Universal: Strategy | D20: 102-15 | E20: Key impacts, risks, and opportunities | F20: Annual Report on Sustainability: Our Approach; Focus Areas; Materiality Form 10-K: Part I, Risk Factors Climate Report Water Report
B21: GRI 102 GENERAL DISCLOSURES | C21: Universal: Ethics and Integrity | D21: 102-16 | E21: Values, principles, standards, and norms of behavior | F21: Annual Report on Sustainability: Our Approach; Business Integrity; Values, Policies & Practices; Voluntary Memberships & Commitments Voluntary Memberships & Commitments on fcx.com | G21: SDG 16: Peace, Justice and Strong Institutions
B22: GRI 102 GENERAL DISCLOSURES | C22: Universal: Ethics and Integrity | D22: 102-17 | E22: Mechanisms for advice and concerns about ethics | F22: Annual Report on Sustainability: Values, Policies & Practices; Business Integrity; Grievance Mechanisms and Remedy; Community Grievance Mechanisms | G22: SDG 16: Peace, Justice and Strong Institutions
B23: GRI 102 GENERAL DISCLOSURES | C23: Universal: Governance | D23: 102-18 | E23: Governance structure | F23: Annual Report on Sustainability: Governance Corporate Governance Guidelines Proxy Statement: Corporate Governance
B24: GRI 102 GENERAL DISCLOSURES | C24: Universal: Governance | D24: 102-19 | E24: Delegating authority | F24: Annual Report on Sustainability: Our Approach Proxy Statement: Sustainability
B25: GRI 102 GENERAL DISCLOSURES | C25: Universal: Governance | D25: 102-20 | E25: Executive-level responsibility for economic, environmental, and social topics | F25: Annual Report on Sustainability: Our Approach Proxy Statement: Sustainability
B26: GRI 102 GENERAL DISCLOSURES | C26: Universal: Governance | D26: 102-21 | E26: Consulting stakeholders on economic, environmental, and social topics | F26: Annual Report on Sustainability: Our Approach Proxy Statement: Stakeholder Engagement | G26: SDG 16: Peace, Justice and Strong Institutions SDG 17: Partnerships for the Goals
B27: GRI 102 GENERAL DISCLOSURES | C27: Universal: Governance | D27: 102-22 | E27: Composition of the highest governance body and its committees | F27: Annual Report on Sustainability: Governance Proxy Statement: Board Composition Overview | G27: SDG 5: Gender Equality SDG 16: Peace, Justice and Strong Institutions
B28: GRI 102 GENERAL DISCLOSURES | C28: Universal: Governance | D28: 102-23 | E28: Chair of the highest governance body | F28: Mr. Gerald J. Ford was the Non-Executive Chairman of the Board of Freeport-McMoRan Inc.through 2020. Richard C. Adkerson was appointed as Chairman of the Board in 2021. Proxy Statement: Information About Director Nominees | G28: SDG 16: Peace, Justice and Strong Institutions
B29: GRI 102 GENERAL DISCLOSURES | C29: Universal: Governance | D29: 102-24 | E29: Nominating and selecting the highest governance body | F29: Proxy Statement: Corporate Governance Corporate Governance Guidelines | G29: SDG 5: Gender Equality SDG 16: Peace, Justice and Strong Institutions
B30: GRI 102 GENERAL DISCLOSURES | C30: Universal: Governance | D30: 102-25 | E30: Conflicts of interest | F30: Freeport-McMoRan maintains Conflicts of Interest Guidelines that are designed to provide guidance to directors, officers and employees so that conflicts of interest may be avoided. The guidelines establish procedures for disclosure of actual or potential conflicts of interest so that concerns may be addressed and any necessary corrective action may be taken. Corporate Governance Guidelines Principles of Business Conduct on fcx.com Proxy Statement: Certain Transactions | G30: SDG 16: Peace, Justice and Strong Institutions
B31: GRI 102 GENERAL DISCLOSURES | C31: Universal: Governance | D31: 102-26 | E31: Role of highest governance body in setting purpose, values, and strategy | F31: Annual Report on Sustainability: Our Approach Annual Report on Sustainability: Business Integrity Proxy Statement: Corporate Governance
B32: GRI 102 GENERAL DISCLOSURES | C32: Universal: Governance | D32: 102-27 | E32: Collective knowledge of highest governance body | F32: Annual Report on Sustainability: Our Approach Proxy Statement: Information About Director Nominees | G32: SDG 4: Quality Education
B33: GRI 102 GENERAL DISCLOSURES | C33: Universal: Governance | D33: 102-28 | E33: Evaluating the highest governance body’s performance | F33: Corporate Governance Guidelines Proxy Statement: Board and Committee Evaluation Proces Proxy Statement: Executive Compensation Philosophy
B34: GRI 102 GENERAL DISCLOSURES | C34: Universal: Governance | D34: 102-29 | E34: Identifying and managing economic, environmental, and social impacts | F34: Annual Report on Sustainability: Our Approach Proxy Statement: Board’s Role in Oversight of Strategy and Risk Management Corporate Governance Guidelines Corporate Responsibility Committee Charter | G34: SDG 16: Peace, Justice and Strong Institutions
B35: GRI 102 GENERAL DISCLOSURES | C35: Universal: Governance | D35: 102-30 | E35: Effectiveness of risk management processes | F35: Annual Report on Sustainability: Our Approach Proxy Statement: Board’s Role in Oversight of Strategy and Risk Management
B36: GRI 102 GENERAL DISCLOSURES | C36: Universal: Governance | D36: 102-31 | E36: Review of economic, environmental, and social topics | F36: Annual Report on Sustainability: Our Approach Proxy Statement: Sustainability Corporate Governance Guidelines Corporate Responsibility Committee Charter
B37: GRI 102 GENERAL DISCLOSURES | C37: Universal: Governance | D37: 102-32 | E37: Highest governance body’s role in sustainability reporting | F37: Our Chairman and CEO has ultimate responsibility for the company’s sustainability performance. The company’s cross-functional Sustainability Leadership Team (SLT) includes members of the management team tasked with defining the sustainability strategy and implementing our sustainability policies, systems and programs across the organization. The SLT is sponsored by our Senior Vice President and Chief Administrative Officer and is led by our Vice President and Chief Sustainability Officer, with active participation from other members of the SLT, including our four operational business unit Presidents. SLT membership also includes Vice Presidents or senior representatives from functional groups, including health and safety, security, supply chain, human resources, sales, legal, compliance, sustainability and finance. Executive officers are held accountable for the company’s sustainability performance through the company’s performance-based annual incentive program (AIP). In 2020, ESG metrics collectively accounted for 25% of the AIP (15% safety and 10% sustainability). Annual Report on Sustainability: Our Approach; Letter to Stakeholders; Message from our Corporate Responsibility Committee Chair GRI Content Index (this index)
B38: GRI 102 GENERAL DISCLOSURES | C38: Universal: Governance | D38: 102-33 | E38: Communicating critical concerns | F38: Annual Report on Sustainability: Our Approach; Compliance Line Proxy Statement: Stockholder and Stakeholder Engagement Proxy Statement: Communications with the Board
B39: GRI 102 GENERAL DISCLOSURES | C39: Universal: Governance | D39: 102-34 | E39: Nature and total number of critical concerns | F39: Proxy Statement: Key Topics Discussed in 2020 Company strategy and capital structure • COVID-19 response and management • Climate strategy (including greenhouse gas (GHG) emissions reduction target for the Americas and inaugural climate report) • ESG initiatives, including enhanced disclosures and commitment to align with Sustainable Accounting Standards Board (SASB) and Task Force on Climate related Disclosures (TCFD) reporting frameworks • Inclusion and diversity efforts • Board composition and ongoing recruitment efforts • Executive compensation practices • Water report • Human capital management, including safety and health and employee engagement and development • Succession planning Annual Report on Sustainability: Human Rights; Communities; Compliance Line FCX.com: Human Rights; Communities
B40: GRI 102 GENERAL DISCLOSURES | C40: Universal: Governance | D40: 102-35 | E40: Remuneration policies | F40: Proxy Statement: Process of Setting Director Compensation Annual Report on Sustainability: Workforce - Fair & Equitable Remuneration; Diversity & Inclusion | G40: SDG 8: Decent Work and Economic Growth
B41: GRI 102 GENERAL DISCLOSURES | C41: Universal: Governance | D41: 102-36 | E41: Process for determining remuneration | F41: We focus on attracting and retaining talented people by offering quality employment with competitive compensation and opportunities for professional development. Our approach to compensation and benefits is market-based and competitive and informed by annual benchmarking and analysis. We are committed to respecting the rights of our workforce, including paying fair wages. This includes equal pay for equal work, and compensation levels that support the acquisition of the goods and services necessary for an average size family to meet their basic needs in the geographic locations where we operate. Proxy Statement: Process of Setting Director Compensation Annual Report on Sustainability: Workforce - Fair & Equitable Remuneration; Diversity & Inclusion | G41: SDG 8: Decent Work and Economic Growth
B42: GRI 102 GENERAL DISCLOSURES | C42: Universal: Governance | D42: 102-37 | E42: Stakeholders’ involvement in remuneration | F42: Proxy Statement: Stockholder and Stakeholder Engagement | G42: SDG 8: Decent Work and Economic Growth SDG 16: Peace, Justice and Strong Institutions
B43: GRI 102 GENERAL DISCLOSURES | C43: Universal: Governance | D43: 102-40 | E43: List of stakeholder groups | F43: Annual Report on Sustainability: Our Approach; Voluntary Memberships & Commitments Voluntary Memberships & Commitments, Communities, Stakeholder Engagement and Human Rights on fcx.com | G43: SDG 17: Partnerships for the Goals
B44: GRI 102 GENERAL DISCLOSURES | C44: Universal: Governance | D44: 102-41 | E44: Collective bargaining agreements | F44: Workforce > Labor Relations on fcx.com Form 10-K: Part I, Labor Matters | G44: SDG 8: Decent Work and Economic Growth
B45: GRI 102 GENERAL DISCLOSURES | C45: Universal: Governance | D45: 102-42 | E45: Identifying and selecting stakeholders | F45: We believe effective stakeholder engagement is founded on transparency and meaningful dialogue. Our goal is to foster mutual understanding, trust and cooperation with our broad range of stakeholders including our stockholders, employees, communities, customers and suppliers, regulators and policymakers, host governments and nongovernmental organizations. Proxy Statement: Stockholder and Stakeholder Engagement Annual Report on Sustainability: Our Approach; Communities; Stakeholder Engagement; Human Rights
B46: GRI 102 GENERAL DISCLOSURES | C46: Universal: Governance | D46: 102-43 | E46: Approach to stakeholder engagement | F46: We believe effective stakeholder engagement is founded on transparency and meaningful dialogue. Our goal is to foster mutual understanding, trust and cooperation with our broad range of stakeholders including our stockholders, employees, communities, customers and suppliers, regulators and policymakers, host governments and nongovernmental organizations. Proxy Statement: Stockholder and Stakeholder Engagement Annual Report on Sustainability: Letter to Stakeholders; Message from our Corporate Responsibility Committee Chair; Our Approach; Communities; Stakeholder Engagement; Human Rights | G46: SDG 11: Sustainable Cities and Communities
B47: GRI 102 GENERAL DISCLOSURES | C47: Universal: Governance | D47: 102-44 | E47: Key topics and concerns raised | F47: Annual Report on Sustainability: Letter to Stakeholders; Message from our Corporate Responsibility Committee Chair; Our Approach Communities; Stakeholder Engagement Human Rights on fcx.com | G47: SDG 11: Sustainable Cities and Communities
B48: GRI 102 GENERAL DISCLOSURES | C48: Universal: Reporting Practice | D48: 102-45 | E48: Entities included in the consolidated financial statements | F48: Form 10-K: Part I, General
B49: GRI 102 GENERAL DISCLOSURES | C49: Universal: Reporting Practice | D49: 102-46 | E49: Defining report content and topic Boundaries | F49: Freeport-McMoRan is committed to communicating regularly and transparently with our stakeholders about how we do business. Annually, we publish a report on sustainability. Our sustainability report provides information on how we address the environmental, social and governance matters we and our stakeholders view as most important to our business. This report is intended to be a companion to our 2020 Annual Report and 2021 Proxy Statement as well as the Sustainability section of our website. The 2020 report focuses primarily on the operations of Freeport-McMoRan’s subsidiaries: Freeport Minerals Corporation (FMC) in the Americas and PT Freeport Indonesia (PT-FI) in Indonesia for the period January 1, 2020, to December 31, 2020, unless otherwise indicated. All data is effective as of December 31, 2020, unless otherwise noted. For additional information on all topics that are important to Freeport-McMoRan, please visit our website. Annual Report on Sustainability: About this Report; Our Approach GRI Content Index (this index)
B50: GRI 102 GENERAL DISCLOSURES | C50: Universal: Reporting Practice | D50: 102-47 | E50: List of material topics | F50: ENVIRONMENTAL Environmental Management Climate Water Stewardship Tailings Management & Stewardship Biodiversity Waste Management & Reclamation SOCIAL Health & Safety Human Rights Workforce Community Engagement & Development Engaging with Indigenous Peoples GOVERNANCE Anti-Corruption Ethics & Integrity Board & CRC Leadership Responsible Value Chains Product Stewardship Political Spending Annual Report on Sustainability: Focus Areas; The Risk Register; Materiality GRI Content Index (this index)
B51: GRI 102 GENERAL DISCLOSURES | C51: Universal: Reporting Practice | D51: 102-48 | E51: Restatements of information | F51: As a result of methodology changes or corrections, prior year data may be updated. Data presentation and comparisons may not meet the direct needs of all stakeholders, and we encourage users of this information to contact our Sustainability Department with inquiries, sustainability@fmi.com.
B52: GRI 102 GENERAL DISCLOSURES | C52: Universal: Reporting Practice | D52: 102-49 | E52: Changes in reporting | F52: Annual Report on Sustainability: About this Report
B53: GRI 102 GENERAL DISCLOSURES | C53: Universal: Reporting Practice | D53: 102-50 | E53: Reporting period | F53: Fiscal year ended December 31, 2020
B54: GRI 102 GENERAL DISCLOSURES | C54: Universal: Reporting Practice | D54: 102-51 | E54: Date of most recent report | F54: 2020 Annual Report on Sustainability
B55: GRI 102 GENERAL DISCLOSURES | C55: Universal: Reporting Practice | D55: 102-52 | E55: Reporting cycle | F55: Annual
B56: GRI 102 GENERAL DISCLOSURES | C56: Universal: Reporting Practice | D56: 102-53 | E56: Contact point for questions regarding the report | F56: sustainability@fmi.com
B57: GRI 102 GENERAL DISCLOSURES | C57: Universal: Reporting Practice | D57: 102-54 | E57: Claims of reporting in accordance with the GRI Standards | F57: GRI Content Index (this index) External Assurance Annual Report on Sustainability: About this Report
B58: GRI 102 GENERAL DISCLOSURES | C58: Universal: Reporting Practice | D58: 102-55 | E58: GRI content index | F58: GRI Content Index (this index)
B59: GRI 102 GENERAL DISCLOSURES | C59: Universal: Reporting Practice | D59: 102-56 | E59: External assurance | F59: Our Annual Reports on Sustainability have been independently verified since 2005. External assurance of our 2020 reporting was conducted by Corporate Integrity Ltd. in accordance with the ICMM Mining Principles Assurance and Validation Procedure and the Copper Mark Assurance Process. Since 2009, site-level external assurance has been completed multiple times at all active mining and metals processing operations. We conduct site-level external assurance at each of our operations at least once every three years and annually at PT-FI and Cerro Verde Annual Report on Sustainability: External Assurance; Our Approach External Assurance on fcx.com
B60: GRI 103 MANAGEMENT APPROACH | C60: Universal: Management Approach | D60: 103-1 | E60: Explanation of the material topic and its Boundary | F60: Our management approach is described in each relevant section. Annual Report on Sustainability: About this Report; Our Approach Form 10-K: Part I, General GRI Content Index (this index)
B61: GRI 103 MANAGEMENT APPROACH | C61: Universal: Management Approach | D61: 103-2 | E61: The management approach and its components | F61: Our management approach is described in each relevant section and focus area. Annual Report on Sustainability: About this Report; Our Approach; Business Integrity; Letter to Stakeholders; Message from our Corporate Responsibility Committee Chair Form 10-K: Part I, General GRI Content Index (this index) | G61: SDG 1: No Poverty SDG 5: Gender Equality SDG 8: Decent Work and Economic Growth SDG 12: Responsible Consumption and Production SDG 13: Climate Action SDG 15: Life on Land SDG 16: Peace, Justice and Strong Institutions
B62: GRI 103 MANAGEMENT APPROACH | C62: Universal: Management Approach | D62: 103-3 | E62: Evaluation of the management approach | F62: Our management approach is described in each relevant section. Annual Report on Sustainability: About this Report; Our Approach GRI Content Index (this index)
B63: GRI 200 ECONOMIC | C63: 201 Economic Performance | D63: 103-1 | E63: Explanation of the material topic and its Boundary | F63: Form 10-K: Part II, Consolidated Results Annual Report on Sustainability: Our Approach Economic Value Contributed on fcx.com
B64: GRI 200 ECONOMIC | C64: 201 Economic Performance | D64: 103-2 | E64: The management approach and its components | F64: Form 10-K: Part II, Consolidated Results Annual Report on Sustainability: About this Report; Our Approach; Business Integrity; Community Grievance Mechanisms; Letter to Stakeholders; Message from our Corporate Responsibility Committee Chair GRI Content Index (this index)
B65: GRI 200 ECONOMIC | C65: 201 Economic Performance | D65: 103-3 | E65: Evaluation of the management approach | F65: Form 10-K Annual Report on Sustainability: Our Approach
B66: GRI 200 ECONOMIC | C66: 201 Economic Performance | D66: 201-1 | E66: Direct economic value generated and distributed | F66: Form 10-K: Part II, Consolidated Results Annual Report on Sustainability: Community Engagement; Social Investments; Transparency of Government Payments Economic Value Contributed on fcx.com | G66: SDG 1: No Poverty SDG 2: Zero Hunger SDG 5: Gender Equality SDG 7: Affordable and Clean Energy SDG 8: Decent Work and Economic Growth SDG 9: Industry, Innovation and Infrastructure
B67: GRI 200 ECONOMIC | C67: 201 Economic Performance | D67: 201-2 | E67: Financial implications and other risks and opportunities due to climate change | F67: Form 10-K: Environmental Risks Annual Report on Sustainability: Climate; Water Stewardship Climate Report Water Report | G67: SDG 13: Climate Action
B68: GRI 200 ECONOMIC | C68: 203 Indirect Economic Impacts | D68: 103-1 | E68: Explanation of the material topic and its Boundary | F68: Annual Report on Sustainability: Our Approach; Community Engagement; Social Investments; Economic Value Contributed Form 10-K: Part II, Consolidated Results Economic Value Contributed on fcx.com
B69: GRI 200 ECONOMIC | C69: 203 Indirect Economic Impacts | D69: 103-2 | E69: The management approach and its components | F69: Annual Report on Sustainability: Our Approach; Community Engagement; Social Investments; Business Integrity; Letter to Stakeholders; Message from our Corporate Responsibility Committee Chair Form 10-K: Part II, Consolidated Results Economic Value Contributed and Assessing & Managing Impacts > Community Grievance Mechanisms on fcx.com
B70: GRI 200 ECONOMIC | C70: 203 Indirect Economic Impacts | D70: 103-3 | E70: Evaluation of the management approach | F70: Annual Report on Sustainability: Our Approach Form 10-K: Part II, Consolidated Results
B71: GRI 200 ECONOMIC | C71: 203 Indirect Economic Impacts | D71: 203-1 | E71: Infrastructure investments and services supported | F71: Community Engagement, Social Investments, Public Health, Environment and Economic Value Contributed on fcx.com ESG Performance Data | G71: SDG 2: Zero Hunger SDG 5: Gender Equality SDG 7: Affordable and Clean Energy SDG 9: Industry Innovation and Infrastructure SDG 11: Sustainable Cities and Communities
B72: GRI 200 ECONOMIC | C72: 203 Indirect Economic Impacts | D72: 203-2 | E72: Significant indirect economic impacts | F72: Community Engagement & Social Investments and Economic Value Contributed on fcx.com ESG Performance Data | G72: SDG 1: No Poverty SDG 2: Zero Hunger SDG 3: Good Health and Well-Being SDG 8: Decent Work and Economic Growth SDG 10: Reduced Inequalities SDG 17: Partnerships for the Goals
B73: GRI 200 ECONOMIC | C73: 204 Procurement Practices | D73: 103-1 | E73: Explanation of the material topic and its Boundary | F73: Annual Report on Sustainability: Our Approach; Responsible Value Chains Community Engagement, Social Investments and Economic Value Contributed on fcx.com Form 10-K: Part I, Sources and Availability of Energy, Natural Resources and Raw Materials
B74: GRI 200 ECONOMIC | C74: 204 Procurement Practices | D74: 103-2 | E74: The management approach and its components | F74: Annual Report on Sustainability: Our Approach; Business Integrity; Letter to Stakeholders; Message from our Corporate Responsibility Committee Chair; Responsible Value Chains Economic Value Contributed, Community Engagement & Social Investments, Community Grievance Mechanisms on fcx.com Form 10-K: Part I, Sources and Availability of Energy, Natural Resources and Raw Materials
B75: GRI 200 ECONOMIC | C75: 204 Procurement Practices | D75: 103-3 | E75: Evaluation of the management approach | F75: Annual Report on Sustainability: Our Approach Form 10-K: Part I, Sources and Availability of Energy, Natural Resources and Raw Materials
B76: GRI 200 ECONOMIC | C76: 204 Procurement Practices | D76: 204-1 | E76: Proportion of spending on local suppliers | F76: 2020 Procurement Spend Distribution: Local = 34% National = 53% Outside Home Country = 14% Economic Value Contributed > Local Suppliers on fcx.com ESG Performance Data | G76: SDG 12: Responsible Consumption and Production
B77: GRI 200 ECONOMIC | C77: 205 Anti-Corruption | D77: 103-1 | E77: Explanation of the material topic and its Boundary | F77: Annual Report on Sustainability: Our Approach; Business Integrity Economic Value Contributed on fcx.com Form 10-K: Part I, Risk Factors
B78: GRI 200 ECONOMIC | C78: 205 Anti-Corruption | D78: 103-2 | E78: The management approach and its components | F78: Annual Report on Sustainability: Our Approach; Business Integrity; Letter to Stakeholders; Message from our Corporate Responsibility Committee Chair Economic Value Contributed and Assessing & managing Impacts > Community Grievance Mechanisms on fcx.com Form 10-K: Part I, Risk Factors
B79: GRI 200 ECONOMIC | C79: 205 Anti-Corruption | D79: 103-3 | E79: Evaluation of the management approach | F79: Annual Report on Sustainability: Our Approach; Business Integrity Form 10-K: Part I, Risk Factors
B80: GRI 200 ECONOMIC | C80: 205 Anti-Corruption | D80: 205-1 | E80: Operations assessed for risks related to corruption | F80: Every year, our internal audit firm performs a company-wide, global business risk assessment to assist in planning the next year’s audit projects. This overall risk assessment includes corruption as a risk factor. Annual Report on Sustainability: Bisiness Integrity; Focus Areas | G80: SDG 16: Peace, Justice and Strong Institutions
B81: GRI 200 ECONOMIC | C81: 205 Anti-Corruption | D81: 205-2 | E81: Communication and training about anti-corruption policies and procedures | F81: Annual Report on Sustainability: Business Integrity | G81: SDG 16: Peace, Justice and Strong Institutions
B82: GRI 200 ECONOMIC | C82: 302 Energy | D82: 103-1 | E82: Explanation of the material topic and its Boundary | F82: Annual Report on Sustainability: Our Approach; Environment; Climate Climate Report Form 10-K: Part I, General
B83: GRI 200 ECONOMIC | C83: 302 Energy | D83: 103-2 | E83: The management approach and its components | F83: Annual Report on Sustainability: Letter to Stakeholders Message from our Corporate Responsibility Committee Chair; Our Approach; Environment; Business Integrity; Climate Form 10-K: Part I, General Climate Report
B84: GRI 200 ECONOMIC | C84: 302 Energy | D84: 103-3 | E84: Evaluation of the management approach | F84: Annual Report on Sustainability: Our Approach Form 10-K
B85: GRI 200 ECONOMIC | C85: 302 Energy | D85: 302-1 | E85: Energy consumption within the organization The reporting organization shall report the following information: a. Total fuel consumption within the organization from non-renewable sources, in joules or multiples, and including fuel types used. b. Total fuel consumption within the organization from renewable sources, in joules or multiples, and including fuel types used. c. In joules, watt-hours or multiples, the total: i. electricity consumption ii. heating consumption iii. cooling consumption iv. steam consumption d. In joules, watt-hours or multiples, the total: i. electricity sold ii. heating sold iii. cooling sold iv. steam sold e. Total energy consumption within the organization, in joules or multiples. f. Standards, methodologies, assumptions, and/or calculation tools used. g. Source of the conversion factors used. | F85: Annual Report on Sustainability: Climate Climate Report Form 10-K: Part I, General ESG Performance Data | G85: SDG 7: Affordable and Clean Energy SDG 8: Decent Work and Economic Growth SDG 12: Responsible Consumption and Production SDG 13: Climate Action
B86: GRI 200 ECONOMIC | C86: 302 Energy | D86: 302-3 | E86: Energy Intensity | F86: Annual Report on Sustainability: Climate Climate Report ESG Performance Data | G86: SDG 7: Affordable and Clean Energy SDG 8: Decent Work and Economic Growth SDG 13: Climate Action
B87: GRI 200 ECONOMIC | C87: 302 Energy | D87: 302-4 | E87: Reduction of energy consumption | F87: Annual Report on Sustainability: Climate Climate Report | G87: SDG 7: Affordable and Clean Energy SDG 8: Decent Work and Economic Growth SDG 12: Responsible Consumption and Production SDG 13: Climate Action
B88: GRI 200 ECONOMIC | C88: 303 Water and Effluents | D88: 103-1 | E88: Explanation of the material topic and its Boundary | F88: Annual Report on Sustainability: Our Approach; Environment; Water Stewardship Water Report Form 10-K: Part I, General ESG Performance Data
B89: GRI 200 ECONOMIC | C89: 303 Water and Effluents | D89: 103-2 | E89: The management approach and its components | F89: Annual Report on Sustainability: Letter to Stakeholders; Message from our Corporate Responsibility Committee Chair; Our Approach; Environment; Business Integrity; Water Stewardship Form 10-K: Part I, General Water Report
B90: GRI 200 ECONOMIC | C90: 303 Water and Effluents | D90: 103-3 | E90: Evaluation of the management approach | F90: Annual Report on Sustainability: Our Approach Form 10-K: Part I, General
B91: GRI 200 ECONOMIC | C91: 303 Water and Effluents | D91: 303-1 | E91: Water withdrawal by source | F91: Annual Report on Sustainability: Water Stewardship Water Report | G91: SDG 6: Clean Water and Sanitation
B92: GRI 200 ECONOMIC | C92: 303 Water and Effluents | D92: 303-3 | E92: Water recycled and reused | F92: Annual Report on Sustainability: Water Stewardship Water Report ESG Performance Data | G92: SDG 6: Clean Water and Sanitation SDG 8: Decent Work and Economic Growth SDG 12: Responsible Consumption and Production
B93: GRI 200 ECONOMIC | C93: 303 Water and Effluents | D93: 303-5 | E93: Water consumption | F93: Annual Report on Sustainability: Water Stewardship Water Report | G93: SDG 6: Clean Water and Sanitation SDG 12: Responsible Consumption and Production
B94: GRI 200 ECONOMIC | C94: 304 Biodiversity | D94: 103-1 | E94: Explanation of the material topic and its Boundary | F94: Annual Report on Sustainability: Our Approach Biodiversity on fcx.com Form 10-K: Part I, Risk Factors
B95: GRI 200 ECONOMIC | C95: 304 Biodiversity | D95: 103-2 | E95: The management approach and its components | F95: Annual Report on Sustainability: Letter to Stakeholders; Message from our Corporate Responsibility Committee Chair; Our Approach; Environment; Business Integrity Form 10-K Community Grievance Mechanisms and Biodiversity on fcx.com
B96: GRI 200 ECONOMIC | C96: 304 Biodiversity | D96: 103-3 | E96: Evaluation of the management approach | F96: Annual Report on Sustainability: Our Approach Form 10-K: Part I, Risk Factors
B97: GRI 200 ECONOMIC | C97: 304 Biodiversity | D97: 304-2 | E97: Significant impacts of activities, products, and services | F97: A nnual Report on Sustainability: Biodiversity; Tailings Stewardship Biodiversity and Tailings Management on fcx.com | G97: SDG 6: Clean Water and Sanitation SDG 13: Climate Action SDG 14: Life Below Water SDG 15: Life on Land
B98: GRI 200 ECONOMIC | C98: 304 Biodiversity | D98: 304-3 | E98: Habitats protected or restored | F98: Annual Report on Sustainability: Environment; Mine Closure & Reclamation; Biodiversity Biodiversity on fcx.com | G98: SDG 6: Clean Water and Sanitation SDG 13: Climate Action SDG 14: Life Below Water SDG 15: Life on Land
B99: GRI 200 ECONOMIC | C99: 304 Biodiversity | D99: MM1 | E99: Amount of land (owned or leased, and managed for production activities or extractive use) disturbed or rehabilitated | F99: Annual Report on Sustainability: Mine Closure & Reclamation Biodiversity on fcx.com | G99: SDG 3: Good Health and Well-Being SDG 6: Clean Water and Sanitation SDG 12: Responsible Consumption and Production SDG 13: Climate Action SDG 14: Life Below Water SDG 15: Life on Land
B100: GRI 200 ECONOMIC | C100: 304 Biodiversity | D100: MM2 | E100: The number and percentage of total sites identified as requiring biodiversity management plans according to stated criteria, and the number (percentage) of those sites with plans in place | F100: Biodiversity on fcx.com | G100: SDG 6: Clean Water and Sanitation SDG 13: Climate Action SDG 14: Life Below Water SDG 15: Life on Land
B101: GRI 200 ECONOMIC | C101: 305 Emissions | D101: 103-1 | E101: Explanation of the material topic and its Boundary | F101: Annual Report on Sustainability: Our Approach; Environment; Climate Climate Report Form 10-K: Part I, Risk Factors
B102: GRI 200 ECONOMIC | C102: 305 Emissions | D102: 103-2 | E102: The management approach and its components | F102: Annual Report on Sustainability: Letter to Stakeholders; Message from our Corporate Responsibility Committee Chair; Our Approach; Environment; Business Integrity; Climate Form 10-K: Part I, Risk Factors Assessing & Managing impacts > Community Grievance Mechanisms on fcx.com Climate Report
B103: GRI 200 ECONOMIC | C103: 305 Emissions | D103: 103-3 | E103: Evaluation of the management approach | F103: Annual Report on Sustainability: Our Approach Form 10-K: Part I, Risk Factors
B104: GRI 200 ECONOMIC | C104: 305 Emissions | D104: 305-1 | E104: 1 Direct (Scope I) GHG emissions | F104: Annual Report on Sustainability: Climate Climate Report ESG Performance Data | G104: SDG 3: Good Health and Well-Being SDG 12: Responsible Consumption and Production SDG 13: Climate Action SDG 14: Life Below Water SDG 15: Life on Land
B105: GRI 200 ECONOMIC | C105: 305 Emissions | D105: 305-2 | E105: Energy Indirect (Scope II) GHG emissions | F105: Annual Report on Sustainability: Climate Climate Report ESG Performance Data | G105: SDG 3: Good Health and Well-Being SDG 12: Responsible Consumption and Production SDG 13: Climate Action SDG 14: Life Below Water SDG 15: Life on Land
B106: GRI 200 ECONOMIC | C106: 305 Emissions | D106: 305-3 | E106: Other indirect (Scope III) GHG emissions | F106: Annual Report on Sustainability: Climate Climate Report ESG Performance Data | G106: SDG 3: Good Health and Well-Being SDG 12: Responsible Consumption and Production SDG 13: Climate Action SDG 14: Life Below Water SDG 15: Life on Land
B107: GRI 200 ECONOMIC | C107: 305 Emissions | D107: 305-4 | E107: GHG emissions intensity | F107: Annual Report on Sustainability: Climate Climate Report | G107: SDG 12: Responsible Consumption and Production SDG 13: Climate Action SDG 14: Life Below Water SDG 15: Life on Land
B108: GRI 200 ECONOMIC | C108: 305 Emissions | D108: 305-5 | E108: Reduction of GHG emissions | F108: ESG Performance Data | G108: SDG 12: Responsible Consumption and Production SDG 13: Climate Action SDG 14: Life Below Water SDG 15: Life on Land
B109: GRI 200 ECONOMIC | C109: 305 Emissions | D109: 305-6 | E109: Emissions of ozone-depleting substances (ODS) | F109: ESG Performance Data | G109: SDG 3: Good Health and Well-Being SDG 12: Responsible Consumption and Production SDG 13: Climate Action
B110: GRI 200 ECONOMIC | C110: 305 Emissions | D110: 305-7 | E110: Nitrogen oxides (NOX), sulfur oxides (SOX), and other significant air emissions | F110: ESG Performance Data | G110: SDG 3: Good Health and Well-Being SDG 12: Responsible Consumption and Production SDG 13: Climate Action SDG 14: Life Below Water SDG 15: Life on Land
B111: GRI 200 ECONOMIC | C111: 306 Effluents and Waste | D111: 103-1 | E111: Explanation of the material topic and its Boundary | F111: Annual Report on Sustainability: Our Approach; Environment; Waste Management; Tailings Management; Water Stewardship Form 10-K: Part I, Risk Factors
B112: GRI 200 ECONOMIC | C112: 306 Effluents and Waste | D112: 103-2 | E112: The management approach and its components | F112: Annual Report on Sustainability: Letter to Stakeholders; Message from our Corporate Responsibility Committee Chair; Our Approach; Environment; Business Integrity; Waste Management; Tailings Management; Water Stewardship; Community Grievance Mechanisms Form 10-K: Part I, Risk Factors Assessing & Managing Impacts > Community Grievance Mechanisms on fcx.com
B113: GRI 200 ECONOMIC | C113: 306 Effluents and Waste | D113: 103-3 | E113: Evaluation of the management approach | F113: Annual Report on Sustainability: Our Approach Form 10-K: Part I, Risk Factors
B114: GRI 200 ECONOMIC | C114: 306 Effluents and Waste | D114: 306-1 | E114: Water discharged by quality and destination | F114: Annual Report on Sustainability: Water Stewardship Tailings Management & Stewardship > Controlled Riverine Tailings Management on fcx.com | G114: SDG 3: Good Health and Well-Being SDG 6: Clean Water and Sanitation SDG 12: Responsible Consumption and Production SDG 13: Climate Action SDG 14: Life Below Water
B115: GRI 200 ECONOMIC | C115: 306 Effluents and Waste | D115: 306-2 | E115: Waste by type and disposal method | F115: Annual Report on Sustainability: Waste Management | G115: SDG 3: Good Health and Well-Being SDG 6: Clean Water and Sanitation SDG 12: Responsible Consumption and Production SDG 13: Climate Action
B116: GRI 200 ECONOMIC | C116: 306 Effluents and Waste | D116: 306-3 | E116: Significant spills | F116: Annual Report on Sustainability: Performance Targets; Environment ESG Performance Data | G116: SDG 3: Good Health and Well-Being SDG 6: Clean Water and Sanitation SDG 12: Responsible Consumption and Production SDG 13: Climate Action SDG 14: Life Below Water SDG 15: Life on Land
B117: GRI 200 ECONOMIC | C117: 306 Effluents and Waste | D117: 306-5 | E117: Water bodies affected by water discharges and/or runoff | F117: Biodiversity and Tailings Management & Stewardship > Controlled Riverine Tailings Management on fcx.com | G117: SDG 6: Clean Water and Sanitation SDG 12: Responsible Consumption and Production SDG 13: Climate Action SDG 14: Life Below Water SDG 15: Life on Land
B118: GRI 200 ECONOMIC | C118: 306 Effluents and Waste | D118: MM3 | E118: Total amounts of overburden, rock, tailings and sludges, and, their associated risks | F118: Annual Report on Sustainability: Tailings Stewardship; Waste Management Tailings Management on fcx.com Form 10-K: Part I, Operational Risks | G118: SDG 3: Good Health and Well-Being SDG 6: Clean Water and Sanitation SDG 11: Sustainable Cities and Communities SDG 12: Responsible Consumption and Production
B119: GRI 300 ENVIRONMENTAL | C119: 307 Environmental Compliance | D119: 103-1 | E119: Explanation of the material topic and its Boundary | F119: Annual Report on Sustainability: Our Approach; Environment Form 10-K
B120: GRI 300 ENVIRONMENTAL | C120: 307 Environmental Compliance | D120: 103-2 | E120: The management approach and its components | F120: Annual Report on Sustainability: Letter to Stakeholders; Message from our Corporate Responsibility Committee Chair; Our Approach; Environment; Business Integrity Form 10-K: Part I, Operational Risks Assessing & Managing Impacts > Community Grievance Mechanisms on fcx.com
B121: GRI 300 ENVIRONMENTAL | C121: 307 Environmental Compliance | D121: 103-3 | E121: Evaluation of the management approach | F121: Annual Report on Sustainability: Our Approach Form 10-K: Part I, Operational Risks
B122: GRI 300 ENVIRONMENTAL | C122: 307 Environmental Compliance | D122: 307-1 | E122: Non-compliance with environmental laws and regulations | F122: Annual Report on Sustainability: Environment | G122: SDG 6: Clean Water and Sanitation SDG 12: Responsible Consumption and Production SDG 13: Climate Action SDG 14: Life Below Water SDG 15: Life on Land SDG 16: Peace, Justice and Strong Institutions
B123: GRI 300 ENVIRONMENTAL | C123: 308 Supplier Environmental Assessment | D123: 103-1 | E123: Explanation of the material topic and its Boundary | F123: Annual Report on Sustainability: Our Approach; Environment Environmental Policy
B124: GRI 300 ENVIRONMENTAL | C124: 308 Supplier Environmental Assessment | D124: 103-2 | E124: The management approach and its components | F124: Annual Report on Sustainability: Our Approach; Environment; Business Integrity; Responsible Value Chains
B125: GRI 300 ENVIRONMENTAL | C125: 308 Supplier Environmental Assessment | D125: 103-3 | E125: Evaluation of the management approach | F125: Annual Report on Sustainability: Our Approach
B126: GRI 300 ENVIRONMENTAL | C126: 308 Supplier Environmental Assessment | D126: 308-1 | E126: New suppliers that were screened using environmental criteria | F126: Annual Report on Sustainability: Business Integrity; Defining Responsible Production | G126: SDG 12: Responsible Consumption and Production
B127: GRI 400 SOCIAL | C127: 401 Employment | D127: 103-1 | E127: Explanation of the material topic and its Boundary | F127: Annual Report on Sustainability: Our Approach; Workforce
B128: GRI 400 SOCIAL | C128: 401 Employment | D128: 103-2 | E128: The management approach and its components | F128: Annual Report on Sustainability: Our Approach
B129: GRI 400 SOCIAL | C129: 401 Employment | D129: 103-3 | E129: Evaluation of the management approach | F129: Annual Report on Sustainability: Our Approach
B130: GRI 400 SOCIAL | C130: 401 Employment | D130: 401-1 | E130: New employee hires and employee turnover | F130: Annual Report on Sustainability: Workforce | G130: SDG 5: Gender Equality SDG 8: Decent Work and Economic Growth SDG 10: Reduced Inequalities
B131: GRI 400 SOCIAL | C131: 402 Labor/Management Relations | D131: 103-1 | E131: Explanation of the material topic and its Boundary | F131: Annual Report on Sustainability: Our Approach; Workforce
B132: GRI 400 SOCIAL | C132: 402 Labor/Management Relations | D132: 103-2 | E132: The management approach and its components | F132: Annual Report on Sustainability: Our Approach; Labor Relations
B133: GRI 400 SOCIAL | C133: 402 Labor/Management Relations | D133: 103-3 | E133: Evaluation of the management approach | F133: Annual Report on Sustainability: Our Approach
B134: GRI 400 SOCIAL | C134: 402 Labor/Management Relations | D134: 402-1 | E134: Minimum notice periods regarding operational changes | F134: Workforce > Labor Relations on fcx.com | G134: SDG 8: Decent Work and Economic Growth
B135: GRI 400 SOCIAL | C135: 402 Labor/Management Relations | D135: MM4 | E135: Number of strikes and lock-outs exceeding one week's duration, by country | F135: Although there were no formal strikes or lockouts at any of our operations in 2020, in third-quarter 2020, we experienced a five-day labor-related work stoppage related to COVID-19 travel restrictions when a group of workers at PT-FI staged protests and a blockade restricting access to the main road to the mining operations area. We quickly reached an amicable resolution with the group of workers, while upholding our COVID-19 safety protocols. | G135: SDG 3: Good Health and Well-Being SDG 8: Decent Work and Economic Growth SDG 10: Reduced Inequalities
B136: GRI 400 SOCIAL | C136: 403 Occupational Health and Safety | D136: 103-1 | E136: Explanation of the material topic and its Boundary | F136: Annual Report on Sustainability: Our Approach; Health & Safety
B137: GRI 400 SOCIAL | C137: 403 Occupational Health and Safety | D137: 103-2 | E137: The management approach and its components | F137: Annual Report on Sustainability: Letter to Stakeholders; Message from our Corporate Responsibility Committee Chair; Our Approach
B138: GRI 400 SOCIAL | C138: 403 Occupational Health and Safety | D138: 103-3 | E138: Evaluation of the management approach | F138: Annual Report on Sustainability: Our Approach
B139: GRI 400 SOCIAL | C139: 403 Occupational Health and Safety | D139: 403-1 | E139: Occupational health and safety management system | F139: Annual Report on Sustainability: Health & Safety | G139: SDG 3: Good Health and Well-Being SDG 8: Decent Work and Economic Growth
B140: GRI 400 SOCIAL | C140: 403 Occupational Health and Safety | D140: 403-2 | E140: Hazard identification, risk assessment, and incident investigation | F140: Annual Report on Sustainability: Health & Safety; The Risk Register | G140: SDG 3: Good Health and Well-Being SDG 8: Decent Work and Economic Growth
B141: GRI 400 SOCIAL | C141: 403 Occupational Health and Safety | D141: 403-3 | E141: Occupational health services | F141: Annual Report on Sustainability: Health & Safety; The Risk Register | G141: SDG 3: Good Health and Well-Being SDG 8: Decent Work and Economic Growth
B142: GRI 400 SOCIAL | C142: 403 Occupational Health and Safety | D142: 403-4 | E142: Worker participation, consultation, and communication on occupational health and safety | F142: Annual Report on Sustainability: Health & Safety | G142: SDG 3: Good Health and Well-Being SDG 8: Decent Work and Economic Growth
B143: GRI 400 SOCIAL | C143: 403 Occupational Health and Safety | D143: 403-5 | E143: Worker training on occupational health and safety | F143: Annual Report on Sustainability: Health & Safety | G143: SDG 3: Good Health and Well-Being SDG 8: Decent Work and Economic Growth
B144: GRI 400 SOCIAL | C144: 403 Occupational Health and Safety | D144: 403-6 | E144: Promotion of worker health | F144: Annual Report on Sustainability: Health & Safety | G144: SDG 3: Good Health and Well-Being SDG 8: Decent Work and Economic Growth
B145: GRI 400 SOCIAL | C145: 403 Occupational Health and Safety | D145: 403-7 | E145: Prevention and mitigation of occupational health and safety impacts directly linked by business relationships | F145: Annual Report on Sustainability: Health & Safety | G145: SDG 3: Good Health and Well-Being SDG 8: Decent Work and Economic Growth
B146: GRI 400 SOCIAL | C146: 404 Training and Education | D146: 103-1 | E146: Explanation of the material topic and its Boundary | F146: Annual Report on Sustainability: Our Approach; Workforce
B147: GRI 400 SOCIAL | C147: 404 Training and Education | D147: 103-2 | E147: The management approach and its components | F147: Annual Report on Sustainability: Our Approach; Communities Communities on fcx.com
B148: GRI 400 SOCIAL | C148: 404 Training and Education | D148: 103-3 | E148: Evaluation of the management approach | F148: Annual Report on Sustainability: Our Approach; Communities Communities on fcx.com
B149: GRI 400 SOCIAL | C149: 404 Training and Education | D149: 404-2 | E149: Programs for upgrading employee skills and transition assistance programs | F149: Annual Report on Sustainability: Talent Development & Training; Diversity & Local Hiring FMJobs.com | G149: SDG 4: Quality Education SDG 8: Decent Work and Economic Growth
B150: GRI 400 SOCIAL | C150: 405 Diversity and Equal Opportunity | D150: 103-1 | E150: Explanation of the material topic and its Boundary | F150: Annual Report on Sustainability: Our Approach; Workforce; Inclusion & Diversity
B151: GRI 400 SOCIAL | C151: 405 Diversity and Equal Opportunity | D151: 103-2 | E151: The management approach and its components | F151: Annual Report on Sustainability: Our Approach
B152: GRI 400 SOCIAL | C152: 405 Diversity and Equal Opportunity | D152: 103-3 | E152: Evaluation of the management approach | F152: Annual Report on Sustainability: Our Approach
B153: GRI 400 SOCIAL | C153: 405 Diversity and Equal Opportunity | D153: 405-1 | E153: Diversity of governance bodies and employees | F153: Annual Report on Sustainability: Inclusion & Diversity Proxy Statement: Information About Director Nominees | G153: SDG 5: Gender Equality SDG 8: Decent Work and Economic Growth
B154: GRI 400 SOCIAL | C154: 405 Diversity and Equal Opportunity | D154: 405-2 | E154: Ratio of basic salary and remuneration of women to men | F154: It is our policy to make all employment decisions on the basis of merit and the essential functions of a position and provide equal pay and benefit opportunities to persons with equal skill, effort and job responsibilities. | G154: SDG 5: Gender Equality SDG 8: Decent Work and Economic Growth SDG 10: Reduced Inequalities
B155: GRI 400 SOCIAL | C155: 406 Non-discrimination | D155: 103-1 | E155: Explanation of the material topic and its Boundary | F155: Annual Report on Sustainability: Our Approach; Inclusion & Diversity Human Rights Policy
B156: GRI 400 SOCIAL | C156: 406 Non-discrimination | D156: 103-2 | E156: The management approach and its components | F156: Annual Report on Sustainability: Our Approach; Business Integrity
B157: GRI 400 SOCIAL | C157: 406 Non-discrimination | D157: 103-3 | E157: Evaluation of the management approach | F157: Annual Report on Sustainability: Our Approach
B158: GRI 400 SOCIAL | C158: 406 Non-discrimination | D158: 406-1 | E158: Incidents of discrimination and corrective actions taken | F158: Annual Report on Sustainability: Inclusion & Diversity; Labor Relations; Human Rights; Compliance Line | G158: SDG 5: Gender Equality SDG 8: Decent Work and Economic Growth SDG 16: Peace, Justice and Strong Institutions
B159: GRI 400 SOCIAL | C159: 407 Freedom of Association and Collective Bargaining | D159: 103-1 | E159: Explanation of the material topic and its Boundary | F159: Annual Report on Sustainability: Our Approach; Workforce; Labor Relations Human Rights Policy Workforce and Labor Relations on fcx.com
B160: GRI 400 SOCIAL | C160: 407 Freedom of Association and Collective Bargaining | D160: 103-2 | E160: The management approach and its components | F160: Annual Report on Sustainability: Our Approach; Workforce Form 10-K
B161: GRI 400 SOCIAL | C161: 407 Freedom of Association and Collective Bargaining | D161: 103-3 | E161: Evaluation of the management approach | F161: Annual Report on Sustainability: Our Approach
B162: GRI 400 SOCIAL | C162: 407 Freedom of Association and Collective Bargaining | D162: 407-1 | E162: Operations and suppliers in which the right to freedom of association and collective bargaining may be at risk | F162: We do not believe that the right to exercise freedom of association and collective bargaining is at significant risk at any of our operations. Annual Report on Sustainability: Labor Relations: Human Rights Human Rights on fcx.com | G162: SDG 8: Decent Work and Economic Growth
B163: GRI 400 SOCIAL | C163: 408 Child Labor | D163: 103-1 | E163: Explanation of the material topic and its Boundary | F163: Annual Report on Sustainability: Our Approach; Responsible Value Chains; Human Rights Human Rights Policy Responsible Sourcing of Minerals Policy Human Rights on fcx.com
B164: GRI 400 SOCIAL | C164: 408 Child Labor | D164: 103-2 | E164: The management approach and its components | F164: Annual Report on Sustainability: Our Approach; Responsible Value Chains; Human Rights Human Rights Policy Responsible Sourcing of Minerals Policy Human Rights on fcx.com
B165: GRI 400 SOCIAL | C165: 408 Child Labor | D165: 103-3 | E165: Evaluation of the management approach | F165: Annual Report on Sustainability: Our Approach; Responsible Value Chains; Human Rights Human Rights on fcx.com
B166: GRI 400 SOCIAL | C166: 408 Child Labor | D166: 408-1 | E166: Operations and suppliers at significant risk for incidents of child labor | F166: We do not believe that any of our operations are at significant risk for incidents of child, forced or compulsory labor. Annual Report on Sustainability: Business Integrity; Human Rights; Responsible Value Chains Human Rights Policy Supplier Code of Conduct Responsible Souring of Minerals Policy UK MSA Statement | G166: SDG 8: Decent Work and Economic Growth SDG 16: Peace, Justice and Strong Institutions
B167: GRI 400 SOCIAL | C167: 409 Forced or Compulsory Labor | D167: 103-1 | E167: Explanation of the material topic and its Boundary | F167: Annual Report on Sustainability: Our Approach; Human Rights; Responsible Value Chains Human Rights Policy Responsible Sourcing of Minerals Policy Human Rights on fcx.com
B168: GRI 400 SOCIAL | C168: 409 Forced or Compulsory Labor | D168: 103-2 | E168: The management approach and its components | F168: Annual Report on Sustainability: Our Approach; Responsible Value Chains; Human Rights Human Rights Policy Responsible Sourcing of Minerals Policy Human Rights on fcx.com
B169: GRI 400 SOCIAL | C169: 409 Forced or Compulsory Labor | D169: 103-3 | E169: Evaluation of the management approach | F169: Annual Report on Sustainability: Our Approach; Responsible Value Chains; Human Rights Human Rights on fcx.com
B170: GRI 400 SOCIAL | C170: 409 Forced or Compulsory Labor | D170: 409-1 | E170: Operations and suppliers at significant risk for incidents of forced or compulsory labor | F170: Our Human Rights Policy requires fair treatment and working conditions for all employees and prohibits child, forced, or compulsory labor. We do not believe that any of our operations are at significant risk for incidents of child, forced or compulsory labor. Annual Report on Sustainability: Responsible Value Chains; Human Rights Supplier Code of Conduct Human Rights Policy Responsible Souring of Minerals Policy Human Rights on fcx.com UK MSA Statement | G170: SDG 8: Decent Work and Economic Growth
B171: GRI 400 SOCIAL | C171: 410 Security Practices | D171: 103-1 | E171: Explanation of the material topic and its Boundary | F171: Annual Report on Sustainability: Our Approach Human Rights Policy
B172: GRI 400 SOCIAL | C172: 410 Security Practices | D172: 103-2 | E172: The management approach and its components | F172: Annual Report on Sustainability: Our Approach
B173: GRI 400 SOCIAL | C173: 410 Security Practices | D173: 103-3 | E173: Evaluation of the management approach | F173: Annual Report on Sustainability: Our Approach
B174: GRI 400 SOCIAL | C174: 410 Security Practices | D174: 410-1 | E174: Security personnel trained in human rights policies or procedures | F174: Voluntary Principles Report | G174: SDG 16: Peace, Justice and Strong Institutions
B175: GRI 400 SOCIAL | C175: 411 Rights of Indigenous Peoples | D175: 103-1 | E175: Explanation of the material topic and its Boundary | F175: Annual Report on Sustainability: Our Approach; Human Rights; Communities; Indigenous Peoples Social Performance Policy Human Rights Policy Indigenous Peoples on fcx.com
B176: GRI 400 SOCIAL | C176: 411 Rights of Indigenous Peoples | D176: 103-2 | E176: The management approach and its components | F176: Annual Report on Sustainability: Our Approach; Indigenous Peoples; Communities Indigenous Peoples, Land Use and Customary Rights and Communities on fcx.com
B177: GRI 400 SOCIAL | C177: 411 Rights of Indigenous Peoples | D177: 103-3 | E177: Evaluation of the management approach | F177: Annual Report on Sustainability: Our Approach; Human Rights; Communities Human Rights and Communities on fcx.com
B178: GRI 400 SOCIAL | C178: 411 Rights of Indigenous Peoples | D178: 411-1 | E178: Incidents of violations involving rights of indigenous peoples | F178: Annual Report on Sustainability: Indigenous Peoples; Human Rights; Communities Human Rights, Assessing and Managing Impacts, Indigenous Peoples, Land Use and Customary Rights and Communities on fcx.com | G178: SDG 2: Zero Hunger SDG 10: Reduced Inequalities
B179: GRI 400 SOCIAL | C179: 411 Rights of Indigenous Peoples | D179: MM5 | E179: Total number of operations taking place in or adjacent to Indigenous Peoples' territories, and number and percentage of operations or sites where there are formal agreements with Indigenous Peoples' communities | F179: Annual Report on Sustainability: Indigenous Peoples Indigenous Peoples and Land Use and Customary Rights on fcx.com Voluntary Principles Report | G179: SDG 1: No Poverty SDG 2: Zero Hunger SDG 3: Good Health and Well-Being SDG 10: Reduced Inequalities
B180: GRI 400 SOCIAL | C180: 412 Human Rights Assessment | D180: 103-1 | E180: Explanation of the material topic and its Boundary | F180: Annual Report on Sustainability: Our Approach; Human Rights Human Rights on fcx.com
B181: GRI 400 SOCIAL | C181: 412 Human Rights Assessment | D181: 103-2 | E181: The management approach and its components | F181: Annual Report on Sustainability: Our Approach; Human Rights
B182: GRI 400 SOCIAL | C182: 412 Human Rights Assessment | D182: 103-3 | E182: Evaluation of the management approach | F182: Annual Report on Sustainability: Our Approach; Human Rights
B183: GRI 400 SOCIAL | C183: 412 Human Rights Assessment | D183: 412-1 | E183: Operations that have been subject to human rights reviews or impact assessments | F183: Human Rights on fcx.com | G183: SDG 5: Gender Equality SDG 10: Reduced Inequalities SDG 16: Peace, Justice and Strong Institutions
B184: GRI 400 SOCIAL | C184: 412 Human Rights Assessment | D184: 412-2 | E184: Employee training on human rights policies or procedures | F184: Annual Report on Sustainability: Business Integrity; Human Rights Voluntary Principles Report Human Rights on fcx.com
B185: GRI 400 SOCIAL | C185: 413 Local Communities | D185: 103-1 | E185: Explanation of the material topic and its Boundary | F185: Annual Report on Sustainability: Our Approach Social Performance Policy
B186: GRI 400 SOCIAL | C186: 413 Local Communities | D186: 103-2 | E186: The management approach and its components | F186: Annual Report on Sustainability: Our Approach; Communities
B187: GRI 400 SOCIAL | C187: 413 Local Communities | D187: 103-3 | E187: Evaluation of the management approach | F187: Annual Report on Sustainability: Our Approach; Communities
B188: GRI 400 SOCIAL | C188: 413 Local Communities | D188: 413-1 | E188: Operations with local community engagement, impact assessments, and development programs | F188: Annual Report on Sustainability: Our Approach; Communities; Stakeholder Engagement Communities, Stakeholder Engagement, Assessing and Managing Impacts on fcx.com | G188: SDG 4: Quality Education SDG 8: Decent Work and Economic Growth SDG 10: Reduced Inequalities SDG 11: Sustainable Cities and Communities
B189: GRI 400 SOCIAL | C189: 413 Local Communities | D189: MM6 | E189: Number and description of significant disputes relating to land use, customary rights of local communities and Indigenous Peoples | F189: Indigenous Peoples, Land Use and Customary Rights and Community Grievance Mechanisms on fcx.com | G189: SDG 1: No Poverty SDG 2: Zero Hunger SDG 8: Decent Work and Economic Growth SDG 10: Reduced Inequalities SDG 11: Sustainable Cities and Communities
B190: GRI 400 SOCIAL | C190: 413 Local Communities | D190: MM7 | E190: The extent to which grievance mechanisms were used to resolve disputes relating to land use, customary rights of local communities and Indigenous Peoples, and the outcomes | F190: Indigenous Peoples, Land Use and Customary Rights and Community Grievance Mechanisms on fcx.com | G190: SDG 1: No Poverty SDG 2: Zero Hunger SDG 4: Quality Education SDG 8: Decent Work and Economic Growth SDG 10: Reduced Inequalities SDG 11: Sustainable Cities and Communities
B191: GRI 400 SOCIAL | C191: 414 Supplier Social Assessment | D191: 103-1 | E191: Explanation of the material topic and its Boundary | F191: Annual Report on Sustainability: Our Approach; Business Integrity Supplier Code of Conduct
B192: GRI 400 SOCIAL | C192: 414 Supplier Social Assessment | D192: 103-2 | E192: The management approach and its components | F192: Annual Report on Sustainability: Our Approach; Business Integrity; Defining Responsible Production Economic Value Contributed - Local Suppliers on fcx.com
B193: GRI 400 SOCIAL | C193: 414 Supplier Social Assessment | D193: 103-3 | E193: Evaluation of the management approach | F193: Annual Report on Sustainability: Our Approach
B194: GRI 400 SOCIAL | C194: 414 Supplier Social Assessment | D194: 414-1 | E194: 414-1 New suppliers that were screened using social criteria | F194: Using our online due diligence system, the Freeport Compliance eXchange (FCeX), our goal is to screen 100 percent of all suppliers at operations in Indonesia, Chile, Peru and selected exploration sites for compliance with the company’s labor standards. All suppliers receive and are expected to perform in accordance with: Supplier Code of Conduct Annual Report on Sustainability: Human Rights ; Business Integrity; Responsible Value Chains UK MSA Statement Suppliers > Toolier for Existing Suppliers > Freeport Compliance eXchange on fcx.com | G194: SDG 5: Gender Equality SDG 8: Decent Work and Economic Growth SDG 12: Responsible Consumption and Production SDG 16: Peace, Justice and Strong Institutions
B195: GRI 400 SOCIAL | C195: 419 Socioeconomic Compliance | D195: 103-1 | E195: Explanation of the material topic and its Boundary | F195: Annual Report on Sustainability: Our Approach; Business Integrity
B196: GRI 400 SOCIAL | C196: 419 Socioeconomic Compliance | D196: 103-2 | E196: The management approach and its components | F196: Annual Report on Sustainability: Our Approach
B197: GRI 400 SOCIAL | C197: 419 Socioeconomic Compliance | D197: 103-3 | E197: Evaluation of the management approach | F197: Annual Report on Sustainability: Our Approach
B198: GRI 400 SOCIAL | C198: 419 Socioeconomic Compliance | D198: 419-1 | E198: Non-compliance with laws and regulations in the social and economic area | F198: As a global company in a regulated industry, we are subject to thousands of legislative, judicial and administrative regulations at all levels of government in all jurisdictions. Please refer to our annual report on Form 10-K and quarterly reports on Form 10-Q. Annual Report on Sustainability: Environment | G198: SDG 16: Peace, Justice and Strong Institutions SDG 12: Responsible Consumption and Production
B199: GRI 400 SOCIAL | C199: Other: Emergency Preparedness | D199: 103-1 | E199: Explanation of the material topic and its Boundary | F199: Health & Safety on fcx.com
B200: GRI 400 SOCIAL | C200: Other: Emergency Preparedness | D200: 103-2 | E200: The management approach and its components | F200: Health & Safety on fcx.com | G200: SDG 3: Good Health and Well-being SDG 12: Responsible Consumption and Production
B201: GRI 400 SOCIAL | C201: Other: Emergency Preparedness | D201: 103-3 | E201: Evaluation of the management approach | F201: Health & Safety on fcx.com
B202: GRI 400 SOCIAL | C202: Other: Materials Stewardship | D202: 103-1 | E202: Explanation of the material topic and its Boundary | F202: Annual Report on Sustainability: Our Approach; Defining Responsible Production; Responsible Value Chains
... 6 more rows

Sheet ICMM
B1: INTERNATIONAL COUNCIL OF MINING AND METALS (ICMM) PRINCIPLES
B3: We disclose in alignment with the Performance Expectations at the corporate level. For our asset-level reports, please see our website at fcx.com.
B5: PRINCIPLE | C5: PRINCIPLE DESCRIPTION | D5: PERFORMANCE EXPECTATION | E5: DESCRIPTION | F5: FCX RESPONSE
B6: PRINCIPLE 1: ETHICAL BUSINESS | C6: Apply ethical business practices and sound systems of corporate governance and transparency to support sustainable development. | D6: 1.1 | E6: Establish systems to maintain compliance with applicable law. | F6: Freeport is committed to the highest level of ethical and legal conduct in all of our business activities. Acting ethically involves more than simply complying with laws and regulations; it involves recognition that our decisions affect others. By keeping this in mind, we aspire to earn the respect, trust and confidence of our stakeholders. • Form 10-K • Information can be found in our Annual Report on Sustainability and on our website at FCX.com - Our Approach and Business Integrity
B7: PRINCIPLE 1: ETHICAL BUSINESS | C7: Apply ethical business practices and sound systems of corporate governance and transparency to support sustainable development. | D7: 1.2 | E7: Implement policies and practices to prevent bribery, corruption and to publicly disclose facilitation payments. | F7: Freeport-McMoRan maintains zero tolerance for corruption of any kind, and we expect the same from our employees, contractors and suppliers. Freeport-McMoRan does not obtain a business advantage through bribery, improper payments, kickbacks or any other illegal means. No employee or contractor may offer, pay, solicit or accept bribes in any form. • Principles of Business Conduct • Anti-Corruption Policy • Information can be found in our Annual Report on Sustainability and on our website at FCX.com - Our Approach, Business Integrity and Responsible Value Chains
B8: PRINCIPLE 1: ETHICAL BUSINESS | C8: Apply ethical business practices and sound systems of corporate governance and transparency to support sustainable development. | D8: 1.3 | E8: Implement policies and standards consistent with the ICMM policy framework. | F8: To facilitate implementation of our policy commitments and objectives, we utilize a combination of audit and assessment programs along with an annual program for site-level third-party assurance of our sustainability framework – including the implementation of our commitments under the ICMM Mining with Principles Framework. We report and track our progress in our Annual Report on Sustainability as well as other external disclosures including the Voluntary Principles Report to the Plenary, the UK Modern Slavery Act Statement and the OECD Step 5 Report. • Voluntary Principles Report to the Plenary • UK Modern Slavery Act Stetement • OECD Step 5 Report • Information can be found in our Annual Report on Sustainability and our website at FCX.com - Our Approach
B9: PRINCIPLE 1: ETHICAL BUSINESS | C9: Apply ethical business practices and sound systems of corporate governance and transparency to support sustainable development. | D9: 1.4 | E9: Assign accountability for sustainability performance at the Board and/or Executive Committee level. | F9: The Corporate Responsibility Committee (CRC), on behalf of the Board, is responsible for providing advice, recommendations and oversight to the company’s management team on environmental and social matters. The CRC regularly reviews the effectiveness of management’s strategies, programs and policy implementation with respect to safety and health, responsible production frameworks, tailings management and stewardship, climate change, water stewardship, biodiversity, waste management, human capital management (including inclusion and diversity initiatives), human rights, stakeholder relations, social performance and Indigenous Peoples, responsible sourcing, and political activity and spending practices. Our Chairman and CEO has ultimate responsibility for the company’s sustainability performance. The company’s cross-functional Sustainability Leadership Team (SLT) includes members of the management team tasked with defining the sustainability strategy and implementing our sustainability policies, systems and programs across the organization. In 2020, the SLT met four times and moving forward will meet monthly and regularly report to executive leadership, including to our Chairman & CEO and President & Chief Financial Officer (CFO). In addition, members of the SLT report to the CRC on key ESG matters at regularly scheduled meetings. The SLT is sponsored by our Senior Vice President and Chief Administrative Officer and is led by our Vice President and Chief Sustainability Officer, with active participation from other members of the SLT, including our four operational business unit Presidents. SLT membership also includes Vice Presidents or senior representatives from functional groups, including health and safety, security, supply chain, human resources, sales, legal, compliance, sustainability and finance. Executive officers are held accountable for the company’s sustainability performance through the company’s performance-based annual incentive program (AIP). In 2020, ESG metrics collectively accounted for 25% of the AIP (15% safety and 10% sustainability). • Proxy Statement: Sustainability - Governance • Corporate Responsibility Committee Charter • Information can be found in our Annual Report on Sustainability and our website at FCX.com - Our Approach; Letter to Stakeholders; Message from our Corporate Responsibility Committee Chair and Business Integrity
B10: PRINCIPLE 1: ETHICAL BUSINESS | C10: Apply ethical business practices and sound systems of corporate governance and transparency to support sustainable development. | D10: 1.5 | E10: Disclose the value and beneficiaries of financial and in-kind political contributions whether directly or through an intermediary. | F10: Freeport-McMoRan Inc.recognizes that public policy decisions can significantly affect our operations, future business opportunities, employees, shareholders and the communities in which FCX operates. For this reason, we exercise our right and responsibility to participate in public policy matters by following public matters that are important to us and interacting, where appropriate, with elected and appointed government officials, regulators and their staff. FCX is committed to the highest level of ethical and legal conduct regarding its political activity and spending practices and to rigorous compliance with applicable laws and regulations. • Information can be found on our website at FCX.com in our Corporate Responsibility Committee Charter, Anti-Corruption Policy and Political Activity and Spending Practices
B11: PRINCIPLE 2: DECISION MAKING | C11: Integrate sustainable development in corporate strategy and decision-making processes. | D11: 2.1 | E11: Integrate sustainable development principles into corporate strategy and decisionmaking processes relating to investments and in the design, operation and closure of facilities. | F11: Our commitment to responsible copper production is visible in everything we do, driven by our core values of Safety, Respect, Integrity, Excellence and Commitment. Our values direct the decisions we make as a company and as individual employees. These values represent who we are and how we work – everyone, everywhere, every day. Our focus on responsible production is critical to establish and maintain acceptance from our local stakeholders through shared value creation and to meet society's responsible sourcing objectives necessary to supply the world with responsible copper. • Information can be found in our Annual Report on Sustainability and on our website at FCX.com - Mine Closure and Reclamation
B12: PRINCIPLE 2: DECISION MAKING | C12: Integrate sustainable development in corporate strategy and decision-making processes. | D12: 2.2 | E12: Support the adoption of responsible health and safety, environmental, human rights and labour policies and practices by joint venture partners, suppliers and Contractors, based on risk. | F12: At the core of our business is people. At each of our operations, Freeport-McMoRan aims to be a preferred employer, neighbor, business partner and supplier. We are committed to responsibly managing our social impacts on people, which includes focusing on the health, safety and security of our workforce and host communities and respecting the rights of people who may be impacted by our business. Freeport-McMoRan recognizes that the very nature of our business depends on and impacts the natural environment and our communities. Our goal is to conduct our mining and processing operations in a manner that minimizes adverse impacts on the environment and enables local communities and ecosystems to be protected and maintained through responsible stewardship. Our Supplier Code of Conduct and compliance screening processes are the foundation of our responsible sourcing program for goods and services. Responsible sourcing of goods and services is led by our Global Supply Chain Sustainability Manager under the oversight of the SLT with support from the Human Rights Working Group. • Information can be found in our Annual Report on Sustainability and on our website at FCX.com - Business Integrity; People, Environment and Responsible Value Chains
B13: PRINCIPLE 3: HUMAN RIGHTS | C13: Respect human rights and the interests, cultures, customs and values of employees and communities affected by our activities. | D13: 3.1 | E13: Support the UN Guiding Principles on Business and Human Rights by developing a policy commitment to respect human rights, undertaking human rights due diligence and providing for or cooperating in processes to enable the remediation of adverse human rights impacts that members have caused or contributed to. | F13: Human rights are internationally recognized, defined in the Universal Declaration of Human Rights and codified in international law. Mining activities have the potential to impact the way people enjoy these rights – whether as employees, contractors, suppliers, community members, human rights defenders or others. Freeport-McMoRan recognizes that respecting human rights, as outlined in the UN Guiding Principles on Business and Human Rights (UNGPs), is an expectation of stakeholders that can influence our social license to operate and affect market access for our products. We are committed to respecting internationally recognised human rights as set out in the Universal Declaration on Human Rights and the Voluntary Principles on Security and Human Rights, and operating in a manner consistent with the UN Guiding Principles on Business and Human Rights and the UNGC Ten Principles Respect is a core value for Freeport-McMoRan. We are committed to respecting the rights of all people, including our employees, contractors and suppliers, community members, and others who may potentially be impacted by our business activities. We take this obligation seriously in all aspects of our business, and we expect the same of our business partners. As we seek to further embed respect for human rights across our organizational activities, we use our Risk Register process to identify risks to people at each operation and address potential and actual impacts on rights-holders. This process is developed by ongoing stakeholder engagement, grievance management and the results of human rights impact assessments (HRIAs). • Voluntary Principles Report • UK Modern Slavery Act Statement • 2019 OECD Step 5 Due Diligence Report • Information can be found in our Annual Report on Sustainability and on our website at FCX.com - Business Integrity, People and Human Rights > Due Diligence
B14: PRINCIPLE 3: HUMAN RIGHTS | C14: Respect human rights and the interests, cultures, customs and values of employees and communities affected by our activities. | D14: 3.2 | E14: Avoid the involuntary physical or economic displacement of families and communities. Where this is not possible apply the mitigation hierarchy and implement actions or remedies that address residual adverse effects to restore or improve livelihoods and standards of living of displaced people. | F14: We are committed to respecting the human rights of community members and, when unavoidable, conducting community resettlement activities in alignment with international best practice. This commitment is reflected in our Social Performance Policy, Human Rights Policy and Responsible Sourcing of Minerals Policy. We did not have any community resettlement activities in 2020.
B15: PRINCIPLE 3: HUMAN RIGHTS | C15: Respect human rights and the interests, cultures, customs and values of employees and communities affected by our activities. | D15: 3.3 | E15: Implement, based on risk, a human rights and security approach consistent with the Voluntary Principles on Security and Human Rights. | F15: We are committed to respecting internationally recognized human rights as set out in the Voluntary Principles on Security and Human Rights (VPs). The VPs serve as guidelines for our security and human rights programs, including interaction with host-government police and military personnel as well as private security contractors. The VPs serve as a key component of our broader human rights program, which includes implementation of the United Nations Guiding Principles on Business and Human Rights (UNGPs). Not all human rights issues are security issues, and not all security issues are human rights issues - it is at the nexus of human rights and security where our implementation of the VPs resides. We have remained an active participant in the VPs Initiative since it was first established in 2000. • Voluntary Principles Report to the Plenary • Information can be found in our Annual Report on Sustainability and on our website at FCX.com - Voluntary Principles, Defining Responsible Production and Responsible Value Chains
B16: PRINCIPLE 3: HUMAN RIGHTS | C16: Respect human rights and the interests, cultures, customs and values of employees and communities affected by our activities. | D16: 3.4 | E16: Respect the rights of workers by: not employing child or forced labour; avoiding human trafficking; not assigning hazardous/dangerous work to those under 18; eliminating harassment and discrimination; respecting freedom of association and collective bargaining and; providing a mechanism to address workers grievances. | F16: Our Supplier Code of Conduct and compliance screening processes are the foundation of our responsible sourcing program for goods and services. We are committed to operating in a manner consistent with the UNGC Ten Principles, including Labour Principles 3, 4, 5 and 6. • Principles of Business Conduct • Inclusion & Diversity Policy • Social Performance Policy • Human Rights Policy • Responsible Sourcing of Minerals Policy • Supplier Code of Conduct • UK Modern Slavery Act Statement • Information can be found in our Annual Report on Sustainability and on our website at FCX.com - Our Approach, Human Rights, Workforce and Responsible Value Chains
B17: PRINCIPLE 3: HUMAN RIGHTS | C17: Respect human rights and the interests, cultures, customs and values of employees and communities affected by our activities. | D17: 3.5 | E17: Remunerate employees with wages that equal or exceed legal requirements or represent a competitive wage within that job market (whichever is higher) and assign regular and overtime working hours within legally required limits. | F17: We focus on attracting and retaining talented people by offering quality employment with competitive compensation and opportunities for professional development. Our approach to compensation and benefits is market-based and competitive and informed by annual benchmarking and analysis. We are committed to respecting the rights of our workforce, including paying fair wages. This includes equal pay for equal work, and compensation levels that support the acquisition of the goods and services necessary for an average size family to meet their basic needs in the geographic locations where we operate. We also develop schedules that keep regular and overtime hours within legally required limits. In early 2021, we partnered with BSR, a global sustainability non-profit, to conduct a living wage assessment for both full-time and part-time employees at 14 of our operating and processing sites in the U.S., Chile, Peru and Indonesia. BSR’s living wage benchmark exceeds the minimum country wage in all 14 locations assessed. The analysis found that of the more than 21,000 employees in these locations, all employees met BSR’s living wage benchmark for their respective locations. We plan to complete the assessment for the remainder of our direct employees later in the year and integrate the assessment into our annual compensation review processes across our global operations. We also will seek to extend our living wage commitment to our on-site contractors in the future. • Principles of Business Conduct • Information can be found in our Annual Report on Sustainability and on our website at FCX.com - Workforce - Fair & Equitable Remuneration
B18: PRINCIPLE 3: HUMAN RIGHTS | C18: Respect human rights and the interests, cultures, customs and values of employees and communities affected by our activities. | D18: 3.6 | E18: Respect the rights, interests, aspirations, culture and natural resource-based livelihoods of Indigenous Peoples in project design, development and operation; apply the mitigation hierarchy to address adverse impacts and; deliver sustainable benefits for Indigenous Peoples. | F18: Our approach aims to respect the social, economic and cultural rights of indigenous peoples, including supporting their effective representation and participation in engagements with our company. This approach includes adherence to the ICMM Position Statement on Indigenous Peoples and Mining and working towards obtaining free prior and informed consent for new projects and material expansions of existing projects. Through ongoing engagement, cultural promotion and preservation projects, as well as training and development programs, Freeport-McMoRan seeks to address needs while being sensitive to cultures and customs of indigenous peoples. • Social Performance Policy & Human Rights Policies • Information can be found in our Annual Report on Sustainability and on our website at FCX.com - People and Indigenous Peoples
B19: PRINCIPLE 3: HUMAN RIGHTS | C19: Respect human rights and the interests, cultures, customs and values of employees and communities affected by our activities. | D19: 3.7 | E19: Work to obtain the free, prior and informed consent of Indigenous Peoples where significant adverse impacts are likely to occur, as a result of relocation, disturbance of lands and territories or of critical cultural heritage, and capture the outcomes of engagement and consent processes in agreements. | F19: Our approach aims to respect the social, economic and cultural rights of indigenous peoples, including supporting their effective representation and participation in engagements with our company. This approach includes adherence to the ICMM Position Statement on Indigenous Peoples and Mining and working towards obtaining free prior and informed consent for new projects and material expansions of existing projects. Through ongoing engagement, cultural promotion and preservation projects, as well as training and development programs, Freeport-McMoRan seeks to address needs while being sensitive to cultures and customs of indigenous peoples. • Social Performance Policy • Information can be found in our Annual Report on Sustainability - People and on our website at FCX.com in Indigenous Peoples
B20: PRINCIPLE 3: HUMAN RIGHTS | C20: Respect human rights and the interests, cultures, customs and values of employees and communities affected by our activities. | D20: 3.8 | E20: Implement policies and practices to respect the rights and interests of women and support diversity in the workplace. | F20: Gender diversity continues to be an important focus for the company. We believe that progressing an inclusive workplace culture that extends beyond our operational boundaries and into our communities, is a critical driver to attracting, promoting and retaining top female talent. • Information can be found in our Annual Report on Sustainability and on our website at FCX.com - People, Inclusion & Diversity and Human Rights
B21: PRINCIPLE 4: RISK MANAGEMENT | C21: Implement effective risk-management strategies and systems based on sound science and which account for stakeholder perceptions of risks. | D21: 4.1 | E21: Assess environmental and social risks and opportunities of new projects and of significant changes to existing operations in consultation with interested and affected stakeholders, and publicly disclose assessment results. | F21: Our Project Development Sustainability Review process supports the integration of sustainability considerations into development or expansion project phases. The review process also complements our operational Sustainable Development Risk Register procedure for existing operations. We implement Environmental and Social Impact Assessments prior to undertaking greenfield or brownfield expansion projects. These assessments identify potentially affected stakeholders and their representatives, as well as potential impacts from the outset, and provide a framework for developing both stakeholder engagement and mitigation plans. • Information can be found in our Annual Report on Sustainability and on our website at FCX.com - The Risk Register, People, and Assessing and Managing Impacts
B22: PRINCIPLE 4: RISK MANAGEMENT | C22: Implement effective risk-management strategies and systems based on sound science and which account for stakeholder perceptions of risks. | D22: 4.2 | E22: Undertake risk-based due diligence on conflict and human rights that aligns with the OECD Due Diligence Guidance on Conflict-Affected and High-Risk Areas, when operating in, or sourcing from, a conflict-affected or high-risk area. | F22: Sourcing of goods and services can have significant impact across all areas of ESG risk. In recent years, human rights, workforce, health and safety, cultural heritage, economic, and, environmental risks in supply chains have become a focus in the mining industry. In addition, automotive and electronics original equipment manufacturers have received significant pressure from shareholders and other stakeholders to improve due diligence in their supply chains, which is putting increasing pressure on minerals producers globally. Freeport-McMoRan is committed to sourcing responsibly across our supply chains wherever we do business. Freeport is committed to the OECD Due Diligence Guidance for Responsible Supply Chains of Minerals in Conflict-Affected and High-Risk Areas, which requires annual Step 5 Reporting detailing risks identified and managed in our mineral supply chains. • Responsible Sourcing of Minerals Policy • 2019 OECD Step 5 Due Diligence Report • Information can be found in our Annual Report on Sustainability and on our website at FCX.com - Responsible Value Chains and Responsible Sourcing of Minerals and Metals
B23: PRINCIPLE 4: RISK MANAGEMENT | C23: Implement effective risk-management strategies and systems based on sound science and which account for stakeholder perceptions of risks. | D23: 4.3 | E23: Implement risk-based controls to avoid/prevent, minimise, mitigate and/or remedy health, safety and environmental impacts to workers, local communities, cultural heritage and the natural environment, based upon a recognised international standard or management system. | F23: Being a Responsible Producer also means evaluating ourselves against our commitments at both a site and corporate level and reporting regularly to our stakeholders in a transparent manner. To translate our commitments to our everyday work, we use our Sustainable Development Risk Register (the Risk Register) process globally to identify and prioritize sustainability risks and actions. Identified risks are mitigated using local and global topic-specific management strategies. The Risk Register prioritizes the most significant risks that could have negative consequences to our business and our stakeholders across areas including health and safety, human rights, environmental management, community development, and economic impacts. • Information can be found in our Annual Report on Sustainability and on our website at FCX.com - Defining Responsible Production, The Risk Register, People and Environment
B24: PRINCIPLE 4: RISK MANAGEMENT | C24: Implement effective risk-management strategies and systems based on sound science and which account for stakeholder perceptions of risks. | D24: 4.4 | E24: Develop, maintain and test emergency response plans. Where risks to external stakeholders are significant, this should be in collaboration with potentially affected stakeholders and consistent with established industry good practice. | F24: Emergency preparedness and response is a fundamental component of all Freeport-McMoRan activities. Through our Crisis Management Program (CMP) and Sustainable Development Risk Register our operations maintain plans with procedures for preventing and responding to incidents that could cause severe or catastrophic harm to human health and the environment. All operations are required to follow our CMP process that includes risk analysis by applying our Sustainable Development risk matrix to risk event scenarios with the intent to eliminate or mitigate the exposure. It also requires identifying the Incident Command Structure and coordinating activities with authorities, such as fire and police departments or federal officials. The plan includes evacuation procedures, employee safety procedures, environmental containment, communications plans and workplace assessments. Disaster recovery and business continuity considerations are core to the planning as well. Operations are required to conduct annual mock or live drills on plan scenarios. All of our operations are required to conduct annual mock or live drills on plan scenarios which include, where appropriate, involvement and participation with stakeholders responsible for responding to site related emergencies • Information can be found in our Annual Report on Sustainability - Health & Safety and on our website at FCX.com in Emergency Preparedness and Response
B25: PRINCIPLE 5: HEALTH AND SAFETY | C25: Pursue continual improvement in health and safety performance with the ultimate goal of zero harm. | D25: 5.1 | E25: Implement practices aimed at continually improving workplace health and safety, and monitor performance for the elimination of workplace fatalities, serious injuries and prevention of occupational diseases, based upon a recognised international standard or management system. | F25: At the foundation of our sustainability approach – and one of our core values – is safety. Our objective is to achieve zero workplace fatalities, injuries and occupational illnesses through our behavior-based safety culture. We are committed to creating a safe and healthy workplace and providing the training, tools and resources needed so our workforce can identify risks and consistently apply effective controls. We share information and key learnings about potentially fatal events, near misses and best practices throughout the company and engage with industry peers to continuously improve our health and safety performance. Our framework for managing risks and compliance obligations is certified in accordance to OHSAS 18001. We are in the process of migrating to the new ISO 45001 Health and Safety Management System, which will be completed company-wide in 2021. • Safety & Health Policy • ESG Performance Data - Social • Information can be found in our Annual Report on Sustainability and on our website at FCX.com - Health & Safety
B26: PRINCIPLE 5: HEALTH AND SAFETY | C26: Pursue continual improvement in health and safety performance with the ultimate goal of zero harm. | D26: 5.2 | E26: Provide workers with training in accordance with their responsibilities for health and safety, and implement health surveillance and risk-based monitoring programmes based on occupational exposures. | F26: At the foundation of our sustainability approach – and one of our core values – is safety. Our objective is to achieve zero workplace fatalities, injuries and occupational illnesses through our behavior-based safety culture. We are committed to creating a safe and healthy workplace and providing the training, tools and resources needed so our workforce can identify risks and consistently apply effective controls. We share information and key learnings about potentially fatal events, near misses and best practices throughout the company and engage with industry peers to continuously improve our health and safety performance. In 2020, we rolled out our new Safe Production Matters strategy, which aims to globally align priorities, empower safe work behaviors and strengthen our safety culture. A principle focus is on the prevention of fatalities and high-risk incidents using data and technology combined with behavioral science principles. Other key focus areas include the elimination of systemic root causes and optimizing health and safety resources across the business. • Safety & Health Policy • ESG Performance Data - Social • Information can be found in our Annual Report on Sustainability and on our website at FCX.com - Health & Safety
B27: PRINCIPLE 6: ENVIRONMENTAL PERFORMANCE | C27: Pursue continual improvement in environmenal performance issues, such as water stewardship, energy use and climate change. | D27: 6.1 | E27: Plan and design for closure in consultation with relevant authorities and stakeholders, implement measures to address closure-related environmental and social aspects, and make financial provision to enable agreed closure and postclosure commitments to be realised. | F27: Our reclamation and mine closure planning processes are integral to our site planning and ongoing operations. We engage local communities, governments and other interested stakeholders early and often on these issues, and we seek to minimize land disturbances whenever possible. At each of our operations, we have mine closure and reclamation plans with site-specific environmental measures designed to minimize long-term impacts, promote ecosystem re-establishment and protect the watersheds where we operate. To support future anticipated closure and reclamation costs, each operating mine site has asset retirement obligations that are estimated and accounted for in accordance with the Securities and Exchange Commission's requirements and subject to review by an independent accounting firm. • Environmental Policy • Social Performance Policy • Information can be found in our Annual Report on Sustainability and on our website at FCX.com - Mine Closure & Reclamation
B28: PRINCIPLE 6: ENVIRONMENTAL PERFORMANCE | C28: Pursue continual improvement in environmenal performance issues, such as water stewardship, energy use and climate change. | D28: 6.2 | E28: Implement water stewardship practices that provide for strong and transparent water governance, effective and efficient management of water at operations, and collaboration with stakeholders at a catchment level to achieve responsible and sustainable water use. | F28: Freeport-McMoRan believes effective water stewardship means maximizing our water use efficiency and minimizing our use of new freshwater. This includes shifting our water supplies to more sustainable sources, minimizing negative impacts from our operations on water quality and availability in a local catchment, and supporting the development of access to previously unknown, unavailable or undeveloped water resources. • 2019 Water Report • Environmental Policy • Information can be found in our Annual Report on Sustainability and on our website at FCX.com - Water Stewardship
B29: PRINCIPLE 6: ENVIRONMENTAL PERFORMANCE | C29: Pursue continual improvement in environmenal performance issues, such as water stewardship, energy use and climate change. | D29: 6.3 | E29: Design, construct, operate, monitor and decommission tailings disposal/storage facilities using comprehensive, risk-based management and governance practices in line with internationally recognised good practice, to minimise the risk of catastrophic failure. | F29: Freeport has comprehensive measures in place to ensure our facilities are designed, built, operated and monitored to minimize risk to employees, neighboring host communities and the environment. We have a strong commitment from our Board and executive management to provide the necessary financial and technical resources to maintain the safety of our facilities and the integrity of tailings management systems, with a focus on continuous improvement. • Environmental Policy • Information can be found in our Annual Report on Sustainability - Tailings Management and on our website at FCX.com in Tailings Management and Tailings Management & Stewardship
B30: PRINCIPLE 6: ENVIRONMENTAL PERFORMANCE | C30: Pursue continual improvement in environmenal performance issues, such as water stewardship, energy use and climate change. | D30: 6.4 | E30: Apply the mitigation hierarchy to prevent pollution, manage releases and waste, and address potential impacts on human health and the environment. | F30: Our Environmental Policy serves as the framework for the protection of natural resources in the regions where we live and work. In addition to maintaining compliance with laws and regulations, our policy objectives are to minimize environmental impacts using risk management strategies based on valid data and sound science. Our Policy also requires that we review and account for the environmental effects of our activities throughout the mining life cycle, and we plan and conduct our operations in a manner that optimizes the economic use of resources while minimizing adverse environmental effects. All of our mining and mineral processing operations and technology centers maintain Environmental Management Systems (EMS) certified to the ISO14001:2015 standard. As part of our EMS, our workforce is trained on site specific subject areas, receives annual environmental refresher training and is supported in the field by environmental professionals through our Boots in the Field program. In 2020, we continued our efforts to implement the mitigation hierarchy – a framework that emphasizes best practices for managing biodiversity and ecosystem services through the avoidance, minimization, restoration and offsetting of impacts. During the year, we finalized global guidance for consistent and rigorous application of the mitigation hierarchy through which we aim to manage risks and potential impacts with the long-term ambition of ‘no net loss’ for new mines and major expansion projects at existing mines. • Environmental Policy • Information can be found in our Annual Report on Sustainability and on our website at FCX.com - Environment
B31: PRINCIPLE 6: ENVIRONMENTAL PERFORMANCE | C31: Pursue continual improvement in environmenal performance issues, such as water stewardship, energy use and climate change. | D31: 6.5 | E31: Implement measures to improve energy efficiency and contribute to a low-carbon future, and report the outcomes based on internationally recognised protocols for measuring CO2 equivalent (GHG) emissions. | F31: We believe we have the opportunity to supply the world with responsibly produced copper, which is necessary to support global decarbonization. This includes operating in a way that manages and mitigates our GHG emissions and other climate-related risks. Freeport is committed to implementing the requirements outlined in the ICMM Climate Change Position Statement and Performance Expectations for energy and climate change. In addition, our commitment to the Copper Mark requires that we develop and achieve targets over time and report our progress at a site level. Operational-level data is available in our ESG Performance Data tables. • 2019 Climate Report • ESG Performance Data - Climate • Information can be found in our Annual Report on Sustainability and on our website at FCX.com - Climate
B32: PRINCIPLE 7: CONSERVATION OF BIODIVERSITY | C32: Contribute to the conservation of biodiversity and integrated approaches to land-use planning. | D32: 7.1 | E32: Neither explore nor develop new mines in World Heritage sites, respect legally designated protected areas, and design and operate any new operations or changes to existing operations to be compatible with the value for which such areas were designated. | F32: ICMM Position Statement on Mining and Protected Areas – We have addressed the commitments in our operational practices, including committing to no mining nor exploring in UNESCO World Heritage Sites. Our proven and probable reserves located near endangered species habitats do not affect habitats. The endangered species habitats near Morenci, Chino, and Climax reserves are located on federal lands managed by the U.S. Forest Service; we do not conduct activities within the habitat. Cerro Verde’s reserves qualify due to an endangered bat species that is known to occur and forage in the general region of the operations and we actively seek to protect the species. PT-FI’s reserves qualify due to the district’s proximity to Lorenz National Park, however we do not conduct any activities in the habitat and maintain significant programs at the operation to protect biodiversity in the area. • Information can be found in our Annual Report on Sustainability and on our website at FCX.com - Biodiversity
B33: PRINCIPLE 7: CONSERVATION OF BIODIVERSITY | C33: Contribute to the conservation of biodiversity and integrated approaches to land-use planning. | D33: 7.2 | E33: Assess and address risks and impacts to biodiversity and ecosystem services by implementing the mitigation hierarchy, with the ambition of achieving no-net-loss of biodiversity. | F33: Freeport-McMoRan seeks to avoid or minimize the adverse impacts of our operations on biodiversity and ecosystem services while promoting opportunities to contribute to the conservation and enhancement of biodiversity in the areas where we operate. In 2020, we continued our efforts to implement the mitigation hierarchy – a framework that emphasizes best practices for managing biodiversity and ecosystem services through the avoidance, minimization, restoration and offsetting of impacts. During the year, we finalized global guidance for consistent and rigorous application of the mitigation hierarchy through which we aim to manage risks and potential impacts with the long-term ambition of ‘no net loss’ for new mines and major expansion projects at existing mines. • Information can be found in our Annual Report on Sustainability and on our website at FCX.com - Biodiversity
B34: PRINCIPLE 8: RESPONSIBLE PRODUCTION | C34: Facilitate and support the knowledge-base and systems for responsible design, use, re-use, recycling and disposal of products containing metals and minerals. | D34: 8.1 | E34: In project design, operation and de-commissioning, implement cost-effective measures for the recovery, re-use or recycling of energy, natural resources, and materials. | F34: In addition to mining and mineral processing wastes, such as tailings, waste rock, overburden and slag, our operations generate non-mining waste which requires proper end-of-life management. Responsible management of all these materials is critical to complying with environmental regulations, maintaining community and environmental health, and social acceptance of our operations. We are committed to reducing our environmental impact, which includes the effective management of our mining and non-mining wastes alike. In addition to responsibly managing our mining and mineral processing waste, we continuously evaluate opportunities to reduce the quantity of non-mining waste generated. We implement robust practices to identify, categorize, store and manage non-mining wastes, and we strive to increase recycling and reuse of materials in our operations whenever possible. We evaluate our hazardous waste streams, and when possible, substitute materials with lower toxicity into our processes. • 2019 Climate Report • 2019 Water Report • Information can be found in our Annual Report on Sustainability and on our website at FCX.com - The Risk Register, Project Development Sustainability Review and Environment
B35: PRINCIPLE 8: RESPONSIBLE PRODUCTION | C35: Facilitate and support the knowledge-base and systems for responsible design, use, re-use, recycling and disposal of products containing metals and minerals. | D35: 8.2 | E35: Assess the hazards of the products of mining according to UN Globally Harmonised System of Hazard Classification and Labelling or equivalent relevant regulatory systems and communicate through safety data sheets and labelling as appropriate. | F35: Our framework for managing risks and compliance obligations is certified in accordance with the internationally recognized Occupational Health and Safety Assessment (OHSAS) 18001 Standard. OHSAS requires third-party site-level verification of requirements, with a goal to prevent fatalities and reduce incidents. This standard is being replaced with the new ISO 45001 Health and Safety Management System, and company-wide conversion currently is expected to be complete in 2021. Our safety management system ISO45001/OHSAS18001 covers handling and use of hazardous materials on site, including maintenance of safety data sheets. • Safety & Health Policy • Information can be found in our Annual Report on Sustainability and on our website at FCX.com - Health & Safety
B36: PRINCIPLE 9: SOCIAL PERFORMANCE | C36: Pursue continual improvement in social performance and contribute to the social, economic and institutional development of host countries and communities. | D36: 9.1 | E36: Implement inclusive approaches with local communities to identify their development priorities and support activities that contribute to their lasting social and economic wellbeing, in partnership with government, civil society and development agencies, as appropriate. | F36: Freeport-McMoRan works actively through engagement, investment and partnership activities to support our host communities in maximizing the social and economic benefits of mining. Our work increasingly is focused on supporting our communities to develop the requisite skills to successfully adapt to technological and economic changes in the future to reduce their dependency on mining over the long term. By partnering to increase both individual and institutional capabilities, we help create increasing resiliency, allowing communities to better weather and adapt to commodity market fluctuations or other economic disruptions that may have social impacts. • Social Performance Policy • Information can be found in our Annual Report on Sustainability and our website at FCX.com - Stakeholder Engagement, Communities and Economic Value Contributed
B37: PRINCIPLE 9: SOCIAL PERFORMANCE | C37: Pursue continual improvement in social performance and contribute to the social, economic and institutional development of host countries and communities. | D37: 9.2 | E37: Enable access by local enterprises to procurement and contracting opportunities across the project life-cycle, both directly and by encouraging larger contractors and suppliers, and also by supporting initiatives to enhance economic opportunities for local communities. | F37: Purchasing goods and services from local suppliers provides a significant direct and indirect benefit to our local communities. Our investment in local communities helps to support the economic vitality of small and medium size enterprises and local entrepreneurship. When we purchase locally, we provide the stimulus for community development and the potential for capacity building. • ESG Performance Data - Social • Information can be found in our Annual Report on Sustainability and our website at FCX.com - Economic Value Contributed and Local Suppliers
B38: PRINCIPLE 9: SOCIAL PERFORMANCE | C38: Pursue continual improvement in social performance and contribute to the social, economic and institutional development of host countries and communities. | D38: 9.3 | E38: Conduct stakeholder engagement based upon an analysis of the local context and provide local stakeholders with access to effective mechanisms for seeking resolution of grievances related to the company and its activities. | F38: Freeport-McMoRan believes effective stakeholder engagement is founded on transparency and meaningful dialogue. Our goal is to foster mutual understanding, trust and cooperation with stakeholder groups on a variety of topics. We recognize the vital role of stakeholder engagement and calls for collaboration with communities, including indigenous and vulnerable populations, to minimize and mitigate adverse impacts and pursue opportunities to maximize benefits. We have a broad range of stakeholders, including shareholders, employees, host communities and Indigenous Peoples, customers and suppliers, regulators and policymakers, host governments, and nongovernmental organizations. We recognize the interests and concerns of our stakeholders can change over time. To learn about these changing needs and expectations, we believe ongoing and proactive engagement is imperative. We maintain an ongoing, constructive and proactive shareholder and non-financial stakeholder engagement program throughout the year. We have established site-level grievance mechanisms for employees, community members and members of our supply chain and others to support constructive engagement and resolution of issues that may arise where questions, concerns and complaints can be shared outside of any other engagement forum. • Social Performance Policy • Human Rights Policy • Information can be found in our Annual Report on Sustainability and our website at FCX.com - Stakeholder Engagement, Communities, Community Grievance Mechanisms and Human Rights
B39: PRINCIPLE 9: SOCIAL PERFORMANCE | C39: Pursue continual improvement in social performance and contribute to the social, economic and institutional development of host countries and communities. | D39: 9.4 | E39: Collaborate with government, where appropriate, to support improvements in environmental and social practices of local Artisanal and Small-scale Mining (ASM). | F39: Artisanal and small-scale and illegal miners seek unrecovered gold from our milling operations by panning and have limited equipment and expertise at operating in hazardous conditions and can create social and environmental impacts as well as place their own health and safety at risk. We recognize that no single solution will entirely address this issue as long as there is cultural esteem associated with artisanal mining, along with unemployment, poverty and buyers for illegal products. However, we believe that a multi-pronged approach that includes security risk management, government cooperation, stakeholder engagement and socioeconomic development for alternative livelihoods is essential. • Information can be found in our Annual Report on Sustainability and our website at FCX.com - Artisanal Mining
B40: PRINCIPLE 10: STAKEHOLDER ENGAGEMENT | C40: Proactively engage key stakeholders on sustainable development challenges and opportunities in an open and transparent manner. Effectively report and independently verify progress and performance. | D40: 10.1 | E40: Identify and engage with key corporate-level external stakeholders on sustainable development issues in an open and transparent manner | F40: We believe effective stakeholder engagement is founded on transparency and meaningful dialogue. Our primary goal is to foster mutual understanding, trust and cooperation with stakeholder groups on a variety of topics. We have a broad range of stakeholders, including shareholders, employees, host communities and Indigenous Peoples, customers and suppliers, regulators and policymakers, host governments, and nongovernmental organizations. We recognize the interests and concerns of our stakeholders can change over time. To learn about these changing needs and expectations, we believe ongoing and proactive engagement is imperative. We maintain an ongoing, constructive and proactive shareholder and non-financial stakeholder engagement program throughout the year. Our company is strengthened by this dialogue, which also helps us learn about our stakeholders’ perspectives on the topics that matter to them. These conversations inform our Board’s decision-making, including on our policies, practices, programs and initiatives. These engagements are also an opportunity to share information about our strategy, practices and performance. • Proxy Statement - Stockholder and Stakeholder Engagement • Information can be found in our Annual Report on Sustainability and our website at FCX.com - Stakeholder Engagement
B41: PRINCIPLE 10: STAKEHOLDER ENGAGEMENT | C41: Proactively engage key stakeholders on sustainable development challenges and opportunities in an open and transparent manner. Effectively report and independently verify progress and performance. | D41: 10.2 | E41: Publicly support the implementation of the Extractive Industries Transparency Initiative (EITI) and compile information on all material payments, at the appropriate levels of government, by country and by project. | F41: Freeport-McMoRan has endorsed and committed to support the EITI since 2008. This support includes direct financial contributions from the company as well as contributions through the ICMM of which we are a founding member. Freeport maintains significant mining operations in Indonesia and Peru, both of which are EITI-implementing countries, and we actively support and participate in associated in-country processes. In addition to our country-level EITI commitments and regulatory reporting obligations, our practice is to voluntarily report cash payments to governments in all jurisdictions where we conduct business. • Information can be found in our Annual Report on Sustainability and our website at FCX.com - Transparency of Government Payments and Economic Value Contributed
B42: PRINCIPLE 10: STAKEHOLDER ENGAGEMENT | C42: Proactively engage key stakeholders on sustainable development challenges and opportunities in an open and transparent manner. Effectively report and independently verify progress and performance. | D42: 10.3 | E42: Report annually on economic, social and environmental performance at the corporate level using the GRI Sustainability Reporting Standards. | F42: Our 2020 Annual Report on Sustainability and sustainability website disclosures have been prepared in accordance with the GRI Standards Core option and the G4 Mining and Metals Sector Supplement. We have reported under GRI guidelines and standards since 2005. • Information can be found in our Annual Report on Sustainability and our website at FCX.com - GRI Content Index
B43: PRINCIPLE 10: STAKEHOLDER ENGAGEMENT | C43: Proactively engage key stakeholders on sustainable development challenges and opportunities in an open and transparent manner. Effectively report and independently verify progress and performance. | D43: 10.4 | E43: Each year, conduct independent assurance of sustainability performance following the ICMM guidance on assuring and verifying membership requirements. | F43: Freeport-McMoRan’s sustainability reports have been independently verified since 2005. External assurance of our 2020 reporting was conducted by Corporate Integrity Ltd. in accordance with the ICMM Mining Principles Assurance and Validation Procedure, which can be found at ICMM website. Since 2009, site-level external assurance has been completed multiple times at all active mining and metals processing operations. We conduct site-level external assurance at operations at a minimum of once every three years, with annual assurance engagements at PT-FI and Cerro Verde. • Information can be found in our Annual Report on Sustainability and our website at FCX.com - External Assurance
